{"text_format":"1","workbook":"xlsx","n_sheets":3,"sheets":["Справочник","Основной","ЮТ"],"not_rendered":{"charts":0,"images":4,"macros":1,"external_links":0,"defined_names":0,"comments":0,"pivot_tables":0},"unopened":[],"bounds":{"document_bytes":16777216,"sheet_cells":100000,"rows_first":2000,"rows_last":500,"rows_between":2000,"halvings":0,"cell_chars":16384,"cell_head_chars":4096},"cells_cut":0,"cells_raw":0,"read":"whole","date_system":"1900"}

{"sheet":"Справочник","index":0,"n_rows":12,"n_cols":3,"rows_kept":12,"cut":false,"hidden":false,"merged":[]}
[null,"Представление"]
[{"$f":"A1+1","v":1},"Ана","РШ"]
[2,"Паша","МА"]
[3,"Володя","МА"]
[4,"Сережа","ЮТ "]
[5,"Никита","ИПД"]
[6,"Лена","ИПД"]
[7,"Оля","РШ"]
[8,"Таня","ЮТ "]
[9,"Юра","МШ"]
[10,"Миша","МШ"]
[11,"Саша","ИПД"]

{"sheet":"Основной","index":1,"n_rows":1301,"n_cols":13,"rows_kept":1301,"cut":false,"hidden":false,"merged":[[0,11,0,12]]}
[null,"Дата ","Сумма","Плательщик","БНФ/П","Получатель","П/БНФ","Формат","Комментарий",null,{"$f":"TODAY()","v":"2019-08-15"},{"$f":"L2+M2","v":1250}]
[null,"2019-08-05",200,"Миша",{"$f":"IFERROR(VLOOKUP($D2,Справочник!$B:$C,2,FALSE),\"\")","v":"МШ"},"Сережа",{"$f":"IFERROR(VLOOKUP(F2,Справочник!B:C,2,FALSE),\"\")","v":"ЮТ "},null,null,null,"детали ",{"$f":"SUMIF($C:$C,\">0\")","v":1250},{"$f":"SUMIF($C:$C,\"<0\")","v":0}]
[null,"2019-08-06",100,"Саша",{"$f":"IFERROR(VLOOKUP($D3,Справочник!$B:$C,2,FALSE),\"\")","v":"ИПД"},"Юра",{"$f":"IFERROR(VLOOKUP(F3,Справочник!B:C,2,FALSE),\"\")","v":"МШ"}]
[null,"2019-08-07",300,"Сережа",{"$f":"IFERROR(VLOOKUP($D4,Справочник!$B:$C,2,FALSE),\"\")","v":"ЮТ "},"Паша",{"$f":"IFERROR(VLOOKUP(F4,Справочник!B:C,2,FALSE),\"\")","v":"МА"}]
[null,"2019-08-08",150,"Оля",{"$f":"IFERROR(VLOOKUP($D5,Справочник!$B:$C,2,FALSE),\"\")","v":"РШ"},"Таня","ют"]
[null,"2019-08-09",500,"Таня",{"$f":"IFERROR(VLOOKUP($D6,Справочник!$B:$C,2,FALSE),\"\")","v":"ЮТ "},"Лена",{"$f":"IFERROR(VLOOKUP(F6,Справочник!B:C,2,FALSE),\"\")","v":"ИПД"}]
[null,null,null,null,{"$f":"IFERROR(VLOOKUP($D7,Справочник!$B:$C,2,FALSE),\"\")","v":""},"Таня",{"$f":"IFERROR(VLOOKUP(F7,Справочник!B:C,2,FALSE),\"\")","v":"ЮТ "}]
[null,null,null,null,{"$f":"IFERROR(VLOOKUP($D8,Справочник!$B:$C,2,FALSE),\"\")","v":""},null,{"$f":"IFERROR(VLOOKUP(F8,Справочник!B:C,2,FALSE),\"\")","v":""}]
[null,null,null,null,{"$f":"IFERROR(VLOOKUP($D9,Справочник!$B:$C,2,FALSE),\"\")","v":""},null,{"$f":"IFERROR(VLOOKUP(F9,Справочник!B:C,2,FALSE),\"\")","v":""}]
[null,null,null,null,{"$f":"IFERROR(VLOOKUP($D10,Справочник!$B:$C,2,FALSE),\"\")","v":""},null,{"$f":"IFERROR(VLOOKUP(F10,Справочник!B:C,2,FALSE),\"\")","v":""}]
[null,null,null,null,{"$f":"IFERROR(VLOOKUP($D11,Справочник!$B:$C,2,FALSE),\"\")","v":""},null,{"$f":"IFERROR(VLOOKUP(F11,Справочник!B:C,2,FALSE),\"\")","v":""}]
[null,null,null,null,{"$f":"IFERROR(VLOOKUP($D12,Справочник!$B:$C,2,FALSE),\"\")","v":""},null,{"$f":"IFERROR(VLOOKUP(F12,Справочник!B:C,2,FALSE),\"\")","v":""}]
[null,null,null,null,{"$f":"IFERROR(VLOOKUP($D13,Справочник!$B:$C,2,FALSE),\"\")","v":""},null,{"$f":"IFERROR(VLOOKUP(F13,Справочник!B:C,2,FALSE),\"\")","v":""}]
[null,null,null,null,{"$f":"IFERROR(VLOOKUP($D14,Справочник!$B:$C,2,FALSE),\"\")","v":""},null,{"$f":"IFERROR(VLOOKUP(F14,Справочник!B:C,2,FALSE),\"\")","v":""}]
[null,null,null,null,{"$f":"IFERROR(VLOOKUP($D15,Справочник!$B:$C,2,FALSE),\"\")","v":""},null,{"$f":"IFERROR(VLOOKUP(F15,Справочник!B:C,2,FALSE),\"\")","v":""}]
[null,null,null,null,{"$f":"IFERROR(VLOOKUP($D16,Справочник!$B:$C,2,FALSE),\"\")","v":""},null,{"$f":"IFERROR(VLOOKUP(F16,Справочник!B:C,2,FALSE),\"\")","v":""}]
[null,null,null,null,{"$f":"IFERROR(VLOOKUP($D17,Справочник!$B:$C,2,FALSE),\"\")","v":""},null,{"$f":"IFERROR(VLOOKUP(F17,Справочник!B:C,2,FALSE),\"\")","v":""}]
[null,null,null,null,{"$f":"IFERROR(VLOOKUP($D18,Справочник!$B:$C,2,FALSE),\"\")","v":""},null,{"$f":"IFERROR(VLOOKUP(F18,Справочник!B:C,2,FALSE),\"\")","v":""}]
[null,null,null,null,{"$f":"IFERROR(VLOOKUP($D19,Справочник!$B:$C,2,FALSE),\"\")","v":""},null,{"$f":"IFERROR(VLOOKUP(F19,Справочник!B:C,2,FALSE),\"\")","v":""}]
[null,null,null,null,{"$f":"IFERROR(VLOOKUP($D20,Справочник!$B:$C,2,FALSE),\"\")","v":""},null,{"$f":"IFERROR(VLOOKUP(F20,Справочник!B:C,2,FALSE),\"\")","v":""}]
[null,null,null,null,{"$f":"IFERROR(VLOOKUP($D21,Справочник!$B:$C,2,FALSE),\"\")","v":""},null,{"$f":"IFERROR(VLOOKUP(F21,Справочник!B:C,2,FALSE),\"\")","v":""}]
[null,null,null,null,{"$f":"IFERROR(VLOOKUP($D22,Справочник!$B:$C,2,FALSE),\"\")","v":""},null,{"$f":"IFERROR(VLOOKUP(F22,Справочник!B:C,2,FALSE),\"\")","v":""}]
[null,null,null,null,{"$f":"IFERROR(VLOOKUP($D23,Справочник!$B:$C,2,FALSE),\"\")","v":""},null,{"$f":"IFERROR(VLOOKUP(F23,Справочник!B:C,2,FALSE),\"\")","v":""}]
[null,null,null,null,{"$f":"IFERROR(VLOOKUP($D24,Справочник!$B:$C,2,FALSE),\"\")","v":""},null,{"$f":"IFERROR(VLOOKUP(F24,Справочник!B:C,2,FALSE),\"\")","v":""}]
[null,null,null,null,{"$f":"IFERROR(VLOOKUP($D25,Справочник!$B:$C,2,FALSE),\"\")","v":""},null,{"$f":"IFERROR(VLOOKUP(F25,Справочник!B:C,2,FALSE),\"\")","v":""}]
[null,null,null,null,{"$f":"IFERROR(VLOOKUP($D26,Справочник!$B:$C,2,FALSE),\"\")","v":""},null,{"$f":"IFERROR(VLOOKUP(F26,Справочник!B:C,2,FALSE),\"\")","v":""}]
[null,null,null,null,{"$f":"IFERROR(VLOOKUP($D27,Справочник!$B:$C,2,FALSE),\"\")","v":""},null,{"$f":"IFERROR(VLOOKUP(F27,Справочник!B:C,2,FALSE),\"\")","v":""}]
[null,null,null,null,{"$f":"IFERROR(VLOOKUP($D28,Справочник!$B:$C,2,FALSE),\"\")","v":""},null,{"$f":"IFERROR(VLOOKUP(F28,Справочник!B:C,2,FALSE),\"\")","v":""}]
[null,null,null,null,{"$f":"IFERROR(VLOOKUP($D29,Справочник!$B:$C,2,FALSE),\"\")","v":""},null,{"$f":"IFERROR(VLOOKUP(F29,Справочник!B:C,2,FALSE),\"\")","v":""}]
[null,null,null,null,{"$f":"IFERROR(VLOOKUP($D30,Справочник!$B:$C,2,FALSE),\"\")","v":""},null,{"$f":"IFERROR(VLOOKUP(F30,Справочник!B:C,2,FALSE),\"\")","v":""}]
[null,null,null,null,{"$f":"IFERROR(VLOOKUP($D31,Справочник!$B:$C,2,FALSE),\"\")","v":""},null,{"$f":"IFERROR(VLOOKUP(F31,Справочник!B:C,2,FALSE),\"\")","v":""}]
[null,null,null,null,{"$f":"IFERROR(VLOOKUP($D32,Справочник!$B:$C,2,FALSE),\"\")","v":""},null,{"$f":"IFERROR(VLOOKUP(F32,Справочник!B:C,2,FALSE),\"\")","v":""}]
[null,null,null,null,{"$f":"IFERROR(VLOOKUP($D33,Справочник!$B:$C,2,FALSE),\"\")","v":""},null,{"$f":"IFERROR(VLOOKUP(F33,Справочник!B:C,2,FALSE),\"\")","v":""}]
[null,null,null,null,{"$f":"IFERROR(VLOOKUP($D34,Справочник!$B:$C,2,FALSE),\"\")","v":""},null,{"$f":"IFERROR(VLOOKUP(F34,Справочник!B:C,2,FALSE),\"\")","v":""}]
[null,null,null,null,{"$f":"IFERROR(VLOOKUP($D35,Справочник!$B:$C,2,FALSE),\"\")","v":""},null,{"$f":"IFERROR(VLOOKUP(F35,Справочник!B:C,2,FALSE),\"\")","v":""}]
[null,null,null,null,{"$f":"IFERROR(VLOOKUP($D36,Справочник!$B:$C,2,FALSE),\"\")","v":""},null,{"$f":"IFERROR(VLOOKUP(F36,Справочник!B:C,2,FALSE),\"\")","v":""}]
[null,null,null,null,{"$f":"IFERROR(VLOOKUP($D37,Справочник!$B:$C,2,FALSE),\"\")","v":""},null,{"$f":"IFERROR(VLOOKUP(F37,Справочник!B:C,2,FALSE),\"\")","v":""}]
[null,null,null,null,{"$f":"IFERROR(VLOOKUP($D38,Справочник!$B:$C,2,FALSE),\"\")","v":""},null,{"$f":"IFERROR(VLOOKUP(F38,Справочник!B:C,2,FALSE),\"\")","v":""}]
[null,null,null,null,{"$f":"IFERROR(VLOOKUP($D39,Справочник!$B:$C,2,FALSE),\"\")","v":""},null,{"$f":"IFERROR(VLOOKUP(F39,Справочник!B:C,2,FALSE),\"\")","v":""}]
[null,null,null,null,{"$f":"IFERROR(VLOOKUP($D40,Справочник!$B:$C,2,FALSE),\"\")","v":""},null,{"$f":"IFERROR(VLOOKUP(F40,Справочник!B:C,2,FALSE),\"\")","v":""}]
[null,null,null,null,{"$f":"IFERROR(VLOOKUP($D41,Справочник!$B:$C,2,FALSE),\"\")","v":""},null,{"$f":"IFERROR(VLOOKUP(F41,Справочник!B:C,2,FALSE),\"\")","v":""}]
[null,null,null,null,{"$f":"IFERROR(VLOOKUP($D42,Справочник!$B:$C,2,FALSE),\"\")","v":""},null,{"$f":"IFERROR(VLOOKUP(F42,Справочник!B:C,2,FALSE),\"\")","v":""}]
[null,null,null,null,{"$f":"IFERROR(VLOOKUP($D43,Справочник!$B:$C,2,FALSE),\"\")","v":""},null,{"$f":"IFERROR(VLOOKUP(F43,Справочник!B:C,2,FALSE),\"\")","v":""}]
[null,null,null,null,{"$f":"IFERROR(VLOOKUP($D44,Справочник!$B:$C,2,FALSE),\"\")","v":""},null,{"$f":"IFERROR(VLOOKUP(F44,Справочник!B:C,2,FALSE),\"\")","v":""}]
[null,null,null,null,{"$f":"IFERROR(VLOOKUP($D45,Справочник!$B:$C,2,FALSE),\"\")","v":""},null,{"$f":"IFERROR(VLOOKUP(F45,Справочник!B:C,2,FALSE),\"\")","v":""}]
[null,null,null,null,{"$f":"IFERROR(VLOOKUP($D46,Справочник!$B:$C,2,FALSE),\"\")","v":""},null,{"$f":"IFERROR(VLOOKUP(F46,Справочник!B:C,2,FALSE),\"\")","v":""}]
[null,null,null,null,{"$f":"IFERROR(VLOOKUP($D47,Справочник!$B:$C,2,FALSE),\"\")","v":""},null,{"$f":"IFERROR(VLOOKUP(F47,Справочник!B:C,2,FALSE),\"\")","v":""}]
[null,null,null,null,{"$f":"IFERROR(VLOOKUP($D48,Справочник!$B:$C,2,FALSE),\"\")","v":""},null,{"$f":"IFERROR(VLOOKUP(F48,Справочник!B:C,2,FALSE),\"\")","v":""}]
[null,null,null,null,{"$f":"IFERROR(VLOOKUP($D49,Справочник!$B:$C,2,FALSE),\"\")","v":""},null,{"$f":"IFERROR(VLOOKUP(F49,Справочник!B:C,2,FALSE),\"\")","v":""}]
[null,null,null,null,{"$f":"IFERROR(VLOOKUP($D50,Справочник!$B:$C,2,FALSE),\"\")","v":""},null,{"$f":"IFERROR(VLOOKUP(F50,Справочник!B:C,2,FALSE),\"\")","v":""}]
[null,null,null,null,{"$f":"IFERROR(VLOOKUP($D51,Справочник!$B:$C,2,FALSE),\"\")","v":""},null,{"$f":"IFERROR(VLOOKUP(F51,Справочник!B:C,2,FALSE),\"\")","v":""}]
[null,null,null,null,{"$f":"IFERROR(VLOOKUP($D52,Справочник!$B:$C,2,FALSE),\"\")","v":""},null,{"$f":"IFERROR(VLOOKUP(F52,Справочник!B:C,2,FALSE),\"\")","v":""}]
[null,null,null,null,{"$f":"IFERROR(VLOOKUP($D53,Справочник!$B:$C,2,FALSE),\"\")","v":""},null,{"$f":"IFERROR(VLOOKUP(F53,Справочник!B:C,2,FALSE),\"\")","v":""}]
[null,null,null,null,{"$f":"IFERROR(VLOOKUP($D54,Справочник!$B:$C,2,FALSE),\"\")","v":""},null,{"$f":"IFERROR(VLOOKUP(F54,Справочник!B:C,2,FALSE),\"\")","v":""}]
[null,null,null,null,{"$f":"IFERROR(VLOOKUP($D55,Справочник!$B:$C,2,FALSE),\"\")","v":""},null,{"$f":"IFERROR(VLOOKUP(F55,Справочник!B:C,2,FALSE),\"\")","v":""}]
[null,null,null,null,{"$f":"IFERROR(VLOOKUP($D56,Справочник!$B:$C,2,FALSE),\"\")","v":""},null,{"$f":"IFERROR(VLOOKUP(F56,Справочник!B:C,2,FALSE),\"\")","v":""}]
[null,null,null,null,{"$f":"IFERROR(VLOOKUP($D57,Справочник!$B:$C,2,FALSE),\"\")","v":""},null,{"$f":"IFERROR(VLOOKUP(F57,Справочник!B:C,2,FALSE),\"\")","v":""}]
[null,null,null,null,{"$f":"IFERROR(VLOOKUP($D58,Справочник!$B:$C,2,FALSE),\"\")","v":""},null,{"$f":"IFERROR(VLOOKUP(F58,Справочник!B:C,2,FALSE),\"\")","v":""}]
[null,null,null,null,{"$f":"IFERROR(VLOOKUP($D59,Справочник!$B:$C,2,FALSE),\"\")","v":""},null,{"$f":"IFERROR(VLOOKUP(F59,Справочник!B:C,2,FALSE),\"\")","v":""}]
[null,null,null,null,{"$f":"IFERROR(VLOOKUP($D60,Справочник!$B:$C,2,FALSE),\"\")","v":""},null,{"$f":"IFERROR(VLOOKUP(F60,Справочник!B:C,2,FALSE),\"\")","v":""}]
[null,null,null,null,{"$f":"IFERROR(VLOOKUP($D61,Справочник!$B:$C,2,FALSE),\"\")","v":""},null,{"$f":"IFERROR(VLOOKUP(F61,Справочник!B:C,2,FALSE),\"\")","v":""}]
[null,null,null,null,{"$f":"IFERROR(VLOOKUP($D62,Справочник!$B:$C,2,FALSE),\"\")","v":""},null,{"$f":"IFERROR(VLOOKUP(F62,Справочник!B:C,2,FALSE),\"\")","v":""}]
[null,null,null,null,{"$f":"IFERROR(VLOOKUP($D63,Справочник!$B:$C,2,FALSE),\"\")","v":""},null,{"$f":"IFERROR(VLOOKUP(F63,Справочник!B:C,2,FALSE),\"\")","v":""}]
[null,null,null,null,{"$f":"IFERROR(VLOOKUP($D64,Справочник!$B:$C,2,FALSE),\"\")","v":""},null,{"$f":"IFERROR(VLOOKUP(F64,Справочник!B:C,2,FALSE),\"\")","v":""}]
[null,null,null,null,{"$f":"IFERROR(VLOOKUP($D65,Справочник!$B:$C,2,FALSE),\"\")","v":""},null,{"$f":"IFERROR(VLOOKUP(F65,Справочник!B:C,2,FALSE),\"\")","v":""}]
[null,null,null,null,{"$f":"IFERROR(VLOOKUP($D66,Справочник!$B:$C,2,FALSE),\"\")","v":""},null,{"$f":"IFERROR(VLOOKUP(F66,Справочник!B:C,2,FALSE),\"\")","v":""}]
[null,null,null,null,{"$f":"IFERROR(VLOOKUP($D67,Справочник!$B:$C,2,FALSE),\"\")","v":""},null,{"$f":"IFERROR(VLOOKUP(F67,Справочник!B:C,2,FALSE),\"\")","v":""}]
[null,null,null,null,{"$f":"IFERROR(VLOOKUP($D68,Справочник!$B:$C,2,FALSE),\"\")","v":""},null,{"$f":"IFERROR(VLOOKUP(F68,Справочник!B:C,2,FALSE),\"\")","v":""}]
[null,null,null,null,{"$f":"IFERROR(VLOOKUP($D69,Справочник!$B:$C,2,FALSE),\"\")","v":""},null,{"$f":"IFERROR(VLOOKUP(F69,Справочник!B:C,2,FALSE),\"\")","v":""}]
[null,null,null,null,{"$f":"IFERROR(VLOOKUP($D70,Справочник!$B:$C,2,FALSE),\"\")","v":""},null,{"$f":"IFERROR(VLOOKUP(F70,Справочник!B:C,2,FALSE),\"\")","v":""}]
[null,null,null,null,{"$f":"IFERROR(VLOOKUP($D71,Справочник!$B:$C,2,FALSE),\"\")","v":""},null,{"$f":"IFERROR(VLOOKUP(F71,Справочник!B:C,2,FALSE),\"\")","v":""}]
[null,null,null,null,{"$f":"IFERROR(VLOOKUP($D72,Справочник!$B:$C,2,FALSE),\"\")","v":""},null,{"$f":"IFERROR(VLOOKUP(F72,Справочник!B:C,2,FALSE),\"\")","v":""}]
[null,null,null,null,{"$f":"IFERROR(VLOOKUP($D73,Справочник!$B:$C,2,FALSE),\"\")","v":""},null,{"$f":"IFERROR(VLOOKUP(F73,Справочник!B:C,2,FALSE),\"\")","v":""}]
[null,null,null,null,{"$f":"IFERROR(VLOOKUP($D74,Справочник!$B:$C,2,FALSE),\"\")","v":""},null,{"$f":"IFERROR(VLOOKUP(F74,Справочник!B:C,2,FALSE),\"\")","v":""}]
[null,null,null,null,{"$f":"IFERROR(VLOOKUP($D75,Справочник!$B:$C,2,FALSE),\"\")","v":""},null,{"$f":"IFERROR(VLOOKUP(F75,Справочник!B:C,2,FALSE),\"\")","v":""}]
[null,null,null,null,{"$f":"IFERROR(VLOOKUP($D76,Справочник!$B:$C,2,FALSE),\"\")","v":""},null,{"$f":"IFERROR(VLOOKUP(F76,Справочник!B:C,2,FALSE),\"\")","v":""}]
[null,null,null,null,{"$f":"IFERROR(VLOOKUP($D77,Справочник!$B:$C,2,FALSE),\"\")","v":""},null,{"$f":"IFERROR(VLOOKUP(F77,Справочник!B:C,2,FALSE),\"\")","v":""}]
[null,null,null,null,{"$f":"IFERROR(VLOOKUP($D78,Справочник!$B:$C,2,FALSE),\"\")","v":""},null,{"$f":"IFERROR(VLOOKUP(F78,Справочник!B:C,2,FALSE),\"\")","v":""}]
[null,null,null,null,{"$f":"IFERROR(VLOOKUP($D79,Справочник!$B:$C,2,FALSE),\"\")","v":""},null,{"$f":"IFERROR(VLOOKUP(F79,Справочник!B:C,2,FALSE),\"\")","v":""}]
[null,null,null,null,{"$f":"IFERROR(VLOOKUP($D80,Справочник!$B:$C,2,FALSE),\"\")","v":""},null,{"$f":"IFERROR(VLOOKUP(F80,Справочник!B:C,2,FALSE),\"\")","v":""}]
[null,null,null,null,{"$f":"IFERROR(VLOOKUP($D81,Справочник!$B:$C,2,FALSE),\"\")","v":""},null,{"$f":"IFERROR(VLOOKUP(F81,Справочник!B:C,2,FALSE),\"\")","v":""}]
[null,null,null,null,{"$f":"IFERROR(VLOOKUP($D82,Справочник!$B:$C,2,FALSE),\"\")","v":""},null,{"$f":"IFERROR(VLOOKUP(F82,Справочник!B:C,2,FALSE),\"\")","v":""}]
[null,null,null,null,{"$f":"IFERROR(VLOOKUP($D83,Справочник!$B:$C,2,FALSE),\"\")","v":""},null,{"$f":"IFERROR(VLOOKUP(F83,Справочник!B:C,2,FALSE),\"\")","v":""}]
[null,null,null,null,{"$f":"IFERROR(VLOOKUP($D84,Справочник!$B:$C,2,FALSE),\"\")","v":""},null,{"$f":"IFERROR(VLOOKUP(F84,Справочник!B:C,2,FALSE),\"\")","v":""}]
[null,null,null,null,{"$f":"IFERROR(VLOOKUP($D85,Справочник!$B:$C,2,FALSE),\"\")","v":""},null,{"$f":"IFERROR(VLOOKUP(F85,Справочник!B:C,2,FALSE),\"\")","v":""}]
[null,null,null,null,{"$f":"IFERROR(VLOOKUP($D86,Справочник!$B:$C,2,FALSE),\"\")","v":""},null,{"$f":"IFERROR(VLOOKUP(F86,Справочник!B:C,2,FALSE),\"\")","v":""}]
[null,null,null,null,{"$f":"IFERROR(VLOOKUP($D87,Справочник!$B:$C,2,FALSE),\"\")","v":""},null,{"$f":"IFERROR(VLOOKUP(F87,Справочник!B:C,2,FALSE),\"\")","v":""}]
[null,null,null,null,{"$f":"IFERROR(VLOOKUP($D88,Справочник!$B:$C,2,FALSE),\"\")","v":""},null,{"$f":"IFERROR(VLOOKUP(F88,Справочник!B:C,2,FALSE),\"\")","v":""}]
[null,null,null,null,{"$f":"IFERROR(VLOOKUP($D89,Справочник!$B:$C,2,FALSE),\"\")","v":""},null,{"$f":"IFERROR(VLOOKUP(F89,Справочник!B:C,2,FALSE),\"\")","v":""}]
[null,null,null,null,{"$f":"IFERROR(VLOOKUP($D90,Справочник!$B:$C,2,FALSE),\"\")","v":""},null,{"$f":"IFERROR(VLOOKUP(F90,Справочник!B:C,2,FALSE),\"\")","v":""}]
[null,null,null,null,{"$f":"IFERROR(VLOOKUP($D91,Справочник!$B:$C,2,FALSE),\"\")","v":""},null,{"$f":"IFERROR(VLOOKUP(F91,Справочник!B:C,2,FALSE),\"\")","v":""}]
[null,null,null,null,{"$f":"IFERROR(VLOOKUP($D92,Справочник!$B:$C,2,FALSE),\"\")","v":""},null,{"$f":"IFERROR(VLOOKUP(F92,Справочник!B:C,2,FALSE),\"\")","v":""}]
[null,null,null,null,{"$f":"IFERROR(VLOOKUP($D93,Справочник!$B:$C,2,FALSE),\"\")","v":""},null,{"$f":"IFERROR(VLOOKUP(F93,Справочник!B:C,2,FALSE),\"\")","v":""}]
[null,null,null,null,{"$f":"IFERROR(VLOOKUP($D94,Справочник!$B:$C,2,FALSE),\"\")","v":""},null,{"$f":"IFERROR(VLOOKUP(F94,Справочник!B:C,2,FALSE),\"\")","v":""}]
[null,null,null,null,{"$f":"IFERROR(VLOOKUP($D95,Справочник!$B:$C,2,FALSE),\"\")","v":""},null,{"$f":"IFERROR(VLOOKUP(F95,Справочник!B:C,2,FALSE),\"\")","v":""}]
[null,null,null,null,{"$f":"IFERROR(VLOOKUP($D96,Справочник!$B:$C,2,FALSE),\"\")","v":""},null,{"$f":"IFERROR(VLOOKUP(F96,Справочник!B:C,2,FALSE),\"\")","v":""}]
[null,null,null,null,{"$f":"IFERROR(VLOOKUP($D97,Справочник!$B:$C,2,FALSE),\"\")","v":""},null,{"$f":"IFERROR(VLOOKUP(F97,Справочник!B:C,2,FALSE),\"\")","v":""}]
[null,null,null,null,{"$f":"IFERROR(VLOOKUP($D98,Справочник!$B:$C,2,FALSE),\"\")","v":""},null,{"$f":"IFERROR(VLOOKUP(F98,Справочник!B:C,2,FALSE),\"\")","v":""}]
[null,null,null,null,{"$f":"IFERROR(VLOOKUP($D99,Справочник!$B:$C,2,FALSE),\"\")","v":""},null,{"$f":"IFERROR(VLOOKUP(F99,Справочник!B:C,2,FALSE),\"\")","v":""}]
[null,null,null,null,{"$f":"IFERROR(VLOOKUP($D100,Справочник!$B:$C,2,FALSE),\"\")","v":""},null,{"$f":"IFERROR(VLOOKUP(F100,Справочник!B:C,2,FALSE),\"\")","v":""}]
[null,null,null,null,{"$f":"IFERROR(VLOOKUP($D101,Справочник!$B:$C,2,FALSE),\"\")","v":""},null,{"$f":"IFERROR(VLOOKUP(F101,Справочник!B:C,2,FALSE),\"\")","v":""}]
[null,null,null,null,{"$f":"IFERROR(VLOOKUP($D102,Справочник!$B:$C,2,FALSE),\"\")","v":""},null,{"$f":"IFERROR(VLOOKUP(F102,Справочник!B:C,2,FALSE),\"\")","v":""}]
[null,null,null,null,{"$f":"IFERROR(VLOOKUP($D103,Справочник!$B:$C,2,FALSE),\"\")","v":""},null,{"$f":"IFERROR(VLOOKUP(F103,Справочник!B:C,2,FALSE),\"\")","v":""}]
[null,null,null,null,{"$f":"IFERROR(VLOOKUP($D104,Справочник!$B:$C,2,FALSE),\"\")","v":""},null,{"$f":"IFERROR(VLOOKUP(F104,Справочник!B:C,2,FALSE),\"\")","v":""}]
[null,null,null,null,{"$f":"IFERROR(VLOOKUP($D105,Справочник!$B:$C,2,FALSE),\"\")","v":""},null,{"$f":"IFERROR(VLOOKUP(F105,Справочник!B:C,2,FALSE),\"\")","v":""}]
[null,null,null,null,{"$f":"IFERROR(VLOOKUP($D106,Справочник!$B:$C,2,FALSE),\"\")","v":""},null,{"$f":"IFERROR(VLOOKUP(F106,Справочник!B:C,2,FALSE),\"\")","v":""}]
[null,null,null,null,{"$f":"IFERROR(VLOOKUP($D107,Справочник!$B:$C,2,FALSE),\"\")","v":""},null,{"$f":"IFERROR(VLOOKUP(F107,Справочник!B:C,2,FALSE),\"\")","v":""}]
[null,null,null,null,{"$f":"IFERROR(VLOOKUP($D108,Справочник!$B:$C,2,FALSE),\"\")","v":""},null,{"$f":"IFERROR(VLOOKUP(F108,Справочник!B:C,2,FALSE),\"\")","v":""}]
[null,null,null,null,{"$f":"IFERROR(VLOOKUP($D109,Справочник!$B:$C,2,FALSE),\"\")","v":""},null,{"$f":"IFERROR(VLOOKUP(F109,Справочник!B:C,2,FALSE),\"\")","v":""}]
[null,null,null,null,{"$f":"IFERROR(VLOOKUP($D110,Справочник!$B:$C,2,FALSE),\"\")","v":""},null,{"$f":"IFERROR(VLOOKUP(F110,Справочник!B:C,2,FALSE),\"\")","v":""}]
[null,null,null,null,{"$f":"IFERROR(VLOOKUP($D111,Справочник!$B:$C,2,FALSE),\"\")","v":""},null,{"$f":"IFERROR(VLOOKUP(F111,Справочник!B:C,2,FALSE),\"\")","v":""}]
[null,null,null,null,{"$f":"IFERROR(VLOOKUP($D112,Справочник!$B:$C,2,FALSE),\"\")","v":""},null,{"$f":"IFERROR(VLOOKUP(F112,Справочник!B:C,2,FALSE),\"\")","v":""}]
[null,null,null,null,{"$f":"IFERROR(VLOOKUP($D113,Справочник!$B:$C,2,FALSE),\"\")","v":""},null,{"$f":"IFERROR(VLOOKUP(F113,Справочник!B:C,2,FALSE),\"\")","v":""}]
[null,null,null,null,{"$f":"IFERROR(VLOOKUP($D114,Справочник!$B:$C,2,FALSE),\"\")","v":""},null,{"$f":"IFERROR(VLOOKUP(F114,Справочник!B:C,2,FALSE),\"\")","v":""}]
[null,null,null,null,{"$f":"IFERROR(VLOOKUP($D115,Справочник!$B:$C,2,FALSE),\"\")","v":""},null,{"$f":"IFERROR(VLOOKUP(F115,Справочник!B:C,2,FALSE),\"\")","v":""}]
[null,null,null,null,{"$f":"IFERROR(VLOOKUP($D116,Справочник!$B:$C,2,FALSE),\"\")","v":""},null,{"$f":"IFERROR(VLOOKUP(F116,Справочник!B:C,2,FALSE),\"\")","v":""}]
[null,null,null,null,{"$f":"IFERROR(VLOOKUP($D117,Справочник!$B:$C,2,FALSE),\"\")","v":""},null,{"$f":"IFERROR(VLOOKUP(F117,Справочник!B:C,2,FALSE),\"\")","v":""}]
[null,null,null,null,{"$f":"IFERROR(VLOOKUP($D118,Справочник!$B:$C,2,FALSE),\"\")","v":""},null,{"$f":"IFERROR(VLOOKUP(F118,Справочник!B:C,2,FALSE),\"\")","v":""}]
[null,null,null,null,{"$f":"IFERROR(VLOOKUP($D119,Справочник!$B:$C,2,FALSE),\"\")","v":""},null,{"$f":"IFERROR(VLOOKUP(F119,Справочник!B:C,2,FALSE),\"\")","v":""}]
[null,null,null,null,{"$f":"IFERROR(VLOOKUP($D120,Справочник!$B:$C,2,FALSE),\"\")","v":""},null,{"$f":"IFERROR(VLOOKUP(F120,Справочник!B:C,2,FALSE),\"\")","v":""}]
[null,null,null,null,{"$f":"IFERROR(VLOOKUP($D121,Справочник!$B:$C,2,FALSE),\"\")","v":""},null,{"$f":"IFERROR(VLOOKUP(F121,Справочник!B:C,2,FALSE),\"\")","v":""}]
[null,null,null,null,{"$f":"IFERROR(VLOOKUP($D122,Справочник!$B:$C,2,FALSE),\"\")","v":""},null,{"$f":"IFERROR(VLOOKUP(F122,Справочник!B:C,2,FALSE),\"\")","v":""}]
[null,null,null,null,{"$f":"IFERROR(VLOOKUP($D123,Справочник!$B:$C,2,FALSE),\"\")","v":""},null,{"$f":"IFERROR(VLOOKUP(F123,Справочник!B:C,2,FALSE),\"\")","v":""}]
[null,null,null,null,{"$f":"IFERROR(VLOOKUP($D124,Справочник!$B:$C,2,FALSE),\"\")","v":""},null,{"$f":"IFERROR(VLOOKUP(F124,Справочник!B:C,2,FALSE),\"\")","v":""}]
[null,null,null,null,{"$f":"IFERROR(VLOOKUP($D125,Справочник!$B:$C,2,FALSE),\"\")","v":""},null,{"$f":"IFERROR(VLOOKUP(F125,Справочник!B:C,2,FALSE),\"\")","v":""}]
[null,null,null,null,{"$f":"IFERROR(VLOOKUP($D126,Справочник!$B:$C,2,FALSE),\"\")","v":""},null,{"$f":"IFERROR(VLOOKUP(F126,Справочник!B:C,2,FALSE),\"\")","v":""}]
[null,null,null,null,{"$f":"IFERROR(VLOOKUP($D127,Справочник!$B:$C,2,FALSE),\"\")","v":""},null,{"$f":"IFERROR(VLOOKUP(F127,Справочник!B:C,2,FALSE),\"\")","v":""}]
[null,null,null,null,{"$f":"IFERROR(VLOOKUP($D128,Справочник!$B:$C,2,FALSE),\"\")","v":""},null,{"$f":"IFERROR(VLOOKUP(F128,Справочник!B:C,2,FALSE),\"\")","v":""}]
[null,null,null,null,{"$f":"IFERROR(VLOOKUP($D129,Справочник!$B:$C,2,FALSE),\"\")","v":""},null,{"$f":"IFERROR(VLOOKUP(F129,Справочник!B:C,2,FALSE),\"\")","v":""}]
[null,null,null,null,{"$f":"IFERROR(VLOOKUP($D130,Справочник!$B:$C,2,FALSE),\"\")","v":""},null,{"$f":"IFERROR(VLOOKUP(F130,Справочник!B:C,2,FALSE),\"\")","v":""}]
[null,null,null,null,{"$f":"IFERROR(VLOOKUP($D131,Справочник!$B:$C,2,FALSE),\"\")","v":""},null,{"$f":"IFERROR(VLOOKUP(F131,Справочник!B:C,2,FALSE),\"\")","v":""}]
[null,null,null,null,{"$f":"IFERROR(VLOOKUP($D132,Справочник!$B:$C,2,FALSE),\"\")","v":""},null,{"$f":"IFERROR(VLOOKUP(F132,Справочник!B:C,2,FALSE),\"\")","v":""}]
[null,null,null,null,{"$f":"IFERROR(VLOOKUP($D133,Справочник!$B:$C,2,FALSE),\"\")","v":""},null,{"$f":"IFERROR(VLOOKUP(F133,Справочник!B:C,2,FALSE),\"\")","v":""}]
[null,null,null,null,{"$f":"IFERROR(VLOOKUP($D134,Справочник!$B:$C,2,FALSE),\"\")","v":""},null,{"$f":"IFERROR(VLOOKUP(F134,Справочник!B:C,2,FALSE),\"\")","v":""}]
[null,null,null,null,{"$f":"IFERROR(VLOOKUP($D135,Справочник!$B:$C,2,FALSE),\"\")","v":""},null,{"$f":"IFERROR(VLOOKUP(F135,Справочник!B:C,2,FALSE),\"\")","v":""}]
[null,null,null,null,{"$f":"IFERROR(VLOOKUP($D136,Справочник!$B:$C,2,FALSE),\"\")","v":""},null,{"$f":"IFERROR(VLOOKUP(F136,Справочник!B:C,2,FALSE),\"\")","v":""}]
[null,null,null,null,{"$f":"IFERROR(VLOOKUP($D137,Справочник!$B:$C,2,FALSE),\"\")","v":""},null,{"$f":"IFERROR(VLOOKUP(F137,Справочник!B:C,2,FALSE),\"\")","v":""}]
[null,null,null,null,{"$f":"IFERROR(VLOOKUP($D138,Справочник!$B:$C,2,FALSE),\"\")","v":""},null,{"$f":"IFERROR(VLOOKUP(F138,Справочник!B:C,2,FALSE),\"\")","v":""}]
[null,null,null,null,{"$f":"IFERROR(VLOOKUP($D139,Справочник!$B:$C,2,FALSE),\"\")","v":""},null,{"$f":"IFERROR(VLOOKUP(F139,Справочник!B:C,2,FALSE),\"\")","v":""}]
[null,null,null,null,{"$f":"IFERROR(VLOOKUP($D140,Справочник!$B:$C,2,FALSE),\"\")","v":""},null,{"$f":"IFERROR(VLOOKUP(F140,Справочник!B:C,2,FALSE),\"\")","v":""}]
[null,null,null,null,{"$f":"IFERROR(VLOOKUP($D141,Справочник!$B:$C,2,FALSE),\"\")","v":""},null,{"$f":"IFERROR(VLOOKUP(F141,Справочник!B:C,2,FALSE),\"\")","v":""}]
[null,null,null,null,{"$f":"IFERROR(VLOOKUP($D142,Справочник!$B:$C,2,FALSE),\"\")","v":""},null,{"$f":"IFERROR(VLOOKUP(F142,Справочник!B:C,2,FALSE),\"\")","v":""}]
[null,null,null,null,{"$f":"IFERROR(VLOOKUP($D143,Справочник!$B:$C,2,FALSE),\"\")","v":""},null,{"$f":"IFERROR(VLOOKUP(F143,Справочник!B:C,2,FALSE),\"\")","v":""}]
[null,null,null,null,{"$f":"IFERROR(VLOOKUP($D144,Справочник!$B:$C,2,FALSE),\"\")","v":""},null,{"$f":"IFERROR(VLOOKUP(F144,Справочник!B:C,2,FALSE),\"\")","v":""}]
[null,null,null,null,{"$f":"IFERROR(VLOOKUP($D145,Справочник!$B:$C,2,FALSE),\"\")","v":""},null,{"$f":"IFERROR(VLOOKUP(F145,Справочник!B:C,2,FALSE),\"\")","v":""}]
[null,null,null,null,{"$f":"IFERROR(VLOOKUP($D146,Справочник!$B:$C,2,FALSE),\"\")","v":""},null,{"$f":"IFERROR(VLOOKUP(F146,Справочник!B:C,2,FALSE),\"\")","v":""}]
[null,null,null,null,{"$f":"IFERROR(VLOOKUP($D147,Справочник!$B:$C,2,FALSE),\"\")","v":""},null,{"$f":"IFERROR(VLOOKUP(F147,Справочник!B:C,2,FALSE),\"\")","v":""}]
[null,null,null,null,{"$f":"IFERROR(VLOOKUP($D148,Справочник!$B:$C,2,FALSE),\"\")","v":""},null,{"$f":"IFERROR(VLOOKUP(F148,Справочник!B:C,2,FALSE),\"\")","v":""}]
[null,null,null,null,{"$f":"IFERROR(VLOOKUP($D149,Справочник!$B:$C,2,FALSE),\"\")","v":""},null,{"$f":"IFERROR(VLOOKUP(F149,Справочник!B:C,2,FALSE),\"\")","v":""}]
[null,null,null,null,{"$f":"IFERROR(VLOOKUP($D150,Справочник!$B:$C,2,FALSE),\"\")","v":""},null,{"$f":"IFERROR(VLOOKUP(F150,Справочник!B:C,2,FALSE),\"\")","v":""}]
[null,null,null,null,{"$f":"IFERROR(VLOOKUP($D151,Справочник!$B:$C,2,FALSE),\"\")","v":""},null,{"$f":"IFERROR(VLOOKUP(F151,Справочник!B:C,2,FALSE),\"\")","v":""}]
[null,null,null,null,{"$f":"IFERROR(VLOOKUP($D152,Справочник!$B:$C,2,FALSE),\"\")","v":""},null,{"$f":"IFERROR(VLOOKUP(F152,Справочник!B:C,2,FALSE),\"\")","v":""}]
[null,null,null,null,{"$f":"IFERROR(VLOOKUP($D153,Справочник!$B:$C,2,FALSE),\"\")","v":""},null,{"$f":"IFERROR(VLOOKUP(F153,Справочник!B:C,2,FALSE),\"\")","v":""}]
[null,null,null,null,{"$f":"IFERROR(VLOOKUP($D154,Справочник!$B:$C,2,FALSE),\"\")","v":""},null,{"$f":"IFERROR(VLOOKUP(F154,Справочник!B:C,2,FALSE),\"\")","v":""}]
[null,null,null,null,{"$f":"IFERROR(VLOOKUP($D155,Справочник!$B:$C,2,FALSE),\"\")","v":""},null,{"$f":"IFERROR(VLOOKUP(F155,Справочник!B:C,2,FALSE),\"\")","v":""}]
[null,null,null,null,{"$f":"IFERROR(VLOOKUP($D156,Справочник!$B:$C,2,FALSE),\"\")","v":""},null,{"$f":"IFERROR(VLOOKUP(F156,Справочник!B:C,2,FALSE),\"\")","v":""}]
[null,null,null,null,{"$f":"IFERROR(VLOOKUP($D157,Справочник!$B:$C,2,FALSE),\"\")","v":""},null,{"$f":"IFERROR(VLOOKUP(F157,Справочник!B:C,2,FALSE),\"\")","v":""}]
[null,null,null,null,{"$f":"IFERROR(VLOOKUP($D158,Справочник!$B:$C,2,FALSE),\"\")","v":""},null,{"$f":"IFERROR(VLOOKUP(F158,Справочник!B:C,2,FALSE),\"\")","v":""}]
[null,null,null,null,{"$f":"IFERROR(VLOOKUP($D159,Справочник!$B:$C,2,FALSE),\"\")","v":""},null,{"$f":"IFERROR(VLOOKUP(F159,Справочник!B:C,2,FALSE),\"\")","v":""}]
[null,null,null,null,{"$f":"IFERROR(VLOOKUP($D160,Справочник!$B:$C,2,FALSE),\"\")","v":""},null,{"$f":"IFERROR(VLOOKUP(F160,Справочник!B:C,2,FALSE),\"\")","v":""}]
[null,null,null,null,{"$f":"IFERROR(VLOOKUP($D161,Справочник!$B:$C,2,FALSE),\"\")","v":""},null,{"$f":"IFERROR(VLOOKUP(F161,Справочник!B:C,2,FALSE),\"\")","v":""}]
[null,null,null,null,{"$f":"IFERROR(VLOOKUP($D162,Справочник!$B:$C,2,FALSE),\"\")","v":""},null,{"$f":"IFERROR(VLOOKUP(F162,Справочник!B:C,2,FALSE),\"\")","v":""}]
[null,null,null,null,{"$f":"IFERROR(VLOOKUP($D163,Справочник!$B:$C,2,FALSE),\"\")","v":""},null,{"$f":"IFERROR(VLOOKUP(F163,Справочник!B:C,2,FALSE),\"\")","v":""}]
[null,null,null,null,{"$f":"IFERROR(VLOOKUP($D164,Справочник!$B:$C,2,FALSE),\"\")","v":""},null,{"$f":"IFERROR(VLOOKUP(F164,Справочник!B:C,2,FALSE),\"\")","v":""}]
[null,null,null,null,{"$f":"IFERROR(VLOOKUP($D165,Справочник!$B:$C,2,FALSE),\"\")","v":""},null,{"$f":"IFERROR(VLOOKUP(F165,Справочник!B:C,2,FALSE),\"\")","v":""}]
[null,null,null,null,{"$f":"IFERROR(VLOOKUP($D166,Справочник!$B:$C,2,FALSE),\"\")","v":""},null,{"$f":"IFERROR(VLOOKUP(F166,Справочник!B:C,2,FALSE),\"\")","v":""}]
[null,null,null,null,{"$f":"IFERROR(VLOOKUP($D167,Справочник!$B:$C,2,FALSE),\"\")","v":""},null,{"$f":"IFERROR(VLOOKUP(F167,Справочник!B:C,2,FALSE),\"\")","v":""}]
[null,null,null,null,{"$f":"IFERROR(VLOOKUP($D168,Справочник!$B:$C,2,FALSE),\"\")","v":""},null,{"$f":"IFERROR(VLOOKUP(F168,Справочник!B:C,2,FALSE),\"\")","v":""}]
[null,null,null,null,{"$f":"IFERROR(VLOOKUP($D169,Справочник!$B:$C,2,FALSE),\"\")","v":""},null,{"$f":"IFERROR(VLOOKUP(F169,Справочник!B:C,2,FALSE),\"\")","v":""}]
[null,null,null,null,{"$f":"IFERROR(VLOOKUP($D170,Справочник!$B:$C,2,FALSE),\"\")","v":""},null,{"$f":"IFERROR(VLOOKUP(F170,Справочник!B:C,2,FALSE),\"\")","v":""}]
[null,null,null,null,{"$f":"IFERROR(VLOOKUP($D171,Справочник!$B:$C,2,FALSE),\"\")","v":""},null,{"$f":"IFERROR(VLOOKUP(F171,Справочник!B:C,2,FALSE),\"\")","v":""}]
[null,null,null,null,{"$f":"IFERROR(VLOOKUP($D172,Справочник!$B:$C,2,FALSE),\"\")","v":""},null,{"$f":"IFERROR(VLOOKUP(F172,Справочник!B:C,2,FALSE),\"\")","v":""}]
[null,null,null,null,{"$f":"IFERROR(VLOOKUP($D173,Справочник!$B:$C,2,FALSE),\"\")","v":""},null,{"$f":"IFERROR(VLOOKUP(F173,Справочник!B:C,2,FALSE),\"\")","v":""}]
[null,null,null,null,{"$f":"IFERROR(VLOOKUP($D174,Справочник!$B:$C,2,FALSE),\"\")","v":""},null,{"$f":"IFERROR(VLOOKUP(F174,Справочник!B:C,2,FALSE),\"\")","v":""}]
[null,null,null,null,{"$f":"IFERROR(VLOOKUP($D175,Справочник!$B:$C,2,FALSE),\"\")","v":""},null,{"$f":"IFERROR(VLOOKUP(F175,Справочник!B:C,2,FALSE),\"\")","v":""}]
[null,null,null,null,{"$f":"IFERROR(VLOOKUP($D176,Справочник!$B:$C,2,FALSE),\"\")","v":""},null,{"$f":"IFERROR(VLOOKUP(F176,Справочник!B:C,2,FALSE),\"\")","v":""}]
[null,null,null,null,{"$f":"IFERROR(VLOOKUP($D177,Справочник!$B:$C,2,FALSE),\"\")","v":""},null,{"$f":"IFERROR(VLOOKUP(F177,Справочник!B:C,2,FALSE),\"\")","v":""}]
[null,null,null,null,{"$f":"IFERROR(VLOOKUP($D178,Справочник!$B:$C,2,FALSE),\"\")","v":""},null,{"$f":"IFERROR(VLOOKUP(F178,Справочник!B:C,2,FALSE),\"\")","v":""}]
[null,null,null,null,{"$f":"IFERROR(VLOOKUP($D179,Справочник!$B:$C,2,FALSE),\"\")","v":""},null,{"$f":"IFERROR(VLOOKUP(F179,Справочник!B:C,2,FALSE),\"\")","v":""}]
[null,null,null,null,{"$f":"IFERROR(VLOOKUP($D180,Справочник!$B:$C,2,FALSE),\"\")","v":""},null,{"$f":"IFERROR(VLOOKUP(F180,Справочник!B:C,2,FALSE),\"\")","v":""}]
[null,null,null,null,{"$f":"IFERROR(VLOOKUP($D181,Справочник!$B:$C,2,FALSE),\"\")","v":""},null,{"$f":"IFERROR(VLOOKUP(F181,Справочник!B:C,2,FALSE),\"\")","v":""}]
[null,null,null,null,{"$f":"IFERROR(VLOOKUP($D182,Справочник!$B:$C,2,FALSE),\"\")","v":""},null,{"$f":"IFERROR(VLOOKUP(F182,Справочник!B:C,2,FALSE),\"\")","v":""}]
[null,null,null,null,{"$f":"IFERROR(VLOOKUP($D183,Справочник!$B:$C,2,FALSE),\"\")","v":""},null,{"$f":"IFERROR(VLOOKUP(F183,Справочник!B:C,2,FALSE),\"\")","v":""}]
[null,null,null,null,{"$f":"IFERROR(VLOOKUP($D184,Справочник!$B:$C,2,FALSE),\"\")","v":""},null,{"$f":"IFERROR(VLOOKUP(F184,Справочник!B:C,2,FALSE),\"\")","v":""}]
[null,null,null,null,{"$f":"IFERROR(VLOOKUP($D185,Справочник!$B:$C,2,FALSE),\"\")","v":""},null,{"$f":"IFERROR(VLOOKUP(F185,Справочник!B:C,2,FALSE),\"\")","v":""}]
[null,null,null,null,{"$f":"IFERROR(VLOOKUP($D186,Справочник!$B:$C,2,FALSE),\"\")","v":""},null,{"$f":"IFERROR(VLOOKUP(F186,Справочник!B:C,2,FALSE),\"\")","v":""}]
[null,null,null,null,{"$f":"IFERROR(VLOOKUP($D187,Справочник!$B:$C,2,FALSE),\"\")","v":""},null,{"$f":"IFERROR(VLOOKUP(F187,Справочник!B:C,2,FALSE),\"\")","v":""}]
[null,null,null,null,{"$f":"IFERROR(VLOOKUP($D188,Справочник!$B:$C,2,FALSE),\"\")","v":""},null,{"$f":"IFERROR(VLOOKUP(F188,Справочник!B:C,2,FALSE),\"\")","v":""}]
[null,null,null,null,{"$f":"IFERROR(VLOOKUP($D189,Справочник!$B:$C,2,FALSE),\"\")","v":""},null,{"$f":"IFERROR(VLOOKUP(F189,Справочник!B:C,2,FALSE),\"\")","v":""}]
[null,null,null,null,{"$f":"IFERROR(VLOOKUP($D190,Справочник!$B:$C,2,FALSE),\"\")","v":""},null,{"$f":"IFERROR(VLOOKUP(F190,Справочник!B:C,2,FALSE),\"\")","v":""}]
[null,null,null,null,{"$f":"IFERROR(VLOOKUP($D191,Справочник!$B:$C,2,FALSE),\"\")","v":""},null,{"$f":"IFERROR(VLOOKUP(F191,Справочник!B:C,2,FALSE),\"\")","v":""}]
[null,null,null,null,{"$f":"IFERROR(VLOOKUP($D192,Справочник!$B:$C,2,FALSE),\"\")","v":""},null,{"$f":"IFERROR(VLOOKUP(F192,Справочник!B:C,2,FALSE),\"\")","v":""}]
[null,null,null,null,{"$f":"IFERROR(VLOOKUP($D193,Справочник!$B:$C,2,FALSE),\"\")","v":""},null,{"$f":"IFERROR(VLOOKUP(F193,Справочник!B:C,2,FALSE),\"\")","v":""}]
[null,null,null,null,{"$f":"IFERROR(VLOOKUP($D194,Справочник!$B:$C,2,FALSE),\"\")","v":""},null,{"$f":"IFERROR(VLOOKUP(F194,Справочник!B:C,2,FALSE),\"\")","v":""}]
[null,null,null,null,{"$f":"IFERROR(VLOOKUP($D195,Справочник!$B:$C,2,FALSE),\"\")","v":""},null,{"$f":"IFERROR(VLOOKUP(F195,Справочник!B:C,2,FALSE),\"\")","v":""}]
[null,null,null,null,{"$f":"IFERROR(VLOOKUP($D196,Справочник!$B:$C,2,FALSE),\"\")","v":""},null,{"$f":"IFERROR(VLOOKUP(F196,Справочник!B:C,2,FALSE),\"\")","v":""}]
[null,null,null,null,{"$f":"IFERROR(VLOOKUP($D197,Справочник!$B:$C,2,FALSE),\"\")","v":""},null,{"$f":"IFERROR(VLOOKUP(F197,Справочник!B:C,2,FALSE),\"\")","v":""}]
[null,null,null,null,{"$f":"IFERROR(VLOOKUP($D198,Справочник!$B:$C,2,FALSE),\"\")","v":""},null,{"$f":"IFERROR(VLOOKUP(F198,Справочник!B:C,2,FALSE),\"\")","v":""}]
[null,null,null,null,{"$f":"IFERROR(VLOOKUP($D199,Справочник!$B:$C,2,FALSE),\"\")","v":""},null,{"$f":"IFERROR(VLOOKUP(F199,Справочник!B:C,2,FALSE),\"\")","v":""}]
[null,null,null,null,{"$f":"IFERROR(VLOOKUP($D200,Справочник!$B:$C,2,FALSE),\"\")","v":""},null,{"$f":"IFERROR(VLOOKUP(F200,Справочник!B:C,2,FALSE),\"\")","v":""}]
[null,null,null,null,{"$f":"IFERROR(VLOOKUP($D201,Справочник!$B:$C,2,FALSE),\"\")","v":""},null,{"$f":"IFERROR(VLOOKUP(F201,Справочник!B:C,2,FALSE),\"\")","v":""}]
[null,null,null,null,{"$f":"IFERROR(VLOOKUP($D202,Справочник!$B:$C,2,FALSE),\"\")","v":""},null,{"$f":"IFERROR(VLOOKUP(F202,Справочник!B:C,2,FALSE),\"\")","v":""}]
[null,null,null,null,{"$f":"IFERROR(VLOOKUP($D203,Справочник!$B:$C,2,FALSE),\"\")","v":""},null,{"$f":"IFERROR(VLOOKUP(F203,Справочник!B:C,2,FALSE),\"\")","v":""}]
[null,null,null,null,{"$f":"IFERROR(VLOOKUP($D204,Справочник!$B:$C,2,FALSE),\"\")","v":""},null,{"$f":"IFERROR(VLOOKUP(F204,Справочник!B:C,2,FALSE),\"\")","v":""}]
[null,null,null,null,{"$f":"IFERROR(VLOOKUP($D205,Справочник!$B:$C,2,FALSE),\"\")","v":""},null,{"$f":"IFERROR(VLOOKUP(F205,Справочник!B:C,2,FALSE),\"\")","v":""}]
[null,null,null,null,{"$f":"IFERROR(VLOOKUP($D206,Справочник!$B:$C,2,FALSE),\"\")","v":""},null,{"$f":"IFERROR(VLOOKUP(F206,Справочник!B:C,2,FALSE),\"\")","v":""}]
[null,null,null,null,{"$f":"IFERROR(VLOOKUP($D207,Справочник!$B:$C,2,FALSE),\"\")","v":""},null,{"$f":"IFERROR(VLOOKUP(F207,Справочник!B:C,2,FALSE),\"\")","v":""}]
[null,null,null,null,{"$f":"IFERROR(VLOOKUP($D208,Справочник!$B:$C,2,FALSE),\"\")","v":""},null,{"$f":"IFERROR(VLOOKUP(F208,Справочник!B:C,2,FALSE),\"\")","v":""}]
[null,null,null,null,{"$f":"IFERROR(VLOOKUP($D209,Справочник!$B:$C,2,FALSE),\"\")","v":""},null,{"$f":"IFERROR(VLOOKUP(F209,Справочник!B:C,2,FALSE),\"\")","v":""}]
[null,null,null,null,{"$f":"IFERROR(VLOOKUP($D210,Справочник!$B:$C,2,FALSE),\"\")","v":""},null,{"$f":"IFERROR(VLOOKUP(F210,Справочник!B:C,2,FALSE),\"\")","v":""}]
[null,null,null,null,{"$f":"IFERROR(VLOOKUP($D211,Справочник!$B:$C,2,FALSE),\"\")","v":""},null,{"$f":"IFERROR(VLOOKUP(F211,Справочник!B:C,2,FALSE),\"\")","v":""}]
[null,null,null,null,{"$f":"IFERROR(VLOOKUP($D212,Справочник!$B:$C,2,FALSE),\"\")","v":""},null,{"$f":"IFERROR(VLOOKUP(F212,Справочник!B:C,2,FALSE),\"\")","v":""}]
[null,null,null,null,{"$f":"IFERROR(VLOOKUP($D213,Справочник!$B:$C,2,FALSE),\"\")","v":""},null,{"$f":"IFERROR(VLOOKUP(F213,Справочник!B:C,2,FALSE),\"\")","v":""}]
[null,null,null,null,{"$f":"IFERROR(VLOOKUP($D214,Справочник!$B:$C,2,FALSE),\"\")","v":""},null,{"$f":"IFERROR(VLOOKUP(F214,Справочник!B:C,2,FALSE),\"\")","v":""}]
[null,null,null,null,{"$f":"IFERROR(VLOOKUP($D215,Справочник!$B:$C,2,FALSE),\"\")","v":""},null,{"$f":"IFERROR(VLOOKUP(F215,Справочник!B:C,2,FALSE),\"\")","v":""}]
[null,null,null,null,{"$f":"IFERROR(VLOOKUP($D216,Справочник!$B:$C,2,FALSE),\"\")","v":""},null,{"$f":"IFERROR(VLOOKUP(F216,Справочник!B:C,2,FALSE),\"\")","v":""}]
[null,null,null,null,{"$f":"IFERROR(VLOOKUP($D217,Справочник!$B:$C,2,FALSE),\"\")","v":""},null,{"$f":"IFERROR(VLOOKUP(F217,Справочник!B:C,2,FALSE),\"\")","v":""}]
[null,null,null,null,{"$f":"IFERROR(VLOOKUP($D218,Справочник!$B:$C,2,FALSE),\"\")","v":""},null,{"$f":"IFERROR(VLOOKUP(F218,Справочник!B:C,2,FALSE),\"\")","v":""}]
[null,null,null,null,{"$f":"IFERROR(VLOOKUP($D219,Справочник!$B:$C,2,FALSE),\"\")","v":""},null,{"$f":"IFERROR(VLOOKUP(F219,Справочник!B:C,2,FALSE),\"\")","v":""}]
[null,null,null,null,{"$f":"IFERROR(VLOOKUP($D220,Справочник!$B:$C,2,FALSE),\"\")","v":""},null,{"$f":"IFERROR(VLOOKUP(F220,Справочник!B:C,2,FALSE),\"\")","v":""}]
[null,null,null,null,{"$f":"IFERROR(VLOOKUP($D221,Справочник!$B:$C,2,FALSE),\"\")","v":""},null,{"$f":"IFERROR(VLOOKUP(F221,Справочник!B:C,2,FALSE),\"\")","v":""}]
[null,null,null,null,{"$f":"IFERROR(VLOOKUP($D222,Справочник!$B:$C,2,FALSE),\"\")","v":""},null,{"$f":"IFERROR(VLOOKUP(F222,Справочник!B:C,2,FALSE),\"\")","v":""}]
[null,null,null,null,{"$f":"IFERROR(VLOOKUP($D223,Справочник!$B:$C,2,FALSE),\"\")","v":""},null,{"$f":"IFERROR(VLOOKUP(F223,Справочник!B:C,2,FALSE),\"\")","v":""}]
[null,null,null,null,{"$f":"IFERROR(VLOOKUP($D224,Справочник!$B:$C,2,FALSE),\"\")","v":""},null,{"$f":"IFERROR(VLOOKUP(F224,Справочник!B:C,2,FALSE),\"\")","v":""}]
[null,null,null,null,{"$f":"IFERROR(VLOOKUP($D225,Справочник!$B:$C,2,FALSE),\"\")","v":""},null,{"$f":"IFERROR(VLOOKUP(F225,Справочник!B:C,2,FALSE),\"\")","v":""}]
[null,null,null,null,{"$f":"IFERROR(VLOOKUP($D226,Справочник!$B:$C,2,FALSE),\"\")","v":""},null,{"$f":"IFERROR(VLOOKUP(F226,Справочник!B:C,2,FALSE),\"\")","v":""}]
[null,null,null,null,{"$f":"IFERROR(VLOOKUP($D227,Справочник!$B:$C,2,FALSE),\"\")","v":""},null,{"$f":"IFERROR(VLOOKUP(F227,Справочник!B:C,2,FALSE),\"\")","v":""}]
[null,null,null,null,{"$f":"IFERROR(VLOOKUP($D228,Справочник!$B:$C,2,FALSE),\"\")","v":""},null,{"$f":"IFERROR(VLOOKUP(F228,Справочник!B:C,2,FALSE),\"\")","v":""}]
[null,null,null,null,{"$f":"IFERROR(VLOOKUP($D229,Справочник!$B:$C,2,FALSE),\"\")","v":""},null,{"$f":"IFERROR(VLOOKUP(F229,Справочник!B:C,2,FALSE),\"\")","v":""}]
[null,null,null,null,{"$f":"IFERROR(VLOOKUP($D230,Справочник!$B:$C,2,FALSE),\"\")","v":""},null,{"$f":"IFERROR(VLOOKUP(F230,Справочник!B:C,2,FALSE),\"\")","v":""}]
[null,null,null,null,{"$f":"IFERROR(VLOOKUP($D231,Справочник!$B:$C,2,FALSE),\"\")","v":""},null,{"$f":"IFERROR(VLOOKUP(F231,Справочник!B:C,2,FALSE),\"\")","v":""}]
[null,null,null,null,{"$f":"IFERROR(VLOOKUP($D232,Справочник!$B:$C,2,FALSE),\"\")","v":""},null,{"$f":"IFERROR(VLOOKUP(F232,Справочник!B:C,2,FALSE),\"\")","v":""}]
[null,null,null,null,{"$f":"IFERROR(VLOOKUP($D233,Справочник!$B:$C,2,FALSE),\"\")","v":""},null,{"$f":"IFERROR(VLOOKUP(F233,Справочник!B:C,2,FALSE),\"\")","v":""}]
[null,null,null,null,{"$f":"IFERROR(VLOOKUP($D234,Справочник!$B:$C,2,FALSE),\"\")","v":""},null,{"$f":"IFERROR(VLOOKUP(F234,Справочник!B:C,2,FALSE),\"\")","v":""}]
[null,null,null,null,{"$f":"IFERROR(VLOOKUP($D235,Справочник!$B:$C,2,FALSE),\"\")","v":""},null,{"$f":"IFERROR(VLOOKUP(F235,Справочник!B:C,2,FALSE),\"\")","v":""}]
[null,null,null,null,{"$f":"IFERROR(VLOOKUP($D236,Справочник!$B:$C,2,FALSE),\"\")","v":""},null,{"$f":"IFERROR(VLOOKUP(F236,Справочник!B:C,2,FALSE),\"\")","v":""}]
[null,null,null,null,{"$f":"IFERROR(VLOOKUP($D237,Справочник!$B:$C,2,FALSE),\"\")","v":""},null,{"$f":"IFERROR(VLOOKUP(F237,Справочник!B:C,2,FALSE),\"\")","v":""}]
[null,null,null,null,{"$f":"IFERROR(VLOOKUP($D238,Справочник!$B:$C,2,FALSE),\"\")","v":""},null,{"$f":"IFERROR(VLOOKUP(F238,Справочник!B:C,2,FALSE),\"\")","v":""}]
[null,null,null,null,{"$f":"IFERROR(VLOOKUP($D239,Справочник!$B:$C,2,FALSE),\"\")","v":""},null,{"$f":"IFERROR(VLOOKUP(F239,Справочник!B:C,2,FALSE),\"\")","v":""}]
[null,null,null,null,{"$f":"IFERROR(VLOOKUP($D240,Справочник!$B:$C,2,FALSE),\"\")","v":""},null,{"$f":"IFERROR(VLOOKUP(F240,Справочник!B:C,2,FALSE),\"\")","v":""}]
[null,null,null,null,{"$f":"IFERROR(VLOOKUP($D241,Справочник!$B:$C,2,FALSE),\"\")","v":""},null,{"$f":"IFERROR(VLOOKUP(F241,Справочник!B:C,2,FALSE),\"\")","v":""}]
[null,null,null,null,{"$f":"IFERROR(VLOOKUP($D242,Справочник!$B:$C,2,FALSE),\"\")","v":""},null,{"$f":"IFERROR(VLOOKUP(F242,Справочник!B:C,2,FALSE),\"\")","v":""}]
[null,null,null,null,{"$f":"IFERROR(VLOOKUP($D243,Справочник!$B:$C,2,FALSE),\"\")","v":""},null,{"$f":"IFERROR(VLOOKUP(F243,Справочник!B:C,2,FALSE),\"\")","v":""}]
[null,null,null,null,{"$f":"IFERROR(VLOOKUP($D244,Справочник!$B:$C,2,FALSE),\"\")","v":""},null,{"$f":"IFERROR(VLOOKUP(F244,Справочник!B:C,2,FALSE),\"\")","v":""}]
[null,null,null,null,{"$f":"IFERROR(VLOOKUP($D245,Справочник!$B:$C,2,FALSE),\"\")","v":""},null,{"$f":"IFERROR(VLOOKUP(F245,Справочник!B:C,2,FALSE),\"\")","v":""}]
[null,null,null,null,{"$f":"IFERROR(VLOOKUP($D246,Справочник!$B:$C,2,FALSE),\"\")","v":""},null,{"$f":"IFERROR(VLOOKUP(F246,Справочник!B:C,2,FALSE),\"\")","v":""}]
[null,null,null,null,{"$f":"IFERROR(VLOOKUP($D247,Справочник!$B:$C,2,FALSE),\"\")","v":""},null,{"$f":"IFERROR(VLOOKUP(F247,Справочник!B:C,2,FALSE),\"\")","v":""}]
[null,null,null,null,{"$f":"IFERROR(VLOOKUP($D248,Справочник!$B:$C,2,FALSE),\"\")","v":""},null,{"$f":"IFERROR(VLOOKUP(F248,Справочник!B:C,2,FALSE),\"\")","v":""}]
[null,null,null,null,{"$f":"IFERROR(VLOOKUP($D249,Справочник!$B:$C,2,FALSE),\"\")","v":""},null,{"$f":"IFERROR(VLOOKUP(F249,Справочник!B:C,2,FALSE),\"\")","v":""}]
[null,null,null,null,{"$f":"IFERROR(VLOOKUP($D250,Справочник!$B:$C,2,FALSE),\"\")","v":""},null,{"$f":"IFERROR(VLOOKUP(F250,Справочник!B:C,2,FALSE),\"\")","v":""}]
[null,null,null,null,{"$f":"IFERROR(VLOOKUP($D251,Справочник!$B:$C,2,FALSE),\"\")","v":""},null,{"$f":"IFERROR(VLOOKUP(F251,Справочник!B:C,2,FALSE),\"\")","v":""}]
[null,null,null,null,{"$f":"IFERROR(VLOOKUP($D252,Справочник!$B:$C,2,FALSE),\"\")","v":""},null,{"$f":"IFERROR(VLOOKUP(F252,Справочник!B:C,2,FALSE),\"\")","v":""}]
[null,null,null,null,{"$f":"IFERROR(VLOOKUP($D253,Справочник!$B:$C,2,FALSE),\"\")","v":""},null,{"$f":"IFERROR(VLOOKUP(F253,Справочник!B:C,2,FALSE),\"\")","v":""}]
[null,null,null,null,{"$f":"IFERROR(VLOOKUP($D254,Справочник!$B:$C,2,FALSE),\"\")","v":""},null,{"$f":"IFERROR(VLOOKUP(F254,Справочник!B:C,2,FALSE),\"\")","v":""}]
[null,null,null,null,{"$f":"IFERROR(VLOOKUP($D255,Справочник!$B:$C,2,FALSE),\"\")","v":""},null,{"$f":"IFERROR(VLOOKUP(F255,Справочник!B:C,2,FALSE),\"\")","v":""}]
[null,null,null,null,{"$f":"IFERROR(VLOOKUP($D256,Справочник!$B:$C,2,FALSE),\"\")","v":""},null,{"$f":"IFERROR(VLOOKUP(F256,Справочник!B:C,2,FALSE),\"\")","v":""}]
[null,null,null,null,{"$f":"IFERROR(VLOOKUP($D257,Справочник!$B:$C,2,FALSE),\"\")","v":""},null,{"$f":"IFERROR(VLOOKUP(F257,Справочник!B:C,2,FALSE),\"\")","v":""}]
[null,null,null,null,{"$f":"IFERROR(VLOOKUP($D258,Справочник!$B:$C,2,FALSE),\"\")","v":""},null,{"$f":"IFERROR(VLOOKUP(F258,Справочник!B:C,2,FALSE),\"\")","v":""}]
[null,null,null,null,{"$f":"IFERROR(VLOOKUP($D259,Справочник!$B:$C,2,FALSE),\"\")","v":""},null,{"$f":"IFERROR(VLOOKUP(F259,Справочник!B:C,2,FALSE),\"\")","v":""}]
[null,null,null,null,{"$f":"IFERROR(VLOOKUP($D260,Справочник!$B:$C,2,FALSE),\"\")","v":""},null,{"$f":"IFERROR(VLOOKUP(F260,Справочник!B:C,2,FALSE),\"\")","v":""}]
[null,null,null,null,{"$f":"IFERROR(VLOOKUP($D261,Справочник!$B:$C,2,FALSE),\"\")","v":""},null,{"$f":"IFERROR(VLOOKUP(F261,Справочник!B:C,2,FALSE),\"\")","v":""}]
[null,null,null,null,{"$f":"IFERROR(VLOOKUP($D262,Справочник!$B:$C,2,FALSE),\"\")","v":""},null,{"$f":"IFERROR(VLOOKUP(F262,Справочник!B:C,2,FALSE),\"\")","v":""}]
[null,null,null,null,{"$f":"IFERROR(VLOOKUP($D263,Справочник!$B:$C,2,FALSE),\"\")","v":""},null,{"$f":"IFERROR(VLOOKUP(F263,Справочник!B:C,2,FALSE),\"\")","v":""}]
[null,null,null,null,{"$f":"IFERROR(VLOOKUP($D264,Справочник!$B:$C,2,FALSE),\"\")","v":""},null,{"$f":"IFERROR(VLOOKUP(F264,Справочник!B:C,2,FALSE),\"\")","v":""}]
[null,null,null,null,{"$f":"IFERROR(VLOOKUP($D265,Справочник!$B:$C,2,FALSE),\"\")","v":""},null,{"$f":"IFERROR(VLOOKUP(F265,Справочник!B:C,2,FALSE),\"\")","v":""}]
[null,null,null,null,{"$f":"IFERROR(VLOOKUP($D266,Справочник!$B:$C,2,FALSE),\"\")","v":""},null,{"$f":"IFERROR(VLOOKUP(F266,Справочник!B:C,2,FALSE),\"\")","v":""}]
[null,null,null,null,{"$f":"IFERROR(VLOOKUP($D267,Справочник!$B:$C,2,FALSE),\"\")","v":""},null,{"$f":"IFERROR(VLOOKUP(F267,Справочник!B:C,2,FALSE),\"\")","v":""}]
[null,null,null,null,{"$f":"IFERROR(VLOOKUP($D268,Справочник!$B:$C,2,FALSE),\"\")","v":""},null,{"$f":"IFERROR(VLOOKUP(F268,Справочник!B:C,2,FALSE),\"\")","v":""}]
[null,null,null,null,{"$f":"IFERROR(VLOOKUP($D269,Справочник!$B:$C,2,FALSE),\"\")","v":""},null,{"$f":"IFERROR(VLOOKUP(F269,Справочник!B:C,2,FALSE),\"\")","v":""}]
[null,null,null,null,{"$f":"IFERROR(VLOOKUP($D270,Справочник!$B:$C,2,FALSE),\"\")","v":""},null,{"$f":"IFERROR(VLOOKUP(F270,Справочник!B:C,2,FALSE),\"\")","v":""}]
[null,null,null,null,{"$f":"IFERROR(VLOOKUP($D271,Справочник!$B:$C,2,FALSE),\"\")","v":""},null,{"$f":"IFERROR(VLOOKUP(F271,Справочник!B:C,2,FALSE),\"\")","v":""}]
[null,null,null,null,{"$f":"IFERROR(VLOOKUP($D272,Справочник!$B:$C,2,FALSE),\"\")","v":""},null,{"$f":"IFERROR(VLOOKUP(F272,Справочник!B:C,2,FALSE),\"\")","v":""}]
[null,null,null,null,{"$f":"IFERROR(VLOOKUP($D273,Справочник!$B:$C,2,FALSE),\"\")","v":""},null,{"$f":"IFERROR(VLOOKUP(F273,Справочник!B:C,2,FALSE),\"\")","v":""}]
[null,null,null,null,{"$f":"IFERROR(VLOOKUP($D274,Справочник!$B:$C,2,FALSE),\"\")","v":""},null,{"$f":"IFERROR(VLOOKUP(F274,Справочник!B:C,2,FALSE),\"\")","v":""}]
[null,null,null,null,{"$f":"IFERROR(VLOOKUP($D275,Справочник!$B:$C,2,FALSE),\"\")","v":""},null,{"$f":"IFERROR(VLOOKUP(F275,Справочник!B:C,2,FALSE),\"\")","v":""}]
[null,null,null,null,{"$f":"IFERROR(VLOOKUP($D276,Справочник!$B:$C,2,FALSE),\"\")","v":""},null,{"$f":"IFERROR(VLOOKUP(F276,Справочник!B:C,2,FALSE),\"\")","v":""}]
[null,null,null,null,{"$f":"IFERROR(VLOOKUP($D277,Справочник!$B:$C,2,FALSE),\"\")","v":""},null,{"$f":"IFERROR(VLOOKUP(F277,Справочник!B:C,2,FALSE),\"\")","v":""}]
[null,null,null,null,{"$f":"IFERROR(VLOOKUP($D278,Справочник!$B:$C,2,FALSE),\"\")","v":""},null,{"$f":"IFERROR(VLOOKUP(F278,Справочник!B:C,2,FALSE),\"\")","v":""}]
[null,null,null,null,{"$f":"IFERROR(VLOOKUP($D279,Справочник!$B:$C,2,FALSE),\"\")","v":""},null,{"$f":"IFERROR(VLOOKUP(F279,Справочник!B:C,2,FALSE),\"\")","v":""}]
[null,null,null,null,{"$f":"IFERROR(VLOOKUP($D280,Справочник!$B:$C,2,FALSE),\"\")","v":""},null,{"$f":"IFERROR(VLOOKUP(F280,Справочник!B:C,2,FALSE),\"\")","v":""}]
[null,null,null,null,{"$f":"IFERROR(VLOOKUP($D281,Справочник!$B:$C,2,FALSE),\"\")","v":""},null,{"$f":"IFERROR(VLOOKUP(F281,Справочник!B:C,2,FALSE),\"\")","v":""}]
[null,null,null,null,{"$f":"IFERROR(VLOOKUP($D282,Справочник!$B:$C,2,FALSE),\"\")","v":""},null,{"$f":"IFERROR(VLOOKUP(F282,Справочник!B:C,2,FALSE),\"\")","v":""}]
[null,null,null,null,{"$f":"IFERROR(VLOOKUP($D283,Справочник!$B:$C,2,FALSE),\"\")","v":""},null,{"$f":"IFERROR(VLOOKUP(F283,Справочник!B:C,2,FALSE),\"\")","v":""}]
[null,null,null,null,{"$f":"IFERROR(VLOOKUP($D284,Справочник!$B:$C,2,FALSE),\"\")","v":""},null,{"$f":"IFERROR(VLOOKUP(F284,Справочник!B:C,2,FALSE),\"\")","v":""}]
[null,null,null,null,{"$f":"IFERROR(VLOOKUP($D285,Справочник!$B:$C,2,FALSE),\"\")","v":""},null,{"$f":"IFERROR(VLOOKUP(F285,Справочник!B:C,2,FALSE),\"\")","v":""}]
[null,null,null,null,{"$f":"IFERROR(VLOOKUP($D286,Справочник!$B:$C,2,FALSE),\"\")","v":""},null,{"$f":"IFERROR(VLOOKUP(F286,Справочник!B:C,2,FALSE),\"\")","v":""}]
[null,null,null,null,{"$f":"IFERROR(VLOOKUP($D287,Справочник!$B:$C,2,FALSE),\"\")","v":""},null,{"$f":"IFERROR(VLOOKUP(F287,Справочник!B:C,2,FALSE),\"\")","v":""}]
[null,null,null,null,{"$f":"IFERROR(VLOOKUP($D288,Справочник!$B:$C,2,FALSE),\"\")","v":""},null,{"$f":"IFERROR(VLOOKUP(F288,Справочник!B:C,2,FALSE),\"\")","v":""}]
[null,null,null,null,{"$f":"IFERROR(VLOOKUP($D289,Справочник!$B:$C,2,FALSE),\"\")","v":""},null,{"$f":"IFERROR(VLOOKUP(F289,Справочник!B:C,2,FALSE),\"\")","v":""}]
[null,null,null,null,{"$f":"IFERROR(VLOOKUP($D290,Справочник!$B:$C,2,FALSE),\"\")","v":""},null,{"$f":"IFERROR(VLOOKUP(F290,Справочник!B:C,2,FALSE),\"\")","v":""}]
[null,null,null,null,{"$f":"IFERROR(VLOOKUP($D291,Справочник!$B:$C,2,FALSE),\"\")","v":""},null,{"$f":"IFERROR(VLOOKUP(F291,Справочник!B:C,2,FALSE),\"\")","v":""}]
[null,null,null,null,{"$f":"IFERROR(VLOOKUP($D292,Справочник!$B:$C,2,FALSE),\"\")","v":""},null,{"$f":"IFERROR(VLOOKUP(F292,Справочник!B:C,2,FALSE),\"\")","v":""}]
[null,null,null,null,{"$f":"IFERROR(VLOOKUP($D293,Справочник!$B:$C,2,FALSE),\"\")","v":""},null,{"$f":"IFERROR(VLOOKUP(F293,Справочник!B:C,2,FALSE),\"\")","v":""}]
[null,null,null,null,{"$f":"IFERROR(VLOOKUP($D294,Справочник!$B:$C,2,FALSE),\"\")","v":""},null,{"$f":"IFERROR(VLOOKUP(F294,Справочник!B:C,2,FALSE),\"\")","v":""}]
[null,null,null,null,{"$f":"IFERROR(VLOOKUP($D295,Справочник!$B:$C,2,FALSE),\"\")","v":""},null,{"$f":"IFERROR(VLOOKUP(F295,Справочник!B:C,2,FALSE),\"\")","v":""}]
[null,null,null,null,{"$f":"IFERROR(VLOOKUP($D296,Справочник!$B:$C,2,FALSE),\"\")","v":""},null,{"$f":"IFERROR(VLOOKUP(F296,Справочник!B:C,2,FALSE),\"\")","v":""}]
[null,null,null,null,{"$f":"IFERROR(VLOOKUP($D297,Справочник!$B:$C,2,FALSE),\"\")","v":""},null,{"$f":"IFERROR(VLOOKUP(F297,Справочник!B:C,2,FALSE),\"\")","v":""}]
[null,null,null,null,{"$f":"IFERROR(VLOOKUP($D298,Справочник!$B:$C,2,FALSE),\"\")","v":""},null,{"$f":"IFERROR(VLOOKUP(F298,Справочник!B:C,2,FALSE),\"\")","v":""}]
[null,null,null,null,{"$f":"IFERROR(VLOOKUP($D299,Справочник!$B:$C,2,FALSE),\"\")","v":""},null,{"$f":"IFERROR(VLOOKUP(F299,Справочник!B:C,2,FALSE),\"\")","v":""}]
[null,null,null,null,{"$f":"IFERROR(VLOOKUP($D300,Справочник!$B:$C,2,FALSE),\"\")","v":""},null,{"$f":"IFERROR(VLOOKUP(F300,Справочник!B:C,2,FALSE),\"\")","v":""}]
[null,null,null,null,{"$f":"IFERROR(VLOOKUP($D301,Справочник!$B:$C,2,FALSE),\"\")","v":""},null,{"$f":"IFERROR(VLOOKUP(F301,Справочник!B:C,2,FALSE),\"\")","v":""}]
[null,null,null,null,{"$f":"IFERROR(VLOOKUP($D302,Справочник!$B:$C,2,FALSE),\"\")","v":""},null,{"$f":"IFERROR(VLOOKUP(F302,Справочник!B:C,2,FALSE),\"\")","v":""}]
[null,null,null,null,{"$f":"IFERROR(VLOOKUP($D303,Справочник!$B:$C,2,FALSE),\"\")","v":""},null,{"$f":"IFERROR(VLOOKUP(F303,Справочник!B:C,2,FALSE),\"\")","v":""}]
[null,null,null,null,{"$f":"IFERROR(VLOOKUP($D304,Справочник!$B:$C,2,FALSE),\"\")","v":""},null,{"$f":"IFERROR(VLOOKUP(F304,Справочник!B:C,2,FALSE),\"\")","v":""}]
[null,null,null,null,{"$f":"IFERROR(VLOOKUP($D305,Справочник!$B:$C,2,FALSE),\"\")","v":""},null,{"$f":"IFERROR(VLOOKUP(F305,Справочник!B:C,2,FALSE),\"\")","v":""}]
[null,null,null,null,{"$f":"IFERROR(VLOOKUP($D306,Справочник!$B:$C,2,FALSE),\"\")","v":""},null,{"$f":"IFERROR(VLOOKUP(F306,Справочник!B:C,2,FALSE),\"\")","v":""}]
[null,null,null,null,{"$f":"IFERROR(VLOOKUP($D307,Справочник!$B:$C,2,FALSE),\"\")","v":""},null,{"$f":"IFERROR(VLOOKUP(F307,Справочник!B:C,2,FALSE),\"\")","v":""}]
[null,null,null,null,{"$f":"IFERROR(VLOOKUP($D308,Справочник!$B:$C,2,FALSE),\"\")","v":""},null,{"$f":"IFERROR(VLOOKUP(F308,Справочник!B:C,2,FALSE),\"\")","v":""}]
[null,null,null,null,{"$f":"IFERROR(VLOOKUP($D309,Справочник!$B:$C,2,FALSE),\"\")","v":""},null,{"$f":"IFERROR(VLOOKUP(F309,Справочник!B:C,2,FALSE),\"\")","v":""}]
[null,null,null,null,{"$f":"IFERROR(VLOOKUP($D310,Справочник!$B:$C,2,FALSE),\"\")","v":""},null,{"$f":"IFERROR(VLOOKUP(F310,Справочник!B:C,2,FALSE),\"\")","v":""}]
[null,null,null,null,{"$f":"IFERROR(VLOOKUP($D311,Справочник!$B:$C,2,FALSE),\"\")","v":""},null,{"$f":"IFERROR(VLOOKUP(F311,Справочник!B:C,2,FALSE),\"\")","v":""}]
[null,null,null,null,{"$f":"IFERROR(VLOOKUP($D312,Справочник!$B:$C,2,FALSE),\"\")","v":""},null,{"$f":"IFERROR(VLOOKUP(F312,Справочник!B:C,2,FALSE),\"\")","v":""}]
[null,null,null,null,{"$f":"IFERROR(VLOOKUP($D313,Справочник!$B:$C,2,FALSE),\"\")","v":""},null,{"$f":"IFERROR(VLOOKUP(F313,Справочник!B:C,2,FALSE),\"\")","v":""}]
[null,null,null,null,{"$f":"IFERROR(VLOOKUP($D314,Справочник!$B:$C,2,FALSE),\"\")","v":""},null,{"$f":"IFERROR(VLOOKUP(F314,Справочник!B:C,2,FALSE),\"\")","v":""}]
[null,null,null,null,{"$f":"IFERROR(VLOOKUP($D315,Справочник!$B:$C,2,FALSE),\"\")","v":""},null,{"$f":"IFERROR(VLOOKUP(F315,Справочник!B:C,2,FALSE),\"\")","v":""}]
[null,null,null,null,{"$f":"IFERROR(VLOOKUP($D316,Справочник!$B:$C,2,FALSE),\"\")","v":""},null,{"$f":"IFERROR(VLOOKUP(F316,Справочник!B:C,2,FALSE),\"\")","v":""}]
[null,null,null,null,{"$f":"IFERROR(VLOOKUP($D317,Справочник!$B:$C,2,FALSE),\"\")","v":""},null,{"$f":"IFERROR(VLOOKUP(F317,Справочник!B:C,2,FALSE),\"\")","v":""}]
[null,null,null,null,{"$f":"IFERROR(VLOOKUP($D318,Справочник!$B:$C,2,FALSE),\"\")","v":""},null,{"$f":"IFERROR(VLOOKUP(F318,Справочник!B:C,2,FALSE),\"\")","v":""}]
[null,null,null,null,{"$f":"IFERROR(VLOOKUP($D319,Справочник!$B:$C,2,FALSE),\"\")","v":""},null,{"$f":"IFERROR(VLOOKUP(F319,Справочник!B:C,2,FALSE),\"\")","v":""}]
[null,null,null,null,{"$f":"IFERROR(VLOOKUP($D320,Справочник!$B:$C,2,FALSE),\"\")","v":""},null,{"$f":"IFERROR(VLOOKUP(F320,Справочник!B:C,2,FALSE),\"\")","v":""}]
[null,null,null,null,{"$f":"IFERROR(VLOOKUP($D321,Справочник!$B:$C,2,FALSE),\"\")","v":""},null,{"$f":"IFERROR(VLOOKUP(F321,Справочник!B:C,2,FALSE),\"\")","v":""}]
[null,null,null,null,{"$f":"IFERROR(VLOOKUP($D322,Справочник!$B:$C,2,FALSE),\"\")","v":""},null,{"$f":"IFERROR(VLOOKUP(F322,Справочник!B:C,2,FALSE),\"\")","v":""}]
[null,null,null,null,{"$f":"IFERROR(VLOOKUP($D323,Справочник!$B:$C,2,FALSE),\"\")","v":""},null,{"$f":"IFERROR(VLOOKUP(F323,Справочник!B:C,2,FALSE),\"\")","v":""}]
[null,null,null,null,{"$f":"IFERROR(VLOOKUP($D324,Справочник!$B:$C,2,FALSE),\"\")","v":""},null,{"$f":"IFERROR(VLOOKUP(F324,Справочник!B:C,2,FALSE),\"\")","v":""}]
[null,null,null,null,{"$f":"IFERROR(VLOOKUP($D325,Справочник!$B:$C,2,FALSE),\"\")","v":""},null,{"$f":"IFERROR(VLOOKUP(F325,Справочник!B:C,2,FALSE),\"\")","v":""}]
[null,null,null,null,{"$f":"IFERROR(VLOOKUP($D326,Справочник!$B:$C,2,FALSE),\"\")","v":""},null,{"$f":"IFERROR(VLOOKUP(F326,Справочник!B:C,2,FALSE),\"\")","v":""}]
[null,null,null,null,{"$f":"IFERROR(VLOOKUP($D327,Справочник!$B:$C,2,FALSE),\"\")","v":""},null,{"$f":"IFERROR(VLOOKUP(F327,Справочник!B:C,2,FALSE),\"\")","v":""}]
[null,null,null,null,{"$f":"IFERROR(VLOOKUP($D328,Справочник!$B:$C,2,FALSE),\"\")","v":""},null,{"$f":"IFERROR(VLOOKUP(F328,Справочник!B:C,2,FALSE),\"\")","v":""}]
[null,null,null,null,{"$f":"IFERROR(VLOOKUP($D329,Справочник!$B:$C,2,FALSE),\"\")","v":""},null,{"$f":"IFERROR(VLOOKUP(F329,Справочник!B:C,2,FALSE),\"\")","v":""}]
[null,null,null,null,{"$f":"IFERROR(VLOOKUP($D330,Справочник!$B:$C,2,FALSE),\"\")","v":""},null,{"$f":"IFERROR(VLOOKUP(F330,Справочник!B:C,2,FALSE),\"\")","v":""}]
[null,null,null,null,{"$f":"IFERROR(VLOOKUP($D331,Справочник!$B:$C,2,FALSE),\"\")","v":""},null,{"$f":"IFERROR(VLOOKUP(F331,Справочник!B:C,2,FALSE),\"\")","v":""}]
[null,null,null,null,{"$f":"IFERROR(VLOOKUP($D332,Справочник!$B:$C,2,FALSE),\"\")","v":""},null,{"$f":"IFERROR(VLOOKUP(F332,Справочник!B:C,2,FALSE),\"\")","v":""}]
[null,null,null,null,{"$f":"IFERROR(VLOOKUP($D333,Справочник!$B:$C,2,FALSE),\"\")","v":""},null,{"$f":"IFERROR(VLOOKUP(F333,Справочник!B:C,2,FALSE),\"\")","v":""}]
[null,null,null,null,{"$f":"IFERROR(VLOOKUP($D334,Справочник!$B:$C,2,FALSE),\"\")","v":""},null,{"$f":"IFERROR(VLOOKUP(F334,Справочник!B:C,2,FALSE),\"\")","v":""}]
[null,null,null,null,{"$f":"IFERROR(VLOOKUP($D335,Справочник!$B:$C,2,FALSE),\"\")","v":""},null,{"$f":"IFERROR(VLOOKUP(F335,Справочник!B:C,2,FALSE),\"\")","v":""}]
[null,null,null,null,{"$f":"IFERROR(VLOOKUP($D336,Справочник!$B:$C,2,FALSE),\"\")","v":""},null,{"$f":"IFERROR(VLOOKUP(F336,Справочник!B:C,2,FALSE),\"\")","v":""}]
[null,null,null,null,{"$f":"IFERROR(VLOOKUP($D337,Справочник!$B:$C,2,FALSE),\"\")","v":""},null,{"$f":"IFERROR(VLOOKUP(F337,Справочник!B:C,2,FALSE),\"\")","v":""}]
[null,null,null,null,{"$f":"IFERROR(VLOOKUP($D338,Справочник!$B:$C,2,FALSE),\"\")","v":""},null,{"$f":"IFERROR(VLOOKUP(F338,Справочник!B:C,2,FALSE),\"\")","v":""}]
[null,null,null,null,{"$f":"IFERROR(VLOOKUP($D339,Справочник!$B:$C,2,FALSE),\"\")","v":""},null,{"$f":"IFERROR(VLOOKUP(F339,Справочник!B:C,2,FALSE),\"\")","v":""}]
[null,null,null,null,{"$f":"IFERROR(VLOOKUP($D340,Справочник!$B:$C,2,FALSE),\"\")","v":""},null,{"$f":"IFERROR(VLOOKUP(F340,Справочник!B:C,2,FALSE),\"\")","v":""}]
[null,null,null,null,{"$f":"IFERROR(VLOOKUP($D341,Справочник!$B:$C,2,FALSE),\"\")","v":""},null,{"$f":"IFERROR(VLOOKUP(F341,Справочник!B:C,2,FALSE),\"\")","v":""}]
[null,null,null,null,{"$f":"IFERROR(VLOOKUP($D342,Справочник!$B:$C,2,FALSE),\"\")","v":""},null,{"$f":"IFERROR(VLOOKUP(F342,Справочник!B:C,2,FALSE),\"\")","v":""}]
[null,null,null,null,{"$f":"IFERROR(VLOOKUP($D343,Справочник!$B:$C,2,FALSE),\"\")","v":""},null,{"$f":"IFERROR(VLOOKUP(F343,Справочник!B:C,2,FALSE),\"\")","v":""}]
[null,null,null,null,{"$f":"IFERROR(VLOOKUP($D344,Справочник!$B:$C,2,FALSE),\"\")","v":""},null,{"$f":"IFERROR(VLOOKUP(F344,Справочник!B:C,2,FALSE),\"\")","v":""}]
[null,null,null,null,{"$f":"IFERROR(VLOOKUP($D345,Справочник!$B:$C,2,FALSE),\"\")","v":""},null,{"$f":"IFERROR(VLOOKUP(F345,Справочник!B:C,2,FALSE),\"\")","v":""}]
[null,null,null,null,{"$f":"IFERROR(VLOOKUP($D346,Справочник!$B:$C,2,FALSE),\"\")","v":""},null,{"$f":"IFERROR(VLOOKUP(F346,Справочник!B:C,2,FALSE),\"\")","v":""}]
[null,null,null,null,{"$f":"IFERROR(VLOOKUP($D347,Справочник!$B:$C,2,FALSE),\"\")","v":""},null,{"$f":"IFERROR(VLOOKUP(F347,Справочник!B:C,2,FALSE),\"\")","v":""}]
[null,null,null,null,{"$f":"IFERROR(VLOOKUP($D348,Справочник!$B:$C,2,FALSE),\"\")","v":""},null,{"$f":"IFERROR(VLOOKUP(F348,Справочник!B:C,2,FALSE),\"\")","v":""}]
[null,null,null,null,{"$f":"IFERROR(VLOOKUP($D349,Справочник!$B:$C,2,FALSE),\"\")","v":""},null,{"$f":"IFERROR(VLOOKUP(F349,Справочник!B:C,2,FALSE),\"\")","v":""}]
[null,null,null,null,{"$f":"IFERROR(VLOOKUP($D350,Справочник!$B:$C,2,FALSE),\"\")","v":""},null,{"$f":"IFERROR(VLOOKUP(F350,Справочник!B:C,2,FALSE),\"\")","v":""}]
[null,null,null,null,{"$f":"IFERROR(VLOOKUP($D351,Справочник!$B:$C,2,FALSE),\"\")","v":""},null,{"$f":"IFERROR(VLOOKUP(F351,Справочник!B:C,2,FALSE),\"\")","v":""}]
[null,null,null,null,{"$f":"IFERROR(VLOOKUP($D352,Справочник!$B:$C,2,FALSE),\"\")","v":""},null,{"$f":"IFERROR(VLOOKUP(F352,Справочник!B:C,2,FALSE),\"\")","v":""}]
[null,null,null,null,{"$f":"IFERROR(VLOOKUP($D353,Справочник!$B:$C,2,FALSE),\"\")","v":""},null,{"$f":"IFERROR(VLOOKUP(F353,Справочник!B:C,2,FALSE),\"\")","v":""}]
[null,null,null,null,{"$f":"IFERROR(VLOOKUP($D354,Справочник!$B:$C,2,FALSE),\"\")","v":""},null,{"$f":"IFERROR(VLOOKUP(F354,Справочник!B:C,2,FALSE),\"\")","v":""}]
[null,null,null,null,{"$f":"IFERROR(VLOOKUP($D355,Справочник!$B:$C,2,FALSE),\"\")","v":""},null,{"$f":"IFERROR(VLOOKUP(F355,Справочник!B:C,2,FALSE),\"\")","v":""}]
[null,null,null,null,{"$f":"IFERROR(VLOOKUP($D356,Справочник!$B:$C,2,FALSE),\"\")","v":""},null,{"$f":"IFERROR(VLOOKUP(F356,Справочник!B:C,2,FALSE),\"\")","v":""}]
[null,null,null,null,{"$f":"IFERROR(VLOOKUP($D357,Справочник!$B:$C,2,FALSE),\"\")","v":""},null,{"$f":"IFERROR(VLOOKUP(F357,Справочник!B:C,2,FALSE),\"\")","v":""}]
[null,null,null,null,{"$f":"IFERROR(VLOOKUP($D358,Справочник!$B:$C,2,FALSE),\"\")","v":""},null,{"$f":"IFERROR(VLOOKUP(F358,Справочник!B:C,2,FALSE),\"\")","v":""}]
[null,null,null,null,{"$f":"IFERROR(VLOOKUP($D359,Справочник!$B:$C,2,FALSE),\"\")","v":""},null,{"$f":"IFERROR(VLOOKUP(F359,Справочник!B:C,2,FALSE),\"\")","v":""}]
[null,null,null,null,{"$f":"IFERROR(VLOOKUP($D360,Справочник!$B:$C,2,FALSE),\"\")","v":""},null,{"$f":"IFERROR(VLOOKUP(F360,Справочник!B:C,2,FALSE),\"\")","v":""}]
[null,null,null,null,{"$f":"IFERROR(VLOOKUP($D361,Справочник!$B:$C,2,FALSE),\"\")","v":""},null,{"$f":"IFERROR(VLOOKUP(F361,Справочник!B:C,2,FALSE),\"\")","v":""}]
[null,null,null,null,{"$f":"IFERROR(VLOOKUP($D362,Справочник!$B:$C,2,FALSE),\"\")","v":""},null,{"$f":"IFERROR(VLOOKUP(F362,Справочник!B:C,2,FALSE),\"\")","v":""}]
[null,null,null,null,{"$f":"IFERROR(VLOOKUP($D363,Справочник!$B:$C,2,FALSE),\"\")","v":""},null,{"$f":"IFERROR(VLOOKUP(F363,Справочник!B:C,2,FALSE),\"\")","v":""}]
[null,null,null,null,{"$f":"IFERROR(VLOOKUP($D364,Справочник!$B:$C,2,FALSE),\"\")","v":""},null,{"$f":"IFERROR(VLOOKUP(F364,Справочник!B:C,2,FALSE),\"\")","v":""}]
[null,null,null,null,{"$f":"IFERROR(VLOOKUP($D365,Справочник!$B:$C,2,FALSE),\"\")","v":""},null,{"$f":"IFERROR(VLOOKUP(F365,Справочник!B:C,2,FALSE),\"\")","v":""}]
[null,null,null,null,{"$f":"IFERROR(VLOOKUP($D366,Справочник!$B:$C,2,FALSE),\"\")","v":""},null,{"$f":"IFERROR(VLOOKUP(F366,Справочник!B:C,2,FALSE),\"\")","v":""}]
[null,null,null,null,{"$f":"IFERROR(VLOOKUP($D367,Справочник!$B:$C,2,FALSE),\"\")","v":""},null,{"$f":"IFERROR(VLOOKUP(F367,Справочник!B:C,2,FALSE),\"\")","v":""}]
[null,null,null,null,{"$f":"IFERROR(VLOOKUP($D368,Справочник!$B:$C,2,FALSE),\"\")","v":""},null,{"$f":"IFERROR(VLOOKUP(F368,Справочник!B:C,2,FALSE),\"\")","v":""}]
[null,null,null,null,{"$f":"IFERROR(VLOOKUP($D369,Справочник!$B:$C,2,FALSE),\"\")","v":""},null,{"$f":"IFERROR(VLOOKUP(F369,Справочник!B:C,2,FALSE),\"\")","v":""}]
[null,null,null,null,{"$f":"IFERROR(VLOOKUP($D370,Справочник!$B:$C,2,FALSE),\"\")","v":""},null,{"$f":"IFERROR(VLOOKUP(F370,Справочник!B:C,2,FALSE),\"\")","v":""}]
[null,null,null,null,{"$f":"IFERROR(VLOOKUP($D371,Справочник!$B:$C,2,FALSE),\"\")","v":""},null,{"$f":"IFERROR(VLOOKUP(F371,Справочник!B:C,2,FALSE),\"\")","v":""}]
[null,null,null,null,{"$f":"IFERROR(VLOOKUP($D372,Справочник!$B:$C,2,FALSE),\"\")","v":""},null,{"$f":"IFERROR(VLOOKUP(F372,Справочник!B:C,2,FALSE),\"\")","v":""}]
[null,null,null,null,{"$f":"IFERROR(VLOOKUP($D373,Справочник!$B:$C,2,FALSE),\"\")","v":""},null,{"$f":"IFERROR(VLOOKUP(F373,Справочник!B:C,2,FALSE),\"\")","v":""}]
[null,null,null,null,{"$f":"IFERROR(VLOOKUP($D374,Справочник!$B:$C,2,FALSE),\"\")","v":""},null,{"$f":"IFERROR(VLOOKUP(F374,Справочник!B:C,2,FALSE),\"\")","v":""}]
[null,null,null,null,{"$f":"IFERROR(VLOOKUP($D375,Справочник!$B:$C,2,FALSE),\"\")","v":""},null,{"$f":"IFERROR(VLOOKUP(F375,Справочник!B:C,2,FALSE),\"\")","v":""}]
[null,null,null,null,{"$f":"IFERROR(VLOOKUP($D376,Справочник!$B:$C,2,FALSE),\"\")","v":""},null,{"$f":"IFERROR(VLOOKUP(F376,Справочник!B:C,2,FALSE),\"\")","v":""}]
[null,null,null,null,{"$f":"IFERROR(VLOOKUP($D377,Справочник!$B:$C,2,FALSE),\"\")","v":""},null,{"$f":"IFERROR(VLOOKUP(F377,Справочник!B:C,2,FALSE),\"\")","v":""}]
[null,null,null,null,{"$f":"IFERROR(VLOOKUP($D378,Справочник!$B:$C,2,FALSE),\"\")","v":""},null,{"$f":"IFERROR(VLOOKUP(F378,Справочник!B:C,2,FALSE),\"\")","v":""}]
[null,null,null,null,{"$f":"IFERROR(VLOOKUP($D379,Справочник!$B:$C,2,FALSE),\"\")","v":""},null,{"$f":"IFERROR(VLOOKUP(F379,Справочник!B:C,2,FALSE),\"\")","v":""}]
[null,null,null,null,{"$f":"IFERROR(VLOOKUP($D380,Справочник!$B:$C,2,FALSE),\"\")","v":""},null,{"$f":"IFERROR(VLOOKUP(F380,Справочник!B:C,2,FALSE),\"\")","v":""}]
[null,null,null,null,{"$f":"IFERROR(VLOOKUP($D381,Справочник!$B:$C,2,FALSE),\"\")","v":""},null,{"$f":"IFERROR(VLOOKUP(F381,Справочник!B:C,2,FALSE),\"\")","v":""}]
[null,null,null,null,{"$f":"IFERROR(VLOOKUP($D382,Справочник!$B:$C,2,FALSE),\"\")","v":""},null,{"$f":"IFERROR(VLOOKUP(F382,Справочник!B:C,2,FALSE),\"\")","v":""}]
[null,null,null,null,{"$f":"IFERROR(VLOOKUP($D383,Справочник!$B:$C,2,FALSE),\"\")","v":""},null,{"$f":"IFERROR(VLOOKUP(F383,Справочник!B:C,2,FALSE),\"\")","v":""}]
[null,null,null,null,{"$f":"IFERROR(VLOOKUP($D384,Справочник!$B:$C,2,FALSE),\"\")","v":""},null,{"$f":"IFERROR(VLOOKUP(F384,Справочник!B:C,2,FALSE),\"\")","v":""}]
[null,null,null,null,{"$f":"IFERROR(VLOOKUP($D385,Справочник!$B:$C,2,FALSE),\"\")","v":""},null,{"$f":"IFERROR(VLOOKUP(F385,Справочник!B:C,2,FALSE),\"\")","v":""}]
[null,null,null,null,{"$f":"IFERROR(VLOOKUP($D386,Справочник!$B:$C,2,FALSE),\"\")","v":""},null,{"$f":"IFERROR(VLOOKUP(F386,Справочник!B:C,2,FALSE),\"\")","v":""}]
[null,null,null,null,{"$f":"IFERROR(VLOOKUP($D387,Справочник!$B:$C,2,FALSE),\"\")","v":""},null,{"$f":"IFERROR(VLOOKUP(F387,Справочник!B:C,2,FALSE),\"\")","v":""}]
[null,null,null,null,{"$f":"IFERROR(VLOOKUP($D388,Справочник!$B:$C,2,FALSE),\"\")","v":""},null,{"$f":"IFERROR(VLOOKUP(F388,Справочник!B:C,2,FALSE),\"\")","v":""}]
[null,null,null,null,{"$f":"IFERROR(VLOOKUP($D389,Справочник!$B:$C,2,FALSE),\"\")","v":""},null,{"$f":"IFERROR(VLOOKUP(F389,Справочник!B:C,2,FALSE),\"\")","v":""}]
[null,null,null,null,{"$f":"IFERROR(VLOOKUP($D390,Справочник!$B:$C,2,FALSE),\"\")","v":""},null,{"$f":"IFERROR(VLOOKUP(F390,Справочник!B:C,2,FALSE),\"\")","v":""}]
[null,null,null,null,{"$f":"IFERROR(VLOOKUP($D391,Справочник!$B:$C,2,FALSE),\"\")","v":""},null,{"$f":"IFERROR(VLOOKUP(F391,Справочник!B:C,2,FALSE),\"\")","v":""}]
[null,null,null,null,{"$f":"IFERROR(VLOOKUP($D392,Справочник!$B:$C,2,FALSE),\"\")","v":""},null,{"$f":"IFERROR(VLOOKUP(F392,Справочник!B:C,2,FALSE),\"\")","v":""}]
[null,null,null,null,{"$f":"IFERROR(VLOOKUP($D393,Справочник!$B:$C,2,FALSE),\"\")","v":""},null,{"$f":"IFERROR(VLOOKUP(F393,Справочник!B:C,2,FALSE),\"\")","v":""}]
[null,null,null,null,{"$f":"IFERROR(VLOOKUP($D394,Справочник!$B:$C,2,FALSE),\"\")","v":""},null,{"$f":"IFERROR(VLOOKUP(F394,Справочник!B:C,2,FALSE),\"\")","v":""}]
[null,null,null,null,{"$f":"IFERROR(VLOOKUP($D395,Справочник!$B:$C,2,FALSE),\"\")","v":""},null,{"$f":"IFERROR(VLOOKUP(F395,Справочник!B:C,2,FALSE),\"\")","v":""}]
[null,null,null,null,{"$f":"IFERROR(VLOOKUP($D396,Справочник!$B:$C,2,FALSE),\"\")","v":""},null,{"$f":"IFERROR(VLOOKUP(F396,Справочник!B:C,2,FALSE),\"\")","v":""}]
[null,null,null,null,{"$f":"IFERROR(VLOOKUP($D397,Справочник!$B:$C,2,FALSE),\"\")","v":""},null,{"$f":"IFERROR(VLOOKUP(F397,Справочник!B:C,2,FALSE),\"\")","v":""}]
[null,null,null,null,{"$f":"IFERROR(VLOOKUP($D398,Справочник!$B:$C,2,FALSE),\"\")","v":""},null,{"$f":"IFERROR(VLOOKUP(F398,Справочник!B:C,2,FALSE),\"\")","v":""}]
[null,null,null,null,{"$f":"IFERROR(VLOOKUP($D399,Справочник!$B:$C,2,FALSE),\"\")","v":""},null,{"$f":"IFERROR(VLOOKUP(F399,Справочник!B:C,2,FALSE),\"\")","v":""}]
[null,null,null,null,{"$f":"IFERROR(VLOOKUP($D400,Справочник!$B:$C,2,FALSE),\"\")","v":""},null,{"$f":"IFERROR(VLOOKUP(F400,Справочник!B:C,2,FALSE),\"\")","v":""}]
[null,null,null,null,{"$f":"IFERROR(VLOOKUP($D401,Справочник!$B:$C,2,FALSE),\"\")","v":""},null,{"$f":"IFERROR(VLOOKUP(F401,Справочник!B:C,2,FALSE),\"\")","v":""}]
[null,null,null,null,{"$f":"IFERROR(VLOOKUP($D402,Справочник!$B:$C,2,FALSE),\"\")","v":""},null,{"$f":"IFERROR(VLOOKUP(F402,Справочник!B:C,2,FALSE),\"\")","v":""}]
[null,null,null,null,{"$f":"IFERROR(VLOOKUP($D403,Справочник!$B:$C,2,FALSE),\"\")","v":""},null,{"$f":"IFERROR(VLOOKUP(F403,Справочник!B:C,2,FALSE),\"\")","v":""}]
[null,null,null,null,{"$f":"IFERROR(VLOOKUP($D404,Справочник!$B:$C,2,FALSE),\"\")","v":""},null,{"$f":"IFERROR(VLOOKUP(F404,Справочник!B:C,2,FALSE),\"\")","v":""}]
[null,null,null,null,{"$f":"IFERROR(VLOOKUP($D405,Справочник!$B:$C,2,FALSE),\"\")","v":""},null,{"$f":"IFERROR(VLOOKUP(F405,Справочник!B:C,2,FALSE),\"\")","v":""}]
[null,null,null,null,{"$f":"IFERROR(VLOOKUP($D406,Справочник!$B:$C,2,FALSE),\"\")","v":""},null,{"$f":"IFERROR(VLOOKUP(F406,Справочник!B:C,2,FALSE),\"\")","v":""}]
[null,null,null,null,{"$f":"IFERROR(VLOOKUP($D407,Справочник!$B:$C,2,FALSE),\"\")","v":""},null,{"$f":"IFERROR(VLOOKUP(F407,Справочник!B:C,2,FALSE),\"\")","v":""}]
[null,null,null,null,{"$f":"IFERROR(VLOOKUP($D408,Справочник!$B:$C,2,FALSE),\"\")","v":""},null,{"$f":"IFERROR(VLOOKUP(F408,Справочник!B:C,2,FALSE),\"\")","v":""}]
[null,null,null,null,{"$f":"IFERROR(VLOOKUP($D409,Справочник!$B:$C,2,FALSE),\"\")","v":""},null,{"$f":"IFERROR(VLOOKUP(F409,Справочник!B:C,2,FALSE),\"\")","v":""}]
[null,null,null,null,{"$f":"IFERROR(VLOOKUP($D410,Справочник!$B:$C,2,FALSE),\"\")","v":""},null,{"$f":"IFERROR(VLOOKUP(F410,Справочник!B:C,2,FALSE),\"\")","v":""}]
[null,null,null,null,{"$f":"IFERROR(VLOOKUP($D411,Справочник!$B:$C,2,FALSE),\"\")","v":""},null,{"$f":"IFERROR(VLOOKUP(F411,Справочник!B:C,2,FALSE),\"\")","v":""}]
[null,null,null,null,{"$f":"IFERROR(VLOOKUP($D412,Справочник!$B:$C,2,FALSE),\"\")","v":""},null,{"$f":"IFERROR(VLOOKUP(F412,Справочник!B:C,2,FALSE),\"\")","v":""}]
[null,null,null,null,{"$f":"IFERROR(VLOOKUP($D413,Справочник!$B:$C,2,FALSE),\"\")","v":""},null,{"$f":"IFERROR(VLOOKUP(F413,Справочник!B:C,2,FALSE),\"\")","v":""}]
[null,null,null,null,{"$f":"IFERROR(VLOOKUP($D414,Справочник!$B:$C,2,FALSE),\"\")","v":""},null,{"$f":"IFERROR(VLOOKUP(F414,Справочник!B:C,2,FALSE),\"\")","v":""}]
[null,null,null,null,{"$f":"IFERROR(VLOOKUP($D415,Справочник!$B:$C,2,FALSE),\"\")","v":""},null,{"$f":"IFERROR(VLOOKUP(F415,Справочник!B:C,2,FALSE),\"\")","v":""}]
[null,null,null,null,{"$f":"IFERROR(VLOOKUP($D416,Справочник!$B:$C,2,FALSE),\"\")","v":""},null,{"$f":"IFERROR(VLOOKUP(F416,Справочник!B:C,2,FALSE),\"\")","v":""}]
[null,null,null,null,{"$f":"IFERROR(VLOOKUP($D417,Справочник!$B:$C,2,FALSE),\"\")","v":""},null,{"$f":"IFERROR(VLOOKUP(F417,Справочник!B:C,2,FALSE),\"\")","v":""}]
[null,null,null,null,{"$f":"IFERROR(VLOOKUP($D418,Справочник!$B:$C,2,FALSE),\"\")","v":""},null,{"$f":"IFERROR(VLOOKUP(F418,Справочник!B:C,2,FALSE),\"\")","v":""}]
[null,null,null,null,{"$f":"IFERROR(VLOOKUP($D419,Справочник!$B:$C,2,FALSE),\"\")","v":""},null,{"$f":"IFERROR(VLOOKUP(F419,Справочник!B:C,2,FALSE),\"\")","v":""}]
[null,null,null,null,{"$f":"IFERROR(VLOOKUP($D420,Справочник!$B:$C,2,FALSE),\"\")","v":""},null,{"$f":"IFERROR(VLOOKUP(F420,Справочник!B:C,2,FALSE),\"\")","v":""}]
[null,null,null,null,{"$f":"IFERROR(VLOOKUP($D421,Справочник!$B:$C,2,FALSE),\"\")","v":""},null,{"$f":"IFERROR(VLOOKUP(F421,Справочник!B:C,2,FALSE),\"\")","v":""}]
[null,null,null,null,{"$f":"IFERROR(VLOOKUP($D422,Справочник!$B:$C,2,FALSE),\"\")","v":""},null,{"$f":"IFERROR(VLOOKUP(F422,Справочник!B:C,2,FALSE),\"\")","v":""}]
[null,null,null,null,{"$f":"IFERROR(VLOOKUP($D423,Справочник!$B:$C,2,FALSE),\"\")","v":""},null,{"$f":"IFERROR(VLOOKUP(F423,Справочник!B:C,2,FALSE),\"\")","v":""}]
[null,null,null,null,{"$f":"IFERROR(VLOOKUP($D424,Справочник!$B:$C,2,FALSE),\"\")","v":""},null,{"$f":"IFERROR(VLOOKUP(F424,Справочник!B:C,2,FALSE),\"\")","v":""}]
[null,null,null,null,{"$f":"IFERROR(VLOOKUP($D425,Справочник!$B:$C,2,FALSE),\"\")","v":""},null,{"$f":"IFERROR(VLOOKUP(F425,Справочник!B:C,2,FALSE),\"\")","v":""}]
[null,null,null,null,{"$f":"IFERROR(VLOOKUP($D426,Справочник!$B:$C,2,FALSE),\"\")","v":""},null,{"$f":"IFERROR(VLOOKUP(F426,Справочник!B:C,2,FALSE),\"\")","v":""}]
[null,null,null,null,{"$f":"IFERROR(VLOOKUP($D427,Справочник!$B:$C,2,FALSE),\"\")","v":""},null,{"$f":"IFERROR(VLOOKUP(F427,Справочник!B:C,2,FALSE),\"\")","v":""}]
[null,null,null,null,{"$f":"IFERROR(VLOOKUP($D428,Справочник!$B:$C,2,FALSE),\"\")","v":""},null,{"$f":"IFERROR(VLOOKUP(F428,Справочник!B:C,2,FALSE),\"\")","v":""}]
[null,null,null,null,{"$f":"IFERROR(VLOOKUP($D429,Справочник!$B:$C,2,FALSE),\"\")","v":""},null,{"$f":"IFERROR(VLOOKUP(F429,Справочник!B:C,2,FALSE),\"\")","v":""}]
[null,null,null,null,{"$f":"IFERROR(VLOOKUP($D430,Справочник!$B:$C,2,FALSE),\"\")","v":""},null,{"$f":"IFERROR(VLOOKUP(F430,Справочник!B:C,2,FALSE),\"\")","v":""}]
[null,null,null,null,{"$f":"IFERROR(VLOOKUP($D431,Справочник!$B:$C,2,FALSE),\"\")","v":""},null,{"$f":"IFERROR(VLOOKUP(F431,Справочник!B:C,2,FALSE),\"\")","v":""}]
[null,null,null,null,{"$f":"IFERROR(VLOOKUP($D432,Справочник!$B:$C,2,FALSE),\"\")","v":""},null,{"$f":"IFERROR(VLOOKUP(F432,Справочник!B:C,2,FALSE),\"\")","v":""}]
[null,null,null,null,{"$f":"IFERROR(VLOOKUP($D433,Справочник!$B:$C,2,FALSE),\"\")","v":""},null,{"$f":"IFERROR(VLOOKUP(F433,Справочник!B:C,2,FALSE),\"\")","v":""}]
[null,null,null,null,{"$f":"IFERROR(VLOOKUP($D434,Справочник!$B:$C,2,FALSE),\"\")","v":""},null,{"$f":"IFERROR(VLOOKUP(F434,Справочник!B:C,2,FALSE),\"\")","v":""}]
[null,null,null,null,{"$f":"IFERROR(VLOOKUP($D435,Справочник!$B:$C,2,FALSE),\"\")","v":""},null,{"$f":"IFERROR(VLOOKUP(F435,Справочник!B:C,2,FALSE),\"\")","v":""}]
[null,null,null,null,{"$f":"IFERROR(VLOOKUP($D436,Справочник!$B:$C,2,FALSE),\"\")","v":""},null,{"$f":"IFERROR(VLOOKUP(F436,Справочник!B:C,2,FALSE),\"\")","v":""}]
[null,null,null,null,{"$f":"IFERROR(VLOOKUP($D437,Справочник!$B:$C,2,FALSE),\"\")","v":""},null,{"$f":"IFERROR(VLOOKUP(F437,Справочник!B:C,2,FALSE),\"\")","v":""}]
[null,null,null,null,{"$f":"IFERROR(VLOOKUP($D438,Справочник!$B:$C,2,FALSE),\"\")","v":""},null,{"$f":"IFERROR(VLOOKUP(F438,Справочник!B:C,2,FALSE),\"\")","v":""}]
[null,null,null,null,{"$f":"IFERROR(VLOOKUP($D439,Справочник!$B:$C,2,FALSE),\"\")","v":""},null,{"$f":"IFERROR(VLOOKUP(F439,Справочник!B:C,2,FALSE),\"\")","v":""}]
[null,null,null,null,{"$f":"IFERROR(VLOOKUP($D440,Справочник!$B:$C,2,FALSE),\"\")","v":""},null,{"$f":"IFERROR(VLOOKUP(F440,Справочник!B:C,2,FALSE),\"\")","v":""}]
[null,null,null,null,{"$f":"IFERROR(VLOOKUP($D441,Справочник!$B:$C,2,FALSE),\"\")","v":""},null,{"$f":"IFERROR(VLOOKUP(F441,Справочник!B:C,2,FALSE),\"\")","v":""}]
[null,null,null,null,{"$f":"IFERROR(VLOOKUP($D442,Справочник!$B:$C,2,FALSE),\"\")","v":""},null,{"$f":"IFERROR(VLOOKUP(F442,Справочник!B:C,2,FALSE),\"\")","v":""}]
[null,null,null,null,{"$f":"IFERROR(VLOOKUP($D443,Справочник!$B:$C,2,FALSE),\"\")","v":""},null,{"$f":"IFERROR(VLOOKUP(F443,Справочник!B:C,2,FALSE),\"\")","v":""}]
[null,null,null,null,{"$f":"IFERROR(VLOOKUP($D444,Справочник!$B:$C,2,FALSE),\"\")","v":""},null,{"$f":"IFERROR(VLOOKUP(F444,Справочник!B:C,2,FALSE),\"\")","v":""}]
[null,null,null,null,{"$f":"IFERROR(VLOOKUP($D445,Справочник!$B:$C,2,FALSE),\"\")","v":""},null,{"$f":"IFERROR(VLOOKUP(F445,Справочник!B:C,2,FALSE),\"\")","v":""}]
[null,null,null,null,{"$f":"IFERROR(VLOOKUP($D446,Справочник!$B:$C,2,FALSE),\"\")","v":""},null,{"$f":"IFERROR(VLOOKUP(F446,Справочник!B:C,2,FALSE),\"\")","v":""}]
[null,null,null,null,{"$f":"IFERROR(VLOOKUP($D447,Справочник!$B:$C,2,FALSE),\"\")","v":""},null,{"$f":"IFERROR(VLOOKUP(F447,Справочник!B:C,2,FALSE),\"\")","v":""}]
[null,null,null,null,{"$f":"IFERROR(VLOOKUP($D448,Справочник!$B:$C,2,FALSE),\"\")","v":""},null,{"$f":"IFERROR(VLOOKUP(F448,Справочник!B:C,2,FALSE),\"\")","v":""}]
[null,null,null,null,{"$f":"IFERROR(VLOOKUP($D449,Справочник!$B:$C,2,FALSE),\"\")","v":""},null,{"$f":"IFERROR(VLOOKUP(F449,Справочник!B:C,2,FALSE),\"\")","v":""}]
[null,null,null,null,{"$f":"IFERROR(VLOOKUP($D450,Справочник!$B:$C,2,FALSE),\"\")","v":""},null,{"$f":"IFERROR(VLOOKUP(F450,Справочник!B:C,2,FALSE),\"\")","v":""}]
[null,null,null,null,{"$f":"IFERROR(VLOOKUP($D451,Справочник!$B:$C,2,FALSE),\"\")","v":""},null,{"$f":"IFERROR(VLOOKUP(F451,Справочник!B:C,2,FALSE),\"\")","v":""}]
[null,null,null,null,{"$f":"IFERROR(VLOOKUP($D452,Справочник!$B:$C,2,FALSE),\"\")","v":""},null,{"$f":"IFERROR(VLOOKUP(F452,Справочник!B:C,2,FALSE),\"\")","v":""}]
[null,null,null,null,{"$f":"IFERROR(VLOOKUP($D453,Справочник!$B:$C,2,FALSE),\"\")","v":""},null,{"$f":"IFERROR(VLOOKUP(F453,Справочник!B:C,2,FALSE),\"\")","v":""}]
[null,null,null,null,{"$f":"IFERROR(VLOOKUP($D454,Справочник!$B:$C,2,FALSE),\"\")","v":""},null,{"$f":"IFERROR(VLOOKUP(F454,Справочник!B:C,2,FALSE),\"\")","v":""}]
[null,null,null,null,{"$f":"IFERROR(VLOOKUP($D455,Справочник!$B:$C,2,FALSE),\"\")","v":""},null,{"$f":"IFERROR(VLOOKUP(F455,Справочник!B:C,2,FALSE),\"\")","v":""}]
[null,null,null,null,{"$f":"IFERROR(VLOOKUP($D456,Справочник!$B:$C,2,FALSE),\"\")","v":""},null,{"$f":"IFERROR(VLOOKUP(F456,Справочник!B:C,2,FALSE),\"\")","v":""}]
[null,null,null,null,{"$f":"IFERROR(VLOOKUP($D457,Справочник!$B:$C,2,FALSE),\"\")","v":""},null,{"$f":"IFERROR(VLOOKUP(F457,Справочник!B:C,2,FALSE),\"\")","v":""}]
[null,null,null,null,{"$f":"IFERROR(VLOOKUP($D458,Справочник!$B:$C,2,FALSE),\"\")","v":""},null,{"$f":"IFERROR(VLOOKUP(F458,Справочник!B:C,2,FALSE),\"\")","v":""}]
[null,null,null,null,{"$f":"IFERROR(VLOOKUP($D459,Справочник!$B:$C,2,FALSE),\"\")","v":""},null,{"$f":"IFERROR(VLOOKUP(F459,Справочник!B:C,2,FALSE),\"\")","v":""}]
[null,null,null,null,{"$f":"IFERROR(VLOOKUP($D460,Справочник!$B:$C,2,FALSE),\"\")","v":""},null,{"$f":"IFERROR(VLOOKUP(F460,Справочник!B:C,2,FALSE),\"\")","v":""}]
[null,null,null,null,{"$f":"IFERROR(VLOOKUP($D461,Справочник!$B:$C,2,FALSE),\"\")","v":""},null,{"$f":"IFERROR(VLOOKUP(F461,Справочник!B:C,2,FALSE),\"\")","v":""}]
[null,null,null,null,{"$f":"IFERROR(VLOOKUP($D462,Справочник!$B:$C,2,FALSE),\"\")","v":""},null,{"$f":"IFERROR(VLOOKUP(F462,Справочник!B:C,2,FALSE),\"\")","v":""}]
[null,null,null,null,{"$f":"IFERROR(VLOOKUP($D463,Справочник!$B:$C,2,FALSE),\"\")","v":""},null,{"$f":"IFERROR(VLOOKUP(F463,Справочник!B:C,2,FALSE),\"\")","v":""}]
[null,null,null,null,{"$f":"IFERROR(VLOOKUP($D464,Справочник!$B:$C,2,FALSE),\"\")","v":""},null,{"$f":"IFERROR(VLOOKUP(F464,Справочник!B:C,2,FALSE),\"\")","v":""}]
[null,null,null,null,{"$f":"IFERROR(VLOOKUP($D465,Справочник!$B:$C,2,FALSE),\"\")","v":""},null,{"$f":"IFERROR(VLOOKUP(F465,Справочник!B:C,2,FALSE),\"\")","v":""}]
[null,null,null,null,{"$f":"IFERROR(VLOOKUP($D466,Справочник!$B:$C,2,FALSE),\"\")","v":""},null,{"$f":"IFERROR(VLOOKUP(F466,Справочник!B:C,2,FALSE),\"\")","v":""}]
[null,null,null,null,{"$f":"IFERROR(VLOOKUP($D467,Справочник!$B:$C,2,FALSE),\"\")","v":""},null,{"$f":"IFERROR(VLOOKUP(F467,Справочник!B:C,2,FALSE),\"\")","v":""}]
[null,null,null,null,{"$f":"IFERROR(VLOOKUP($D468,Справочник!$B:$C,2,FALSE),\"\")","v":""},null,{"$f":"IFERROR(VLOOKUP(F468,Справочник!B:C,2,FALSE),\"\")","v":""}]
[null,null,null,null,{"$f":"IFERROR(VLOOKUP($D469,Справочник!$B:$C,2,FALSE),\"\")","v":""},null,{"$f":"IFERROR(VLOOKUP(F469,Справочник!B:C,2,FALSE),\"\")","v":""}]
[null,null,null,null,{"$f":"IFERROR(VLOOKUP($D470,Справочник!$B:$C,2,FALSE),\"\")","v":""},null,{"$f":"IFERROR(VLOOKUP(F470,Справочник!B:C,2,FALSE),\"\")","v":""}]
[null,null,null,null,{"$f":"IFERROR(VLOOKUP($D471,Справочник!$B:$C,2,FALSE),\"\")","v":""},null,{"$f":"IFERROR(VLOOKUP(F471,Справочник!B:C,2,FALSE),\"\")","v":""}]
[null,null,null,null,{"$f":"IFERROR(VLOOKUP($D472,Справочник!$B:$C,2,FALSE),\"\")","v":""},null,{"$f":"IFERROR(VLOOKUP(F472,Справочник!B:C,2,FALSE),\"\")","v":""}]
[null,null,null,null,{"$f":"IFERROR(VLOOKUP($D473,Справочник!$B:$C,2,FALSE),\"\")","v":""},null,{"$f":"IFERROR(VLOOKUP(F473,Справочник!B:C,2,FALSE),\"\")","v":""}]
[null,null,null,null,{"$f":"IFERROR(VLOOKUP($D474,Справочник!$B:$C,2,FALSE),\"\")","v":""},null,{"$f":"IFERROR(VLOOKUP(F474,Справочник!B:C,2,FALSE),\"\")","v":""}]
[null,null,null,null,{"$f":"IFERROR(VLOOKUP($D475,Справочник!$B:$C,2,FALSE),\"\")","v":""},null,{"$f":"IFERROR(VLOOKUP(F475,Справочник!B:C,2,FALSE),\"\")","v":""}]
[null,null,null,null,{"$f":"IFERROR(VLOOKUP($D476,Справочник!$B:$C,2,FALSE),\"\")","v":""},null,{"$f":"IFERROR(VLOOKUP(F476,Справочник!B:C,2,FALSE),\"\")","v":""}]
[null,null,null,null,{"$f":"IFERROR(VLOOKUP($D477,Справочник!$B:$C,2,FALSE),\"\")","v":""},null,{"$f":"IFERROR(VLOOKUP(F477,Справочник!B:C,2,FALSE),\"\")","v":""}]
[null,null,null,null,{"$f":"IFERROR(VLOOKUP($D478,Справочник!$B:$C,2,FALSE),\"\")","v":""},null,{"$f":"IFERROR(VLOOKUP(F478,Справочник!B:C,2,FALSE),\"\")","v":""}]
[null,null,null,null,{"$f":"IFERROR(VLOOKUP($D479,Справочник!$B:$C,2,FALSE),\"\")","v":""},null,{"$f":"IFERROR(VLOOKUP(F479,Справочник!B:C,2,FALSE),\"\")","v":""}]
[null,null,null,null,{"$f":"IFERROR(VLOOKUP($D480,Справочник!$B:$C,2,FALSE),\"\")","v":""},null,{"$f":"IFERROR(VLOOKUP(F480,Справочник!B:C,2,FALSE),\"\")","v":""}]
[null,null,null,null,{"$f":"IFERROR(VLOOKUP($D481,Справочник!$B:$C,2,FALSE),\"\")","v":""},null,{"$f":"IFERROR(VLOOKUP(F481,Справочник!B:C,2,FALSE),\"\")","v":""}]
[null,null,null,null,{"$f":"IFERROR(VLOOKUP($D482,Справочник!$B:$C,2,FALSE),\"\")","v":""},null,{"$f":"IFERROR(VLOOKUP(F482,Справочник!B:C,2,FALSE),\"\")","v":""}]
[null,null,null,null,{"$f":"IFERROR(VLOOKUP($D483,Справочник!$B:$C,2,FALSE),\"\")","v":""},null,{"$f":"IFERROR(VLOOKUP(F483,Справочник!B:C,2,FALSE),\"\")","v":""}]
[null,null,null,null,{"$f":"IFERROR(VLOOKUP($D484,Справочник!$B:$C,2,FALSE),\"\")","v":""},null,{"$f":"IFERROR(VLOOKUP(F484,Справочник!B:C,2,FALSE),\"\")","v":""}]
[null,null,null,null,{"$f":"IFERROR(VLOOKUP($D485,Справочник!$B:$C,2,FALSE),\"\")","v":""},null,{"$f":"IFERROR(VLOOKUP(F485,Справочник!B:C,2,FALSE),\"\")","v":""}]
[null,null,null,null,{"$f":"IFERROR(VLOOKUP($D486,Справочник!$B:$C,2,FALSE),\"\")","v":""},null,{"$f":"IFERROR(VLOOKUP(F486,Справочник!B:C,2,FALSE),\"\")","v":""}]
[null,null,null,null,{"$f":"IFERROR(VLOOKUP($D487,Справочник!$B:$C,2,FALSE),\"\")","v":""},null,{"$f":"IFERROR(VLOOKUP(F487,Справочник!B:C,2,FALSE),\"\")","v":""}]
[null,null,null,null,{"$f":"IFERROR(VLOOKUP($D488,Справочник!$B:$C,2,FALSE),\"\")","v":""},null,{"$f":"IFERROR(VLOOKUP(F488,Справочник!B:C,2,FALSE),\"\")","v":""}]
[null,null,null,null,{"$f":"IFERROR(VLOOKUP($D489,Справочник!$B:$C,2,FALSE),\"\")","v":""},null,{"$f":"IFERROR(VLOOKUP(F489,Справочник!B:C,2,FALSE),\"\")","v":""}]
[null,null,null,null,{"$f":"IFERROR(VLOOKUP($D490,Справочник!$B:$C,2,FALSE),\"\")","v":""},null,{"$f":"IFERROR(VLOOKUP(F490,Справочник!B:C,2,FALSE),\"\")","v":""}]
[null,null,null,null,{"$f":"IFERROR(VLOOKUP($D491,Справочник!$B:$C,2,FALSE),\"\")","v":""},null,{"$f":"IFERROR(VLOOKUP(F491,Справочник!B:C,2,FALSE),\"\")","v":""}]
[null,null,null,null,{"$f":"IFERROR(VLOOKUP($D492,Справочник!$B:$C,2,FALSE),\"\")","v":""},null,{"$f":"IFERROR(VLOOKUP(F492,Справочник!B:C,2,FALSE),\"\")","v":""}]
[null,null,null,null,{"$f":"IFERROR(VLOOKUP($D493,Справочник!$B:$C,2,FALSE),\"\")","v":""},null,{"$f":"IFERROR(VLOOKUP(F493,Справочник!B:C,2,FALSE),\"\")","v":""}]
[null,null,null,null,{"$f":"IFERROR(VLOOKUP($D494,Справочник!$B:$C,2,FALSE),\"\")","v":""},null,{"$f":"IFERROR(VLOOKUP(F494,Справочник!B:C,2,FALSE),\"\")","v":""}]
[null,null,null,null,{"$f":"IFERROR(VLOOKUP($D495,Справочник!$B:$C,2,FALSE),\"\")","v":""},null,{"$f":"IFERROR(VLOOKUP(F495,Справочник!B:C,2,FALSE),\"\")","v":""}]
[null,null,null,null,{"$f":"IFERROR(VLOOKUP($D496,Справочник!$B:$C,2,FALSE),\"\")","v":""},null,{"$f":"IFERROR(VLOOKUP(F496,Справочник!B:C,2,FALSE),\"\")","v":""}]
[null,null,null,null,{"$f":"IFERROR(VLOOKUP($D497,Справочник!$B:$C,2,FALSE),\"\")","v":""},null,{"$f":"IFERROR(VLOOKUP(F497,Справочник!B:C,2,FALSE),\"\")","v":""}]
[null,null,null,null,{"$f":"IFERROR(VLOOKUP($D498,Справочник!$B:$C,2,FALSE),\"\")","v":""},null,{"$f":"IFERROR(VLOOKUP(F498,Справочник!B:C,2,FALSE),\"\")","v":""}]
[null,null,null,null,{"$f":"IFERROR(VLOOKUP($D499,Справочник!$B:$C,2,FALSE),\"\")","v":""},null,{"$f":"IFERROR(VLOOKUP(F499,Справочник!B:C,2,FALSE),\"\")","v":""}]
[null,null,null,null,{"$f":"IFERROR(VLOOKUP($D500,Справочник!$B:$C,2,FALSE),\"\")","v":""},null,{"$f":"IFERROR(VLOOKUP(F500,Справочник!B:C,2,FALSE),\"\")","v":""}]
[null,null,null,null,{"$f":"IFERROR(VLOOKUP($D501,Справочник!$B:$C,2,FALSE),\"\")","v":""},null,{"$f":"IFERROR(VLOOKUP(F501,Справочник!B:C,2,FALSE),\"\")","v":""}]
[null,null,null,null,{"$f":"IFERROR(VLOOKUP($D502,Справочник!$B:$C,2,FALSE),\"\")","v":""},null,{"$f":"IFERROR(VLOOKUP(F502,Справочник!B:C,2,FALSE),\"\")","v":""}]
[null,null,null,null,{"$f":"IFERROR(VLOOKUP($D503,Справочник!$B:$C,2,FALSE),\"\")","v":""},null,{"$f":"IFERROR(VLOOKUP(F503,Справочник!B:C,2,FALSE),\"\")","v":""}]
[null,null,null,null,{"$f":"IFERROR(VLOOKUP($D504,Справочник!$B:$C,2,FALSE),\"\")","v":""},null,{"$f":"IFERROR(VLOOKUP(F504,Справочник!B:C,2,FALSE),\"\")","v":""}]
[null,null,null,null,{"$f":"IFERROR(VLOOKUP($D505,Справочник!$B:$C,2,FALSE),\"\")","v":""},null,{"$f":"IFERROR(VLOOKUP(F505,Справочник!B:C,2,FALSE),\"\")","v":""}]
[null,null,null,null,{"$f":"IFERROR(VLOOKUP($D506,Справочник!$B:$C,2,FALSE),\"\")","v":""},null,{"$f":"IFERROR(VLOOKUP(F506,Справочник!B:C,2,FALSE),\"\")","v":""}]
[null,null,null,null,{"$f":"IFERROR(VLOOKUP($D507,Справочник!$B:$C,2,FALSE),\"\")","v":""},null,{"$f":"IFERROR(VLOOKUP(F507,Справочник!B:C,2,FALSE),\"\")","v":""}]
[null,null,null,null,{"$f":"IFERROR(VLOOKUP($D508,Справочник!$B:$C,2,FALSE),\"\")","v":""},null,{"$f":"IFERROR(VLOOKUP(F508,Справочник!B:C,2,FALSE),\"\")","v":""}]
[null,null,null,null,{"$f":"IFERROR(VLOOKUP($D509,Справочник!$B:$C,2,FALSE),\"\")","v":""},null,{"$f":"IFERROR(VLOOKUP(F509,Справочник!B:C,2,FALSE),\"\")","v":""}]
[null,null,null,null,{"$f":"IFERROR(VLOOKUP($D510,Справочник!$B:$C,2,FALSE),\"\")","v":""},null,{"$f":"IFERROR(VLOOKUP(F510,Справочник!B:C,2,FALSE),\"\")","v":""}]
[null,null,null,null,{"$f":"IFERROR(VLOOKUP($D511,Справочник!$B:$C,2,FALSE),\"\")","v":""},null,{"$f":"IFERROR(VLOOKUP(F511,Справочник!B:C,2,FALSE),\"\")","v":""}]
[null,null,null,null,{"$f":"IFERROR(VLOOKUP($D512,Справочник!$B:$C,2,FALSE),\"\")","v":""},null,{"$f":"IFERROR(VLOOKUP(F512,Справочник!B:C,2,FALSE),\"\")","v":""}]
[null,null,null,null,{"$f":"IFERROR(VLOOKUP($D513,Справочник!$B:$C,2,FALSE),\"\")","v":""},null,{"$f":"IFERROR(VLOOKUP(F513,Справочник!B:C,2,FALSE),\"\")","v":""}]
[null,null,null,null,{"$f":"IFERROR(VLOOKUP($D514,Справочник!$B:$C,2,FALSE),\"\")","v":""},null,{"$f":"IFERROR(VLOOKUP(F514,Справочник!B:C,2,FALSE),\"\")","v":""}]
[null,null,null,null,{"$f":"IFERROR(VLOOKUP($D515,Справочник!$B:$C,2,FALSE),\"\")","v":""},null,{"$f":"IFERROR(VLOOKUP(F515,Справочник!B:C,2,FALSE),\"\")","v":""}]
[null,null,null,null,{"$f":"IFERROR(VLOOKUP($D516,Справочник!$B:$C,2,FALSE),\"\")","v":""},null,{"$f":"IFERROR(VLOOKUP(F516,Справочник!B:C,2,FALSE),\"\")","v":""}]
[null,null,null,null,{"$f":"IFERROR(VLOOKUP($D517,Справочник!$B:$C,2,FALSE),\"\")","v":""},null,{"$f":"IFERROR(VLOOKUP(F517,Справочник!B:C,2,FALSE),\"\")","v":""}]
[null,null,null,null,{"$f":"IFERROR(VLOOKUP($D518,Справочник!$B:$C,2,FALSE),\"\")","v":""},null,{"$f":"IFERROR(VLOOKUP(F518,Справочник!B:C,2,FALSE),\"\")","v":""}]
[null,null,null,null,{"$f":"IFERROR(VLOOKUP($D519,Справочник!$B:$C,2,FALSE),\"\")","v":""},null,{"$f":"IFERROR(VLOOKUP(F519,Справочник!B:C,2,FALSE),\"\")","v":""}]
[null,null,null,null,{"$f":"IFERROR(VLOOKUP($D520,Справочник!$B:$C,2,FALSE),\"\")","v":""},null,{"$f":"IFERROR(VLOOKUP(F520,Справочник!B:C,2,FALSE),\"\")","v":""}]
[null,null,null,null,{"$f":"IFERROR(VLOOKUP($D521,Справочник!$B:$C,2,FALSE),\"\")","v":""},null,{"$f":"IFERROR(VLOOKUP(F521,Справочник!B:C,2,FALSE),\"\")","v":""}]
[null,null,null,null,{"$f":"IFERROR(VLOOKUP($D522,Справочник!$B:$C,2,FALSE),\"\")","v":""},null,{"$f":"IFERROR(VLOOKUP(F522,Справочник!B:C,2,FALSE),\"\")","v":""}]
[null,null,null,null,{"$f":"IFERROR(VLOOKUP($D523,Справочник!$B:$C,2,FALSE),\"\")","v":""},null,{"$f":"IFERROR(VLOOKUP(F523,Справочник!B:C,2,FALSE),\"\")","v":""}]
[null,null,null,null,{"$f":"IFERROR(VLOOKUP($D524,Справочник!$B:$C,2,FALSE),\"\")","v":""},null,{"$f":"IFERROR(VLOOKUP(F524,Справочник!B:C,2,FALSE),\"\")","v":""}]
[null,null,null,null,{"$f":"IFERROR(VLOOKUP($D525,Справочник!$B:$C,2,FALSE),\"\")","v":""},null,{"$f":"IFERROR(VLOOKUP(F525,Справочник!B:C,2,FALSE),\"\")","v":""}]
[null,null,null,null,{"$f":"IFERROR(VLOOKUP($D526,Справочник!$B:$C,2,FALSE),\"\")","v":""},null,{"$f":"IFERROR(VLOOKUP(F526,Справочник!B:C,2,FALSE),\"\")","v":""}]
[null,null,null,null,{"$f":"IFERROR(VLOOKUP($D527,Справочник!$B:$C,2,FALSE),\"\")","v":""},null,{"$f":"IFERROR(VLOOKUP(F527,Справочник!B:C,2,FALSE),\"\")","v":""}]
[null,null,null,null,{"$f":"IFERROR(VLOOKUP($D528,Справочник!$B:$C,2,FALSE),\"\")","v":""},null,{"$f":"IFERROR(VLOOKUP(F528,Справочник!B:C,2,FALSE),\"\")","v":""}]
[null,null,null,null,{"$f":"IFERROR(VLOOKUP($D529,Справочник!$B:$C,2,FALSE),\"\")","v":""},null,{"$f":"IFERROR(VLOOKUP(F529,Справочник!B:C,2,FALSE),\"\")","v":""}]
[null,null,null,null,{"$f":"IFERROR(VLOOKUP($D530,Справочник!$B:$C,2,FALSE),\"\")","v":""},null,{"$f":"IFERROR(VLOOKUP(F530,Справочник!B:C,2,FALSE),\"\")","v":""}]
[null,null,null,null,{"$f":"IFERROR(VLOOKUP($D531,Справочник!$B:$C,2,FALSE),\"\")","v":""},null,{"$f":"IFERROR(VLOOKUP(F531,Справочник!B:C,2,FALSE),\"\")","v":""}]
[null,null,null,null,{"$f":"IFERROR(VLOOKUP($D532,Справочник!$B:$C,2,FALSE),\"\")","v":""},null,{"$f":"IFERROR(VLOOKUP(F532,Справочник!B:C,2,FALSE),\"\")","v":""}]
[null,null,null,null,{"$f":"IFERROR(VLOOKUP($D533,Справочник!$B:$C,2,FALSE),\"\")","v":""},null,{"$f":"IFERROR(VLOOKUP(F533,Справочник!B:C,2,FALSE),\"\")","v":""}]
[null,null,null,null,{"$f":"IFERROR(VLOOKUP($D534,Справочник!$B:$C,2,FALSE),\"\")","v":""},null,{"$f":"IFERROR(VLOOKUP(F534,Справочник!B:C,2,FALSE),\"\")","v":""}]
[null,null,null,null,{"$f":"IFERROR(VLOOKUP($D535,Справочник!$B:$C,2,FALSE),\"\")","v":""},null,{"$f":"IFERROR(VLOOKUP(F535,Справочник!B:C,2,FALSE),\"\")","v":""}]
[null,null,null,null,{"$f":"IFERROR(VLOOKUP($D536,Справочник!$B:$C,2,FALSE),\"\")","v":""},null,{"$f":"IFERROR(VLOOKUP(F536,Справочник!B:C,2,FALSE),\"\")","v":""}]
[null,null,null,null,{"$f":"IFERROR(VLOOKUP($D537,Справочник!$B:$C,2,FALSE),\"\")","v":""},null,{"$f":"IFERROR(VLOOKUP(F537,Справочник!B:C,2,FALSE),\"\")","v":""}]
[null,null,null,null,{"$f":"IFERROR(VLOOKUP($D538,Справочник!$B:$C,2,FALSE),\"\")","v":""},null,{"$f":"IFERROR(VLOOKUP(F538,Справочник!B:C,2,FALSE),\"\")","v":""}]
[null,null,null,null,{"$f":"IFERROR(VLOOKUP($D539,Справочник!$B:$C,2,FALSE),\"\")","v":""},null,{"$f":"IFERROR(VLOOKUP(F539,Справочник!B:C,2,FALSE),\"\")","v":""}]
[null,null,null,null,{"$f":"IFERROR(VLOOKUP($D540,Справочник!$B:$C,2,FALSE),\"\")","v":""},null,{"$f":"IFERROR(VLOOKUP(F540,Справочник!B:C,2,FALSE),\"\")","v":""}]
[null,null,null,null,{"$f":"IFERROR(VLOOKUP($D541,Справочник!$B:$C,2,FALSE),\"\")","v":""},null,{"$f":"IFERROR(VLOOKUP(F541,Справочник!B:C,2,FALSE),\"\")","v":""}]
[null,null,null,null,{"$f":"IFERROR(VLOOKUP($D542,Справочник!$B:$C,2,FALSE),\"\")","v":""},null,{"$f":"IFERROR(VLOOKUP(F542,Справочник!B:C,2,FALSE),\"\")","v":""}]
[null,null,null,null,{"$f":"IFERROR(VLOOKUP($D543,Справочник!$B:$C,2,FALSE),\"\")","v":""},null,{"$f":"IFERROR(VLOOKUP(F543,Справочник!B:C,2,FALSE),\"\")","v":""}]
[null,null,null,null,{"$f":"IFERROR(VLOOKUP($D544,Справочник!$B:$C,2,FALSE),\"\")","v":""},null,{"$f":"IFERROR(VLOOKUP(F544,Справочник!B:C,2,FALSE),\"\")","v":""}]
[null,null,null,null,{"$f":"IFERROR(VLOOKUP($D545,Справочник!$B:$C,2,FALSE),\"\")","v":""},null,{"$f":"IFERROR(VLOOKUP(F545,Справочник!B:C,2,FALSE),\"\")","v":""}]
[null,null,null,null,{"$f":"IFERROR(VLOOKUP($D546,Справочник!$B:$C,2,FALSE),\"\")","v":""},null,{"$f":"IFERROR(VLOOKUP(F546,Справочник!B:C,2,FALSE),\"\")","v":""}]
[null,null,null,null,{"$f":"IFERROR(VLOOKUP($D547,Справочник!$B:$C,2,FALSE),\"\")","v":""},null,{"$f":"IFERROR(VLOOKUP(F547,Справочник!B:C,2,FALSE),\"\")","v":""}]
[null,null,null,null,{"$f":"IFERROR(VLOOKUP($D548,Справочник!$B:$C,2,FALSE),\"\")","v":""},null,{"$f":"IFERROR(VLOOKUP(F548,Справочник!B:C,2,FALSE),\"\")","v":""}]
[null,null,null,null,{"$f":"IFERROR(VLOOKUP($D549,Справочник!$B:$C,2,FALSE),\"\")","v":""},null,{"$f":"IFERROR(VLOOKUP(F549,Справочник!B:C,2,FALSE),\"\")","v":""}]
[null,null,null,null,{"$f":"IFERROR(VLOOKUP($D550,Справочник!$B:$C,2,FALSE),\"\")","v":""},null,{"$f":"IFERROR(VLOOKUP(F550,Справочник!B:C,2,FALSE),\"\")","v":""}]
[null,null,null,null,{"$f":"IFERROR(VLOOKUP($D551,Справочник!$B:$C,2,FALSE),\"\")","v":""},null,{"$f":"IFERROR(VLOOKUP(F551,Справочник!B:C,2,FALSE),\"\")","v":""}]
[null,null,null,null,{"$f":"IFERROR(VLOOKUP($D552,Справочник!$B:$C,2,FALSE),\"\")","v":""},null,{"$f":"IFERROR(VLOOKUP(F552,Справочник!B:C,2,FALSE),\"\")","v":""}]
[null,null,null,null,{"$f":"IFERROR(VLOOKUP($D553,Справочник!$B:$C,2,FALSE),\"\")","v":""},null,{"$f":"IFERROR(VLOOKUP(F553,Справочник!B:C,2,FALSE),\"\")","v":""}]
[null,null,null,null,{"$f":"IFERROR(VLOOKUP($D554,Справочник!$B:$C,2,FALSE),\"\")","v":""},null,{"$f":"IFERROR(VLOOKUP(F554,Справочник!B:C,2,FALSE),\"\")","v":""}]
[null,null,null,null,{"$f":"IFERROR(VLOOKUP($D555,Справочник!$B:$C,2,FALSE),\"\")","v":""},null,{"$f":"IFERROR(VLOOKUP(F555,Справочник!B:C,2,FALSE),\"\")","v":""}]
[null,null,null,null,{"$f":"IFERROR(VLOOKUP($D556,Справочник!$B:$C,2,FALSE),\"\")","v":""},null,{"$f":"IFERROR(VLOOKUP(F556,Справочник!B:C,2,FALSE),\"\")","v":""}]
[null,null,null,null,{"$f":"IFERROR(VLOOKUP($D557,Справочник!$B:$C,2,FALSE),\"\")","v":""},null,{"$f":"IFERROR(VLOOKUP(F557,Справочник!B:C,2,FALSE),\"\")","v":""}]
[null,null,null,null,{"$f":"IFERROR(VLOOKUP($D558,Справочник!$B:$C,2,FALSE),\"\")","v":""},null,{"$f":"IFERROR(VLOOKUP(F558,Справочник!B:C,2,FALSE),\"\")","v":""}]
[null,null,null,null,{"$f":"IFERROR(VLOOKUP($D559,Справочник!$B:$C,2,FALSE),\"\")","v":""},null,{"$f":"IFERROR(VLOOKUP(F559,Справочник!B:C,2,FALSE),\"\")","v":""}]
[null,null,null,null,{"$f":"IFERROR(VLOOKUP($D560,Справочник!$B:$C,2,FALSE),\"\")","v":""},null,{"$f":"IFERROR(VLOOKUP(F560,Справочник!B:C,2,FALSE),\"\")","v":""}]
[null,null,null,null,{"$f":"IFERROR(VLOOKUP($D561,Справочник!$B:$C,2,FALSE),\"\")","v":""},null,{"$f":"IFERROR(VLOOKUP(F561,Справочник!B:C,2,FALSE),\"\")","v":""}]
[null,null,null,null,{"$f":"IFERROR(VLOOKUP($D562,Справочник!$B:$C,2,FALSE),\"\")","v":""},null,{"$f":"IFERROR(VLOOKUP(F562,Справочник!B:C,2,FALSE),\"\")","v":""}]
[null,null,null,null,{"$f":"IFERROR(VLOOKUP($D563,Справочник!$B:$C,2,FALSE),\"\")","v":""},null,{"$f":"IFERROR(VLOOKUP(F563,Справочник!B:C,2,FALSE),\"\")","v":""}]
[null,null,null,null,{"$f":"IFERROR(VLOOKUP($D564,Справочник!$B:$C,2,FALSE),\"\")","v":""},null,{"$f":"IFERROR(VLOOKUP(F564,Справочник!B:C,2,FALSE),\"\")","v":""}]
[null,null,null,null,{"$f":"IFERROR(VLOOKUP($D565,Справочник!$B:$C,2,FALSE),\"\")","v":""},null,{"$f":"IFERROR(VLOOKUP(F565,Справочник!B:C,2,FALSE),\"\")","v":""}]
[null,null,null,null,{"$f":"IFERROR(VLOOKUP($D566,Справочник!$B:$C,2,FALSE),\"\")","v":""},null,{"$f":"IFERROR(VLOOKUP(F566,Справочник!B:C,2,FALSE),\"\")","v":""}]
[null,null,null,null,{"$f":"IFERROR(VLOOKUP($D567,Справочник!$B:$C,2,FALSE),\"\")","v":""},null,{"$f":"IFERROR(VLOOKUP(F567,Справочник!B:C,2,FALSE),\"\")","v":""}]
[null,null,null,null,{"$f":"IFERROR(VLOOKUP($D568,Справочник!$B:$C,2,FALSE),\"\")","v":""},null,{"$f":"IFERROR(VLOOKUP(F568,Справочник!B:C,2,FALSE),\"\")","v":""}]
[null,null,null,null,{"$f":"IFERROR(VLOOKUP($D569,Справочник!$B:$C,2,FALSE),\"\")","v":""},null,{"$f":"IFERROR(VLOOKUP(F569,Справочник!B:C,2,FALSE),\"\")","v":""}]
[null,null,null,null,{"$f":"IFERROR(VLOOKUP($D570,Справочник!$B:$C,2,FALSE),\"\")","v":""},null,{"$f":"IFERROR(VLOOKUP(F570,Справочник!B:C,2,FALSE),\"\")","v":""}]
[null,null,null,null,{"$f":"IFERROR(VLOOKUP($D571,Справочник!$B:$C,2,FALSE),\"\")","v":""},null,{"$f":"IFERROR(VLOOKUP(F571,Справочник!B:C,2,FALSE),\"\")","v":""}]
[null,null,null,null,{"$f":"IFERROR(VLOOKUP($D572,Справочник!$B:$C,2,FALSE),\"\")","v":""},null,{"$f":"IFERROR(VLOOKUP(F572,Справочник!B:C,2,FALSE),\"\")","v":""}]
[null,null,null,null,{"$f":"IFERROR(VLOOKUP($D573,Справочник!$B:$C,2,FALSE),\"\")","v":""},null,{"$f":"IFERROR(VLOOKUP(F573,Справочник!B:C,2,FALSE),\"\")","v":""}]
[null,null,null,null,{"$f":"IFERROR(VLOOKUP($D574,Справочник!$B:$C,2,FALSE),\"\")","v":""},null,{"$f":"IFERROR(VLOOKUP(F574,Справочник!B:C,2,FALSE),\"\")","v":""}]
[null,null,null,null,{"$f":"IFERROR(VLOOKUP($D575,Справочник!$B:$C,2,FALSE),\"\")","v":""},null,{"$f":"IFERROR(VLOOKUP(F575,Справочник!B:C,2,FALSE),\"\")","v":""}]
[null,null,null,null,{"$f":"IFERROR(VLOOKUP($D576,Справочник!$B:$C,2,FALSE),\"\")","v":""},null,{"$f":"IFERROR(VLOOKUP(F576,Справочник!B:C,2,FALSE),\"\")","v":""}]
[null,null,null,null,{"$f":"IFERROR(VLOOKUP($D577,Справочник!$B:$C,2,FALSE),\"\")","v":""},null,{"$f":"IFERROR(VLOOKUP(F577,Справочник!B:C,2,FALSE),\"\")","v":""}]
[null,null,null,null,{"$f":"IFERROR(VLOOKUP($D578,Справочник!$B:$C,2,FALSE),\"\")","v":""},null,{"$f":"IFERROR(VLOOKUP(F578,Справочник!B:C,2,FALSE),\"\")","v":""}]
[null,null,null,null,{"$f":"IFERROR(VLOOKUP($D579,Справочник!$B:$C,2,FALSE),\"\")","v":""},null,{"$f":"IFERROR(VLOOKUP(F579,Справочник!B:C,2,FALSE),\"\")","v":""}]
[null,null,null,null,{"$f":"IFERROR(VLOOKUP($D580,Справочник!$B:$C,2,FALSE),\"\")","v":""},null,{"$f":"IFERROR(VLOOKUP(F580,Справочник!B:C,2,FALSE),\"\")","v":""}]
[null,null,null,null,{"$f":"IFERROR(VLOOKUP($D581,Справочник!$B:$C,2,FALSE),\"\")","v":""},null,{"$f":"IFERROR(VLOOKUP(F581,Справочник!B:C,2,FALSE),\"\")","v":""}]
[null,null,null,null,{"$f":"IFERROR(VLOOKUP($D582,Справочник!$B:$C,2,FALSE),\"\")","v":""},null,{"$f":"IFERROR(VLOOKUP(F582,Справочник!B:C,2,FALSE),\"\")","v":""}]
[null,null,null,null,{"$f":"IFERROR(VLOOKUP($D583,Справочник!$B:$C,2,FALSE),\"\")","v":""},null,{"$f":"IFERROR(VLOOKUP(F583,Справочник!B:C,2,FALSE),\"\")","v":""}]
[null,null,null,null,{"$f":"IFERROR(VLOOKUP($D584,Справочник!$B:$C,2,FALSE),\"\")","v":""},null,{"$f":"IFERROR(VLOOKUP(F584,Справочник!B:C,2,FALSE),\"\")","v":""}]
[null,null,null,null,{"$f":"IFERROR(VLOOKUP($D585,Справочник!$B:$C,2,FALSE),\"\")","v":""},null,{"$f":"IFERROR(VLOOKUP(F585,Справочник!B:C,2,FALSE),\"\")","v":""}]
[null,null,null,null,{"$f":"IFERROR(VLOOKUP($D586,Справочник!$B:$C,2,FALSE),\"\")","v":""},null,{"$f":"IFERROR(VLOOKUP(F586,Справочник!B:C,2,FALSE),\"\")","v":""}]
[null,null,null,null,{"$f":"IFERROR(VLOOKUP($D587,Справочник!$B:$C,2,FALSE),\"\")","v":""},null,{"$f":"IFERROR(VLOOKUP(F587,Справочник!B:C,2,FALSE),\"\")","v":""}]
[null,null,null,null,{"$f":"IFERROR(VLOOKUP($D588,Справочник!$B:$C,2,FALSE),\"\")","v":""},null,{"$f":"IFERROR(VLOOKUP(F588,Справочник!B:C,2,FALSE),\"\")","v":""}]
[null,null,null,null,{"$f":"IFERROR(VLOOKUP($D589,Справочник!$B:$C,2,FALSE),\"\")","v":""},null,{"$f":"IFERROR(VLOOKUP(F589,Справочник!B:C,2,FALSE),\"\")","v":""}]
[null,null,null,null,{"$f":"IFERROR(VLOOKUP($D590,Справочник!$B:$C,2,FALSE),\"\")","v":""},null,{"$f":"IFERROR(VLOOKUP(F590,Справочник!B:C,2,FALSE),\"\")","v":""}]
[null,null,null,null,{"$f":"IFERROR(VLOOKUP($D591,Справочник!$B:$C,2,FALSE),\"\")","v":""},null,{"$f":"IFERROR(VLOOKUP(F591,Справочник!B:C,2,FALSE),\"\")","v":""}]
[null,null,null,null,{"$f":"IFERROR(VLOOKUP($D592,Справочник!$B:$C,2,FALSE),\"\")","v":""},null,{"$f":"IFERROR(VLOOKUP(F592,Справочник!B:C,2,FALSE),\"\")","v":""}]
[null,null,null,null,{"$f":"IFERROR(VLOOKUP($D593,Справочник!$B:$C,2,FALSE),\"\")","v":""},null,{"$f":"IFERROR(VLOOKUP(F593,Справочник!B:C,2,FALSE),\"\")","v":""}]
[null,null,null,null,{"$f":"IFERROR(VLOOKUP($D594,Справочник!$B:$C,2,FALSE),\"\")","v":""},null,{"$f":"IFERROR(VLOOKUP(F594,Справочник!B:C,2,FALSE),\"\")","v":""}]
[null,null,null,null,{"$f":"IFERROR(VLOOKUP($D595,Справочник!$B:$C,2,FALSE),\"\")","v":""},null,{"$f":"IFERROR(VLOOKUP(F595,Справочник!B:C,2,FALSE),\"\")","v":""}]
[null,null,null,null,{"$f":"IFERROR(VLOOKUP($D596,Справочник!$B:$C,2,FALSE),\"\")","v":""},null,{"$f":"IFERROR(VLOOKUP(F596,Справочник!B:C,2,FALSE),\"\")","v":""}]
[null,null,null,null,{"$f":"IFERROR(VLOOKUP($D597,Справочник!$B:$C,2,FALSE),\"\")","v":""},null,{"$f":"IFERROR(VLOOKUP(F597,Справочник!B:C,2,FALSE),\"\")","v":""}]
[null,null,null,null,{"$f":"IFERROR(VLOOKUP($D598,Справочник!$B:$C,2,FALSE),\"\")","v":""},null,{"$f":"IFERROR(VLOOKUP(F598,Справочник!B:C,2,FALSE),\"\")","v":""}]
[null,null,null,null,{"$f":"IFERROR(VLOOKUP($D599,Справочник!$B:$C,2,FALSE),\"\")","v":""},null,{"$f":"IFERROR(VLOOKUP(F599,Справочник!B:C,2,FALSE),\"\")","v":""}]
[null,null,null,null,{"$f":"IFERROR(VLOOKUP($D600,Справочник!$B:$C,2,FALSE),\"\")","v":""},null,{"$f":"IFERROR(VLOOKUP(F600,Справочник!B:C,2,FALSE),\"\")","v":""}]
[null,null,null,null,{"$f":"IFERROR(VLOOKUP($D601,Справочник!$B:$C,2,FALSE),\"\")","v":""},null,{"$f":"IFERROR(VLOOKUP(F601,Справочник!B:C,2,FALSE),\"\")","v":""}]
[null,null,null,null,{"$f":"IFERROR(VLOOKUP($D602,Справочник!$B:$C,2,FALSE),\"\")","v":""},null,{"$f":"IFERROR(VLOOKUP(F602,Справочник!B:C,2,FALSE),\"\")","v":""}]
[null,null,null,null,{"$f":"IFERROR(VLOOKUP($D603,Справочник!$B:$C,2,FALSE),\"\")","v":""},null,{"$f":"IFERROR(VLOOKUP(F603,Справочник!B:C,2,FALSE),\"\")","v":""}]
[null,null,null,null,{"$f":"IFERROR(VLOOKUP($D604,Справочник!$B:$C,2,FALSE),\"\")","v":""},null,{"$f":"IFERROR(VLOOKUP(F604,Справочник!B:C,2,FALSE),\"\")","v":""}]
[null,null,null,null,{"$f":"IFERROR(VLOOKUP($D605,Справочник!$B:$C,2,FALSE),\"\")","v":""},null,{"$f":"IFERROR(VLOOKUP(F605,Справочник!B:C,2,FALSE),\"\")","v":""}]
[null,null,null,null,{"$f":"IFERROR(VLOOKUP($D606,Справочник!$B:$C,2,FALSE),\"\")","v":""},null,{"$f":"IFERROR(VLOOKUP(F606,Справочник!B:C,2,FALSE),\"\")","v":""}]
[null,null,null,null,{"$f":"IFERROR(VLOOKUP($D607,Справочник!$B:$C,2,FALSE),\"\")","v":""},null,{"$f":"IFERROR(VLOOKUP(F607,Справочник!B:C,2,FALSE),\"\")","v":""}]
[null,null,null,null,{"$f":"IFERROR(VLOOKUP($D608,Справочник!$B:$C,2,FALSE),\"\")","v":""},null,{"$f":"IFERROR(VLOOKUP(F608,Справочник!B:C,2,FALSE),\"\")","v":""}]
[null,null,null,null,{"$f":"IFERROR(VLOOKUP($D609,Справочник!$B:$C,2,FALSE),\"\")","v":""},null,{"$f":"IFERROR(VLOOKUP(F609,Справочник!B:C,2,FALSE),\"\")","v":""}]
[null,null,null,null,{"$f":"IFERROR(VLOOKUP($D610,Справочник!$B:$C,2,FALSE),\"\")","v":""},null,{"$f":"IFERROR(VLOOKUP(F610,Справочник!B:C,2,FALSE),\"\")","v":""}]
[null,null,null,null,{"$f":"IFERROR(VLOOKUP($D611,Справочник!$B:$C,2,FALSE),\"\")","v":""},null,{"$f":"IFERROR(VLOOKUP(F611,Справочник!B:C,2,FALSE),\"\")","v":""}]
[null,null,null,null,{"$f":"IFERROR(VLOOKUP($D612,Справочник!$B:$C,2,FALSE),\"\")","v":""},null,{"$f":"IFERROR(VLOOKUP(F612,Справочник!B:C,2,FALSE),\"\")","v":""}]
[null,null,null,null,{"$f":"IFERROR(VLOOKUP($D613,Справочник!$B:$C,2,FALSE),\"\")","v":""},null,{"$f":"IFERROR(VLOOKUP(F613,Справочник!B:C,2,FALSE),\"\")","v":""}]
[null,null,null,null,{"$f":"IFERROR(VLOOKUP($D614,Справочник!$B:$C,2,FALSE),\"\")","v":""},null,{"$f":"IFERROR(VLOOKUP(F614,Справочник!B:C,2,FALSE),\"\")","v":""}]
[null,null,null,null,{"$f":"IFERROR(VLOOKUP($D615,Справочник!$B:$C,2,FALSE),\"\")","v":""},null,{"$f":"IFERROR(VLOOKUP(F615,Справочник!B:C,2,FALSE),\"\")","v":""}]
[null,null,null,null,{"$f":"IFERROR(VLOOKUP($D616,Справочник!$B:$C,2,FALSE),\"\")","v":""},null,{"$f":"IFERROR(VLOOKUP(F616,Справочник!B:C,2,FALSE),\"\")","v":""}]
[null,null,null,null,{"$f":"IFERROR(VLOOKUP($D617,Справочник!$B:$C,2,FALSE),\"\")","v":""},null,{"$f":"IFERROR(VLOOKUP(F617,Справочник!B:C,2,FALSE),\"\")","v":""}]
[null,null,null,null,{"$f":"IFERROR(VLOOKUP($D618,Справочник!$B:$C,2,FALSE),\"\")","v":""},null,{"$f":"IFERROR(VLOOKUP(F618,Справочник!B:C,2,FALSE),\"\")","v":""}]
[null,null,null,null,{"$f":"IFERROR(VLOOKUP($D619,Справочник!$B:$C,2,FALSE),\"\")","v":""},null,{"$f":"IFERROR(VLOOKUP(F619,Справочник!B:C,2,FALSE),\"\")","v":""}]
[null,null,null,null,{"$f":"IFERROR(VLOOKUP($D620,Справочник!$B:$C,2,FALSE),\"\")","v":""},null,{"$f":"IFERROR(VLOOKUP(F620,Справочник!B:C,2,FALSE),\"\")","v":""}]
[null,null,null,null,{"$f":"IFERROR(VLOOKUP($D621,Справочник!$B:$C,2,FALSE),\"\")","v":""},null,{"$f":"IFERROR(VLOOKUP(F621,Справочник!B:C,2,FALSE),\"\")","v":""}]
[null,null,null,null,{"$f":"IFERROR(VLOOKUP($D622,Справочник!$B:$C,2,FALSE),\"\")","v":""},null,{"$f":"IFERROR(VLOOKUP(F622,Справочник!B:C,2,FALSE),\"\")","v":""}]
[null,null,null,null,{"$f":"IFERROR(VLOOKUP($D623,Справочник!$B:$C,2,FALSE),\"\")","v":""},null,{"$f":"IFERROR(VLOOKUP(F623,Справочник!B:C,2,FALSE),\"\")","v":""}]
[null,null,null,null,{"$f":"IFERROR(VLOOKUP($D624,Справочник!$B:$C,2,FALSE),\"\")","v":""},null,{"$f":"IFERROR(VLOOKUP(F624,Справочник!B:C,2,FALSE),\"\")","v":""}]
[null,null,null,null,{"$f":"IFERROR(VLOOKUP($D625,Справочник!$B:$C,2,FALSE),\"\")","v":""},null,{"$f":"IFERROR(VLOOKUP(F625,Справочник!B:C,2,FALSE),\"\")","v":""}]
[null,null,null,null,{"$f":"IFERROR(VLOOKUP($D626,Справочник!$B:$C,2,FALSE),\"\")","v":""},null,{"$f":"IFERROR(VLOOKUP(F626,Справочник!B:C,2,FALSE),\"\")","v":""}]
[null,null,null,null,{"$f":"IFERROR(VLOOKUP($D627,Справочник!$B:$C,2,FALSE),\"\")","v":""},null,{"$f":"IFERROR(VLOOKUP(F627,Справочник!B:C,2,FALSE),\"\")","v":""}]
[null,null,null,null,{"$f":"IFERROR(VLOOKUP($D628,Справочник!$B:$C,2,FALSE),\"\")","v":""},null,{"$f":"IFERROR(VLOOKUP(F628,Справочник!B:C,2,FALSE),\"\")","v":""}]
[null,null,null,null,{"$f":"IFERROR(VLOOKUP($D629,Справочник!$B:$C,2,FALSE),\"\")","v":""},null,{"$f":"IFERROR(VLOOKUP(F629,Справочник!B:C,2,FALSE),\"\")","v":""}]
[null,null,null,null,{"$f":"IFERROR(VLOOKUP($D630,Справочник!$B:$C,2,FALSE),\"\")","v":""},null,{"$f":"IFERROR(VLOOKUP(F630,Справочник!B:C,2,FALSE),\"\")","v":""}]
[null,null,null,null,{"$f":"IFERROR(VLOOKUP($D631,Справочник!$B:$C,2,FALSE),\"\")","v":""},null,{"$f":"IFERROR(VLOOKUP(F631,Справочник!B:C,2,FALSE),\"\")","v":""}]
[null,null,null,null,{"$f":"IFERROR(VLOOKUP($D632,Справочник!$B:$C,2,FALSE),\"\")","v":""},null,{"$f":"IFERROR(VLOOKUP(F632,Справочник!B:C,2,FALSE),\"\")","v":""}]
[null,null,null,null,{"$f":"IFERROR(VLOOKUP($D633,Справочник!$B:$C,2,FALSE),\"\")","v":""},null,{"$f":"IFERROR(VLOOKUP(F633,Справочник!B:C,2,FALSE),\"\")","v":""}]
[null,null,null,null,{"$f":"IFERROR(VLOOKUP($D634,Справочник!$B:$C,2,FALSE),\"\")","v":""},null,{"$f":"IFERROR(VLOOKUP(F634,Справочник!B:C,2,FALSE),\"\")","v":""}]
[null,null,null,null,{"$f":"IFERROR(VLOOKUP($D635,Справочник!$B:$C,2,FALSE),\"\")","v":""},null,{"$f":"IFERROR(VLOOKUP(F635,Справочник!B:C,2,FALSE),\"\")","v":""}]
[null,null,null,null,{"$f":"IFERROR(VLOOKUP($D636,Справочник!$B:$C,2,FALSE),\"\")","v":""},null,{"$f":"IFERROR(VLOOKUP(F636,Справочник!B:C,2,FALSE),\"\")","v":""}]
[null,null,null,null,{"$f":"IFERROR(VLOOKUP($D637,Справочник!$B:$C,2,FALSE),\"\")","v":""},null,{"$f":"IFERROR(VLOOKUP(F637,Справочник!B:C,2,FALSE),\"\")","v":""}]
[null,null,null,null,{"$f":"IFERROR(VLOOKUP($D638,Справочник!$B:$C,2,FALSE),\"\")","v":""},null,{"$f":"IFERROR(VLOOKUP(F638,Справочник!B:C,2,FALSE),\"\")","v":""}]
[null,null,null,null,{"$f":"IFERROR(VLOOKUP($D639,Справочник!$B:$C,2,FALSE),\"\")","v":""},null,{"$f":"IFERROR(VLOOKUP(F639,Справочник!B:C,2,FALSE),\"\")","v":""}]
[null,null,null,null,{"$f":"IFERROR(VLOOKUP($D640,Справочник!$B:$C,2,FALSE),\"\")","v":""},null,{"$f":"IFERROR(VLOOKUP(F640,Справочник!B:C,2,FALSE),\"\")","v":""}]
[null,null,null,null,{"$f":"IFERROR(VLOOKUP($D641,Справочник!$B:$C,2,FALSE),\"\")","v":""},null,{"$f":"IFERROR(VLOOKUP(F641,Справочник!B:C,2,FALSE),\"\")","v":""}]
[null,null,null,null,{"$f":"IFERROR(VLOOKUP($D642,Справочник!$B:$C,2,FALSE),\"\")","v":""},null,{"$f":"IFERROR(VLOOKUP(F642,Справочник!B:C,2,FALSE),\"\")","v":""}]
[null,null,null,null,{"$f":"IFERROR(VLOOKUP($D643,Справочник!$B:$C,2,FALSE),\"\")","v":""},null,{"$f":"IFERROR(VLOOKUP(F643,Справочник!B:C,2,FALSE),\"\")","v":""}]
[null,null,null,null,{"$f":"IFERROR(VLOOKUP($D644,Справочник!$B:$C,2,FALSE),\"\")","v":""},null,{"$f":"IFERROR(VLOOKUP(F644,Справочник!B:C,2,FALSE),\"\")","v":""}]
[null,null,null,null,{"$f":"IFERROR(VLOOKUP($D645,Справочник!$B:$C,2,FALSE),\"\")","v":""},null,{"$f":"IFERROR(VLOOKUP(F645,Справочник!B:C,2,FALSE),\"\")","v":""}]
[null,null,null,null,{"$f":"IFERROR(VLOOKUP($D646,Справочник!$B:$C,2,FALSE),\"\")","v":""},null,{"$f":"IFERROR(VLOOKUP(F646,Справочник!B:C,2,FALSE),\"\")","v":""}]
[null,null,null,null,{"$f":"IFERROR(VLOOKUP($D647,Справочник!$B:$C,2,FALSE),\"\")","v":""},null,{"$f":"IFERROR(VLOOKUP(F647,Справочник!B:C,2,FALSE),\"\")","v":""}]
[null,null,null,null,{"$f":"IFERROR(VLOOKUP($D648,Справочник!$B:$C,2,FALSE),\"\")","v":""},null,{"$f":"IFERROR(VLOOKUP(F648,Справочник!B:C,2,FALSE),\"\")","v":""}]
[null,null,null,null,{"$f":"IFERROR(VLOOKUP($D649,Справочник!$B:$C,2,FALSE),\"\")","v":""},null,{"$f":"IFERROR(VLOOKUP(F649,Справочник!B:C,2,FALSE),\"\")","v":""}]
[null,null,null,null,{"$f":"IFERROR(VLOOKUP($D650,Справочник!$B:$C,2,FALSE),\"\")","v":""},null,{"$f":"IFERROR(VLOOKUP(F650,Справочник!B:C,2,FALSE),\"\")","v":""}]
[null,null,null,null,{"$f":"IFERROR(VLOOKUP($D651,Справочник!$B:$C,2,FALSE),\"\")","v":""},null,{"$f":"IFERROR(VLOOKUP(F651,Справочник!B:C,2,FALSE),\"\")","v":""}]
[null,null,null,null,{"$f":"IFERROR(VLOOKUP($D652,Справочник!$B:$C,2,FALSE),\"\")","v":""},null,{"$f":"IFERROR(VLOOKUP(F652,Справочник!B:C,2,FALSE),\"\")","v":""}]
[null,null,null,null,{"$f":"IFERROR(VLOOKUP($D653,Справочник!$B:$C,2,FALSE),\"\")","v":""},null,{"$f":"IFERROR(VLOOKUP(F653,Справочник!B:C,2,FALSE),\"\")","v":""}]
[null,null,null,null,{"$f":"IFERROR(VLOOKUP($D654,Справочник!$B:$C,2,FALSE),\"\")","v":""},null,{"$f":"IFERROR(VLOOKUP(F654,Справочник!B:C,2,FALSE),\"\")","v":""}]
[null,null,null,null,{"$f":"IFERROR(VLOOKUP($D655,Справочник!$B:$C,2,FALSE),\"\")","v":""},null,{"$f":"IFERROR(VLOOKUP(F655,Справочник!B:C,2,FALSE),\"\")","v":""}]
[null,null,null,null,{"$f":"IFERROR(VLOOKUP($D656,Справочник!$B:$C,2,FALSE),\"\")","v":""},null,{"$f":"IFERROR(VLOOKUP(F656,Справочник!B:C,2,FALSE),\"\")","v":""}]
[null,null,null,null,{"$f":"IFERROR(VLOOKUP($D657,Справочник!$B:$C,2,FALSE),\"\")","v":""},null,{"$f":"IFERROR(VLOOKUP(F657,Справочник!B:C,2,FALSE),\"\")","v":""}]
[null,null,null,null,{"$f":"IFERROR(VLOOKUP($D658,Справочник!$B:$C,2,FALSE),\"\")","v":""},null,{"$f":"IFERROR(VLOOKUP(F658,Справочник!B:C,2,FALSE),\"\")","v":""}]
[null,null,null,null,{"$f":"IFERROR(VLOOKUP($D659,Справочник!$B:$C,2,FALSE),\"\")","v":""},null,{"$f":"IFERROR(VLOOKUP(F659,Справочник!B:C,2,FALSE),\"\")","v":""}]
[null,null,null,null,{"$f":"IFERROR(VLOOKUP($D660,Справочник!$B:$C,2,FALSE),\"\")","v":""},null,{"$f":"IFERROR(VLOOKUP(F660,Справочник!B:C,2,FALSE),\"\")","v":""}]
[null,null,null,null,{"$f":"IFERROR(VLOOKUP($D661,Справочник!$B:$C,2,FALSE),\"\")","v":""},null,{"$f":"IFERROR(VLOOKUP(F661,Справочник!B:C,2,FALSE),\"\")","v":""}]
[null,null,null,null,{"$f":"IFERROR(VLOOKUP($D662,Справочник!$B:$C,2,FALSE),\"\")","v":""},null,{"$f":"IFERROR(VLOOKUP(F662,Справочник!B:C,2,FALSE),\"\")","v":""}]
[null,null,null,null,{"$f":"IFERROR(VLOOKUP($D663,Справочник!$B:$C,2,FALSE),\"\")","v":""},null,{"$f":"IFERROR(VLOOKUP(F663,Справочник!B:C,2,FALSE),\"\")","v":""}]
[null,null,null,null,{"$f":"IFERROR(VLOOKUP($D664,Справочник!$B:$C,2,FALSE),\"\")","v":""},null,{"$f":"IFERROR(VLOOKUP(F664,Справочник!B:C,2,FALSE),\"\")","v":""}]
[null,null,null,null,{"$f":"IFERROR(VLOOKUP($D665,Справочник!$B:$C,2,FALSE),\"\")","v":""},null,{"$f":"IFERROR(VLOOKUP(F665,Справочник!B:C,2,FALSE),\"\")","v":""}]
[null,null,null,null,{"$f":"IFERROR(VLOOKUP($D666,Справочник!$B:$C,2,FALSE),\"\")","v":""},null,{"$f":"IFERROR(VLOOKUP(F666,Справочник!B:C,2,FALSE),\"\")","v":""}]
[null,null,null,null,{"$f":"IFERROR(VLOOKUP($D667,Справочник!$B:$C,2,FALSE),\"\")","v":""},null,{"$f":"IFERROR(VLOOKUP(F667,Справочник!B:C,2,FALSE),\"\")","v":""}]
[null,null,null,null,{"$f":"IFERROR(VLOOKUP($D668,Справочник!$B:$C,2,FALSE),\"\")","v":""},null,{"$f":"IFERROR(VLOOKUP(F668,Справочник!B:C,2,FALSE),\"\")","v":""}]
[null,null,null,null,{"$f":"IFERROR(VLOOKUP($D669,Справочник!$B:$C,2,FALSE),\"\")","v":""},null,{"$f":"IFERROR(VLOOKUP(F669,Справочник!B:C,2,FALSE),\"\")","v":""}]
[null,null,null,null,{"$f":"IFERROR(VLOOKUP($D670,Справочник!$B:$C,2,FALSE),\"\")","v":""},null,{"$f":"IFERROR(VLOOKUP(F670,Справочник!B:C,2,FALSE),\"\")","v":""}]
[null,null,null,null,{"$f":"IFERROR(VLOOKUP($D671,Справочник!$B:$C,2,FALSE),\"\")","v":""},null,{"$f":"IFERROR(VLOOKUP(F671,Справочник!B:C,2,FALSE),\"\")","v":""}]
[null,null,null,null,{"$f":"IFERROR(VLOOKUP($D672,Справочник!$B:$C,2,FALSE),\"\")","v":""},null,{"$f":"IFERROR(VLOOKUP(F672,Справочник!B:C,2,FALSE),\"\")","v":""}]
[null,null,null,null,{"$f":"IFERROR(VLOOKUP($D673,Справочник!$B:$C,2,FALSE),\"\")","v":""},null,{"$f":"IFERROR(VLOOKUP(F673,Справочник!B:C,2,FALSE),\"\")","v":""}]
[null,null,null,null,{"$f":"IFERROR(VLOOKUP($D674,Справочник!$B:$C,2,FALSE),\"\")","v":""},null,{"$f":"IFERROR(VLOOKUP(F674,Справочник!B:C,2,FALSE),\"\")","v":""}]
[null,null,null,null,{"$f":"IFERROR(VLOOKUP($D675,Справочник!$B:$C,2,FALSE),\"\")","v":""},null,{"$f":"IFERROR(VLOOKUP(F675,Справочник!B:C,2,FALSE),\"\")","v":""}]
[null,null,null,null,{"$f":"IFERROR(VLOOKUP($D676,Справочник!$B:$C,2,FALSE),\"\")","v":""},null,{"$f":"IFERROR(VLOOKUP(F676,Справочник!B:C,2,FALSE),\"\")","v":""}]
[null,null,null,null,{"$f":"IFERROR(VLOOKUP($D677,Справочник!$B:$C,2,FALSE),\"\")","v":""},null,{"$f":"IFERROR(VLOOKUP(F677,Справочник!B:C,2,FALSE),\"\")","v":""}]
[null,null,null,null,{"$f":"IFERROR(VLOOKUP($D678,Справочник!$B:$C,2,FALSE),\"\")","v":""},null,{"$f":"IFERROR(VLOOKUP(F678,Справочник!B:C,2,FALSE),\"\")","v":""}]
[null,null,null,null,{"$f":"IFERROR(VLOOKUP($D679,Справочник!$B:$C,2,FALSE),\"\")","v":""},null,{"$f":"IFERROR(VLOOKUP(F679,Справочник!B:C,2,FALSE),\"\")","v":""}]
[null,null,null,null,{"$f":"IFERROR(VLOOKUP($D680,Справочник!$B:$C,2,FALSE),\"\")","v":""},null,{"$f":"IFERROR(VLOOKUP(F680,Справочник!B:C,2,FALSE),\"\")","v":""}]
[null,null,null,null,{"$f":"IFERROR(VLOOKUP($D681,Справочник!$B:$C,2,FALSE),\"\")","v":""},null,{"$f":"IFERROR(VLOOKUP(F681,Справочник!B:C,2,FALSE),\"\")","v":""}]
[null,null,null,null,{"$f":"IFERROR(VLOOKUP($D682,Справочник!$B:$C,2,FALSE),\"\")","v":""},null,{"$f":"IFERROR(VLOOKUP(F682,Справочник!B:C,2,FALSE),\"\")","v":""}]
[null,null,null,null,{"$f":"IFERROR(VLOOKUP($D683,Справочник!$B:$C,2,FALSE),\"\")","v":""},null,{"$f":"IFERROR(VLOOKUP(F683,Справочник!B:C,2,FALSE),\"\")","v":""}]
[null,null,null,null,{"$f":"IFERROR(VLOOKUP($D684,Справочник!$B:$C,2,FALSE),\"\")","v":""},null,{"$f":"IFERROR(VLOOKUP(F684,Справочник!B:C,2,FALSE),\"\")","v":""}]
[null,null,null,null,{"$f":"IFERROR(VLOOKUP($D685,Справочник!$B:$C,2,FALSE),\"\")","v":""},null,{"$f":"IFERROR(VLOOKUP(F685,Справочник!B:C,2,FALSE),\"\")","v":""}]
[null,null,null,null,{"$f":"IFERROR(VLOOKUP($D686,Справочник!$B:$C,2,FALSE),\"\")","v":""},null,{"$f":"IFERROR(VLOOKUP(F686,Справочник!B:C,2,FALSE),\"\")","v":""}]
[null,null,null,null,{"$f":"IFERROR(VLOOKUP($D687,Справочник!$B:$C,2,FALSE),\"\")","v":""},null,{"$f":"IFERROR(VLOOKUP(F687,Справочник!B:C,2,FALSE),\"\")","v":""}]
[null,null,null,null,{"$f":"IFERROR(VLOOKUP($D688,Справочник!$B:$C,2,FALSE),\"\")","v":""},null,{"$f":"IFERROR(VLOOKUP(F688,Справочник!B:C,2,FALSE),\"\")","v":""}]
[null,null,null,null,{"$f":"IFERROR(VLOOKUP($D689,Справочник!$B:$C,2,FALSE),\"\")","v":""},null,{"$f":"IFERROR(VLOOKUP(F689,Справочник!B:C,2,FALSE),\"\")","v":""}]
[null,null,null,null,{"$f":"IFERROR(VLOOKUP($D690,Справочник!$B:$C,2,FALSE),\"\")","v":""},null,{"$f":"IFERROR(VLOOKUP(F690,Справочник!B:C,2,FALSE),\"\")","v":""}]
[null,null,null,null,{"$f":"IFERROR(VLOOKUP($D691,Справочник!$B:$C,2,FALSE),\"\")","v":""},null,{"$f":"IFERROR(VLOOKUP(F691,Справочник!B:C,2,FALSE),\"\")","v":""}]
[null,null,null,null,{"$f":"IFERROR(VLOOKUP($D692,Справочник!$B:$C,2,FALSE),\"\")","v":""},null,{"$f":"IFERROR(VLOOKUP(F692,Справочник!B:C,2,FALSE),\"\")","v":""}]
[null,null,null,null,{"$f":"IFERROR(VLOOKUP($D693,Справочник!$B:$C,2,FALSE),\"\")","v":""},null,{"$f":"IFERROR(VLOOKUP(F693,Справочник!B:C,2,FALSE),\"\")","v":""}]
[null,null,null,null,{"$f":"IFERROR(VLOOKUP($D694,Справочник!$B:$C,2,FALSE),\"\")","v":""},null,{"$f":"IFERROR(VLOOKUP(F694,Справочник!B:C,2,FALSE),\"\")","v":""}]
[null,null,null,null,{"$f":"IFERROR(VLOOKUP($D695,Справочник!$B:$C,2,FALSE),\"\")","v":""},null,{"$f":"IFERROR(VLOOKUP(F695,Справочник!B:C,2,FALSE),\"\")","v":""}]
[null,null,null,null,{"$f":"IFERROR(VLOOKUP($D696,Справочник!$B:$C,2,FALSE),\"\")","v":""},null,{"$f":"IFERROR(VLOOKUP(F696,Справочник!B:C,2,FALSE),\"\")","v":""}]
[null,null,null,null,{"$f":"IFERROR(VLOOKUP($D697,Справочник!$B:$C,2,FALSE),\"\")","v":""},null,{"$f":"IFERROR(VLOOKUP(F697,Справочник!B:C,2,FALSE),\"\")","v":""}]
[null,null,null,null,{"$f":"IFERROR(VLOOKUP($D698,Справочник!$B:$C,2,FALSE),\"\")","v":""},null,{"$f":"IFERROR(VLOOKUP(F698,Справочник!B:C,2,FALSE),\"\")","v":""}]
[null,null,null,null,{"$f":"IFERROR(VLOOKUP($D699,Справочник!$B:$C,2,FALSE),\"\")","v":""},null,{"$f":"IFERROR(VLOOKUP(F699,Справочник!B:C,2,FALSE),\"\")","v":""}]
[null,null,null,null,{"$f":"IFERROR(VLOOKUP($D700,Справочник!$B:$C,2,FALSE),\"\")","v":""},null,{"$f":"IFERROR(VLOOKUP(F700,Справочник!B:C,2,FALSE),\"\")","v":""}]
[null,null,null,null,{"$f":"IFERROR(VLOOKUP($D701,Справочник!$B:$C,2,FALSE),\"\")","v":""},null,{"$f":"IFERROR(VLOOKUP(F701,Справочник!B:C,2,FALSE),\"\")","v":""}]
[null,null,null,null,{"$f":"IFERROR(VLOOKUP($D702,Справочник!$B:$C,2,FALSE),\"\")","v":""},null,{"$f":"IFERROR(VLOOKUP(F702,Справочник!B:C,2,FALSE),\"\")","v":""}]
[null,null,null,null,{"$f":"IFERROR(VLOOKUP($D703,Справочник!$B:$C,2,FALSE),\"\")","v":""},null,{"$f":"IFERROR(VLOOKUP(F703,Справочник!B:C,2,FALSE),\"\")","v":""}]
[null,null,null,null,{"$f":"IFERROR(VLOOKUP($D704,Справочник!$B:$C,2,FALSE),\"\")","v":""},null,{"$f":"IFERROR(VLOOKUP(F704,Справочник!B:C,2,FALSE),\"\")","v":""}]
[null,null,null,null,{"$f":"IFERROR(VLOOKUP($D705,Справочник!$B:$C,2,FALSE),\"\")","v":""},null,{"$f":"IFERROR(VLOOKUP(F705,Справочник!B:C,2,FALSE),\"\")","v":""}]
[null,null,null,null,{"$f":"IFERROR(VLOOKUP($D706,Справочник!$B:$C,2,FALSE),\"\")","v":""},null,{"$f":"IFERROR(VLOOKUP(F706,Справочник!B:C,2,FALSE),\"\")","v":""}]
[null,null,null,null,{"$f":"IFERROR(VLOOKUP($D707,Справочник!$B:$C,2,FALSE),\"\")","v":""},null,{"$f":"IFERROR(VLOOKUP(F707,Справочник!B:C,2,FALSE),\"\")","v":""}]
[null,null,null,null,{"$f":"IFERROR(VLOOKUP($D708,Справочник!$B:$C,2,FALSE),\"\")","v":""},null,{"$f":"IFERROR(VLOOKUP(F708,Справочник!B:C,2,FALSE),\"\")","v":""}]
[null,null,null,null,{"$f":"IFERROR(VLOOKUP($D709,Справочник!$B:$C,2,FALSE),\"\")","v":""},null,{"$f":"IFERROR(VLOOKUP(F709,Справочник!B:C,2,FALSE),\"\")","v":""}]
[null,null,null,null,{"$f":"IFERROR(VLOOKUP($D710,Справочник!$B:$C,2,FALSE),\"\")","v":""},null,{"$f":"IFERROR(VLOOKUP(F710,Справочник!B:C,2,FALSE),\"\")","v":""}]
[null,null,null,null,{"$f":"IFERROR(VLOOKUP($D711,Справочник!$B:$C,2,FALSE),\"\")","v":""},null,{"$f":"IFERROR(VLOOKUP(F711,Справочник!B:C,2,FALSE),\"\")","v":""}]
[null,null,null,null,{"$f":"IFERROR(VLOOKUP($D712,Справочник!$B:$C,2,FALSE),\"\")","v":""},null,{"$f":"IFERROR(VLOOKUP(F712,Справочник!B:C,2,FALSE),\"\")","v":""}]
[null,null,null,null,{"$f":"IFERROR(VLOOKUP($D713,Справочник!$B:$C,2,FALSE),\"\")","v":""},null,{"$f":"IFERROR(VLOOKUP(F713,Справочник!B:C,2,FALSE),\"\")","v":""}]
[null,null,null,null,{"$f":"IFERROR(VLOOKUP($D714,Справочник!$B:$C,2,FALSE),\"\")","v":""},null,{"$f":"IFERROR(VLOOKUP(F714,Справочник!B:C,2,FALSE),\"\")","v":""}]
[null,null,null,null,{"$f":"IFERROR(VLOOKUP($D715,Справочник!$B:$C,2,FALSE),\"\")","v":""},null,{"$f":"IFERROR(VLOOKUP(F715,Справочник!B:C,2,FALSE),\"\")","v":""}]
[null,null,null,null,{"$f":"IFERROR(VLOOKUP($D716,Справочник!$B:$C,2,FALSE),\"\")","v":""},null,{"$f":"IFERROR(VLOOKUP(F716,Справочник!B:C,2,FALSE),\"\")","v":""}]
[null,null,null,null,{"$f":"IFERROR(VLOOKUP($D717,Справочник!$B:$C,2,FALSE),\"\")","v":""},null,{"$f":"IFERROR(VLOOKUP(F717,Справочник!B:C,2,FALSE),\"\")","v":""}]
[null,null,null,null,{"$f":"IFERROR(VLOOKUP($D718,Справочник!$B:$C,2,FALSE),\"\")","v":""},null,{"$f":"IFERROR(VLOOKUP(F718,Справочник!B:C,2,FALSE),\"\")","v":""}]
[null,null,null,null,{"$f":"IFERROR(VLOOKUP($D719,Справочник!$B:$C,2,FALSE),\"\")","v":""},null,{"$f":"IFERROR(VLOOKUP(F719,Справочник!B:C,2,FALSE),\"\")","v":""}]
[null,null,null,null,{"$f":"IFERROR(VLOOKUP($D720,Справочник!$B:$C,2,FALSE),\"\")","v":""},null,{"$f":"IFERROR(VLOOKUP(F720,Справочник!B:C,2,FALSE),\"\")","v":""}]
[null,null,null,null,{"$f":"IFERROR(VLOOKUP($D721,Справочник!$B:$C,2,FALSE),\"\")","v":""},null,{"$f":"IFERROR(VLOOKUP(F721,Справочник!B:C,2,FALSE),\"\")","v":""}]
[null,null,null,null,{"$f":"IFERROR(VLOOKUP($D722,Справочник!$B:$C,2,FALSE),\"\")","v":""},null,{"$f":"IFERROR(VLOOKUP(F722,Справочник!B:C,2,FALSE),\"\")","v":""}]
[null,null,null,null,{"$f":"IFERROR(VLOOKUP($D723,Справочник!$B:$C,2,FALSE),\"\")","v":""},null,{"$f":"IFERROR(VLOOKUP(F723,Справочник!B:C,2,FALSE),\"\")","v":""}]
[null,null,null,null,{"$f":"IFERROR(VLOOKUP($D724,Справочник!$B:$C,2,FALSE),\"\")","v":""},null,{"$f":"IFERROR(VLOOKUP(F724,Справочник!B:C,2,FALSE),\"\")","v":""}]
[null,null,null,null,{"$f":"IFERROR(VLOOKUP($D725,Справочник!$B:$C,2,FALSE),\"\")","v":""},null,{"$f":"IFERROR(VLOOKUP(F725,Справочник!B:C,2,FALSE),\"\")","v":""}]
[null,null,null,null,{"$f":"IFERROR(VLOOKUP($D726,Справочник!$B:$C,2,FALSE),\"\")","v":""},null,{"$f":"IFERROR(VLOOKUP(F726,Справочник!B:C,2,FALSE),\"\")","v":""}]
[null,null,null,null,{"$f":"IFERROR(VLOOKUP($D727,Справочник!$B:$C,2,FALSE),\"\")","v":""},null,{"$f":"IFERROR(VLOOKUP(F727,Справочник!B:C,2,FALSE),\"\")","v":""}]
[null,null,null,null,{"$f":"IFERROR(VLOOKUP($D728,Справочник!$B:$C,2,FALSE),\"\")","v":""},null,{"$f":"IFERROR(VLOOKUP(F728,Справочник!B:C,2,FALSE),\"\")","v":""}]
[null,null,null,null,{"$f":"IFERROR(VLOOKUP($D729,Справочник!$B:$C,2,FALSE),\"\")","v":""},null,{"$f":"IFERROR(VLOOKUP(F729,Справочник!B:C,2,FALSE),\"\")","v":""}]
[null,null,null,null,{"$f":"IFERROR(VLOOKUP($D730,Справочник!$B:$C,2,FALSE),\"\")","v":""},null,{"$f":"IFERROR(VLOOKUP(F730,Справочник!B:C,2,FALSE),\"\")","v":""}]
[null,null,null,null,{"$f":"IFERROR(VLOOKUP($D731,Справочник!$B:$C,2,FALSE),\"\")","v":""},null,{"$f":"IFERROR(VLOOKUP(F731,Справочник!B:C,2,FALSE),\"\")","v":""}]
[null,null,null,null,{"$f":"IFERROR(VLOOKUP($D732,Справочник!$B:$C,2,FALSE),\"\")","v":""},null,{"$f":"IFERROR(VLOOKUP(F732,Справочник!B:C,2,FALSE),\"\")","v":""}]
[null,null,null,null,{"$f":"IFERROR(VLOOKUP($D733,Справочник!$B:$C,2,FALSE),\"\")","v":""},null,{"$f":"IFERROR(VLOOKUP(F733,Справочник!B:C,2,FALSE),\"\")","v":""}]
[null,null,null,null,{"$f":"IFERROR(VLOOKUP($D734,Справочник!$B:$C,2,FALSE),\"\")","v":""},null,{"$f":"IFERROR(VLOOKUP(F734,Справочник!B:C,2,FALSE),\"\")","v":""}]
[null,null,null,null,{"$f":"IFERROR(VLOOKUP($D735,Справочник!$B:$C,2,FALSE),\"\")","v":""},null,{"$f":"IFERROR(VLOOKUP(F735,Справочник!B:C,2,FALSE),\"\")","v":""}]
[null,null,null,null,{"$f":"IFERROR(VLOOKUP($D736,Справочник!$B:$C,2,FALSE),\"\")","v":""},null,{"$f":"IFERROR(VLOOKUP(F736,Справочник!B:C,2,FALSE),\"\")","v":""}]
[null,null,null,null,{"$f":"IFERROR(VLOOKUP($D737,Справочник!$B:$C,2,FALSE),\"\")","v":""},null,{"$f":"IFERROR(VLOOKUP(F737,Справочник!B:C,2,FALSE),\"\")","v":""}]
[null,null,null,null,{"$f":"IFERROR(VLOOKUP($D738,Справочник!$B:$C,2,FALSE),\"\")","v":""},null,{"$f":"IFERROR(VLOOKUP(F738,Справочник!B:C,2,FALSE),\"\")","v":""}]
[null,null,null,null,{"$f":"IFERROR(VLOOKUP($D739,Справочник!$B:$C,2,FALSE),\"\")","v":""},null,{"$f":"IFERROR(VLOOKUP(F739,Справочник!B:C,2,FALSE),\"\")","v":""}]
[null,null,null,null,{"$f":"IFERROR(VLOOKUP($D740,Справочник!$B:$C,2,FALSE),\"\")","v":""},null,{"$f":"IFERROR(VLOOKUP(F740,Справочник!B:C,2,FALSE),\"\")","v":""}]
[null,null,null,null,{"$f":"IFERROR(VLOOKUP($D741,Справочник!$B:$C,2,FALSE),\"\")","v":""},null,{"$f":"IFERROR(VLOOKUP(F741,Справочник!B:C,2,FALSE),\"\")","v":""}]
[null,null,null,null,{"$f":"IFERROR(VLOOKUP($D742,Справочник!$B:$C,2,FALSE),\"\")","v":""},null,{"$f":"IFERROR(VLOOKUP(F742,Справочник!B:C,2,FALSE),\"\")","v":""}]
[null,null,null,null,{"$f":"IFERROR(VLOOKUP($D743,Справочник!$B:$C,2,FALSE),\"\")","v":""},null,{"$f":"IFERROR(VLOOKUP(F743,Справочник!B:C,2,FALSE),\"\")","v":""}]
[null,null,null,null,{"$f":"IFERROR(VLOOKUP($D744,Справочник!$B:$C,2,FALSE),\"\")","v":""},null,{"$f":"IFERROR(VLOOKUP(F744,Справочник!B:C,2,FALSE),\"\")","v":""}]
[null,null,null,null,{"$f":"IFERROR(VLOOKUP($D745,Справочник!$B:$C,2,FALSE),\"\")","v":""},null,{"$f":"IFERROR(VLOOKUP(F745,Справочник!B:C,2,FALSE),\"\")","v":""}]
[null,null,null,null,{"$f":"IFERROR(VLOOKUP($D746,Справочник!$B:$C,2,FALSE),\"\")","v":""},null,{"$f":"IFERROR(VLOOKUP(F746,Справочник!B:C,2,FALSE),\"\")","v":""}]
[null,null,null,null,{"$f":"IFERROR(VLOOKUP($D747,Справочник!$B:$C,2,FALSE),\"\")","v":""},null,{"$f":"IFERROR(VLOOKUP(F747,Справочник!B:C,2,FALSE),\"\")","v":""}]
[null,null,null,null,{"$f":"IFERROR(VLOOKUP($D748,Справочник!$B:$C,2,FALSE),\"\")","v":""},null,{"$f":"IFERROR(VLOOKUP(F748,Справочник!B:C,2,FALSE),\"\")","v":""}]
[null,null,null,null,{"$f":"IFERROR(VLOOKUP($D749,Справочник!$B:$C,2,FALSE),\"\")","v":""},null,{"$f":"IFERROR(VLOOKUP(F749,Справочник!B:C,2,FALSE),\"\")","v":""}]
[null,null,null,null,{"$f":"IFERROR(VLOOKUP($D750,Справочник!$B:$C,2,FALSE),\"\")","v":""},null,{"$f":"IFERROR(VLOOKUP(F750,Справочник!B:C,2,FALSE),\"\")","v":""}]
[null,null,null,null,{"$f":"IFERROR(VLOOKUP($D751,Справочник!$B:$C,2,FALSE),\"\")","v":""},null,{"$f":"IFERROR(VLOOKUP(F751,Справочник!B:C,2,FALSE),\"\")","v":""}]
[null,null,null,null,{"$f":"IFERROR(VLOOKUP($D752,Справочник!$B:$C,2,FALSE),\"\")","v":""},null,{"$f":"IFERROR(VLOOKUP(F752,Справочник!B:C,2,FALSE),\"\")","v":""}]
[null,null,null,null,{"$f":"IFERROR(VLOOKUP($D753,Справочник!$B:$C,2,FALSE),\"\")","v":""},null,{"$f":"IFERROR(VLOOKUP(F753,Справочник!B:C,2,FALSE),\"\")","v":""}]
[null,null,null,null,{"$f":"IFERROR(VLOOKUP($D754,Справочник!$B:$C,2,FALSE),\"\")","v":""},null,{"$f":"IFERROR(VLOOKUP(F754,Справочник!B:C,2,FALSE),\"\")","v":""}]
[null,null,null,null,{"$f":"IFERROR(VLOOKUP($D755,Справочник!$B:$C,2,FALSE),\"\")","v":""},null,{"$f":"IFERROR(VLOOKUP(F755,Справочник!B:C,2,FALSE),\"\")","v":""}]
[null,null,null,null,{"$f":"IFERROR(VLOOKUP($D756,Справочник!$B:$C,2,FALSE),\"\")","v":""},null,{"$f":"IFERROR(VLOOKUP(F756,Справочник!B:C,2,FALSE),\"\")","v":""}]
[null,null,null,null,{"$f":"IFERROR(VLOOKUP($D757,Справочник!$B:$C,2,FALSE),\"\")","v":""},null,{"$f":"IFERROR(VLOOKUP(F757,Справочник!B:C,2,FALSE),\"\")","v":""}]
[null,null,null,null,{"$f":"IFERROR(VLOOKUP($D758,Справочник!$B:$C,2,FALSE),\"\")","v":""},null,{"$f":"IFERROR(VLOOKUP(F758,Справочник!B:C,2,FALSE),\"\")","v":""}]
[null,null,null,null,{"$f":"IFERROR(VLOOKUP($D759,Справочник!$B:$C,2,FALSE),\"\")","v":""},null,{"$f":"IFERROR(VLOOKUP(F759,Справочник!B:C,2,FALSE),\"\")","v":""}]
[null,null,null,null,{"$f":"IFERROR(VLOOKUP($D760,Справочник!$B:$C,2,FALSE),\"\")","v":""},null,{"$f":"IFERROR(VLOOKUP(F760,Справочник!B:C,2,FALSE),\"\")","v":""}]
[null,null,null,null,{"$f":"IFERROR(VLOOKUP($D761,Справочник!$B:$C,2,FALSE),\"\")","v":""},null,{"$f":"IFERROR(VLOOKUP(F761,Справочник!B:C,2,FALSE),\"\")","v":""}]
[null,null,null,null,{"$f":"IFERROR(VLOOKUP($D762,Справочник!$B:$C,2,FALSE),\"\")","v":""},null,{"$f":"IFERROR(VLOOKUP(F762,Справочник!B:C,2,FALSE),\"\")","v":""}]
[null,null,null,null,{"$f":"IFERROR(VLOOKUP($D763,Справочник!$B:$C,2,FALSE),\"\")","v":""},null,{"$f":"IFERROR(VLOOKUP(F763,Справочник!B:C,2,FALSE),\"\")","v":""}]
[null,null,null,null,{"$f":"IFERROR(VLOOKUP($D764,Справочник!$B:$C,2,FALSE),\"\")","v":""},null,{"$f":"IFERROR(VLOOKUP(F764,Справочник!B:C,2,FALSE),\"\")","v":""}]
[null,null,null,null,{"$f":"IFERROR(VLOOKUP($D765,Справочник!$B:$C,2,FALSE),\"\")","v":""},null,{"$f":"IFERROR(VLOOKUP(F765,Справочник!B:C,2,FALSE),\"\")","v":""}]
[null,null,null,null,{"$f":"IFERROR(VLOOKUP($D766,Справочник!$B:$C,2,FALSE),\"\")","v":""},null,{"$f":"IFERROR(VLOOKUP(F766,Справочник!B:C,2,FALSE),\"\")","v":""}]
[null,null,null,null,{"$f":"IFERROR(VLOOKUP($D767,Справочник!$B:$C,2,FALSE),\"\")","v":""},null,{"$f":"IFERROR(VLOOKUP(F767,Справочник!B:C,2,FALSE),\"\")","v":""}]
[null,null,null,null,{"$f":"IFERROR(VLOOKUP($D768,Справочник!$B:$C,2,FALSE),\"\")","v":""},null,{"$f":"IFERROR(VLOOKUP(F768,Справочник!B:C,2,FALSE),\"\")","v":""}]
[null,null,null,null,{"$f":"IFERROR(VLOOKUP($D769,Справочник!$B:$C,2,FALSE),\"\")","v":""},null,{"$f":"IFERROR(VLOOKUP(F769,Справочник!B:C,2,FALSE),\"\")","v":""}]
[null,null,null,null,{"$f":"IFERROR(VLOOKUP($D770,Справочник!$B:$C,2,FALSE),\"\")","v":""},null,{"$f":"IFERROR(VLOOKUP(F770,Справочник!B:C,2,FALSE),\"\")","v":""}]
[null,null,null,null,{"$f":"IFERROR(VLOOKUP($D771,Справочник!$B:$C,2,FALSE),\"\")","v":""},null,{"$f":"IFERROR(VLOOKUP(F771,Справочник!B:C,2,FALSE),\"\")","v":""}]
[null,null,null,null,{"$f":"IFERROR(VLOOKUP($D772,Справочник!$B:$C,2,FALSE),\"\")","v":""},null,{"$f":"IFERROR(VLOOKUP(F772,Справочник!B:C,2,FALSE),\"\")","v":""}]
[null,null,null,null,{"$f":"IFERROR(VLOOKUP($D773,Справочник!$B:$C,2,FALSE),\"\")","v":""},null,{"$f":"IFERROR(VLOOKUP(F773,Справочник!B:C,2,FALSE),\"\")","v":""}]
[null,null,null,null,{"$f":"IFERROR(VLOOKUP($D774,Справочник!$B:$C,2,FALSE),\"\")","v":""},null,{"$f":"IFERROR(VLOOKUP(F774,Справочник!B:C,2,FALSE),\"\")","v":""}]
[null,null,null,null,{"$f":"IFERROR(VLOOKUP($D775,Справочник!$B:$C,2,FALSE),\"\")","v":""},null,{"$f":"IFERROR(VLOOKUP(F775,Справочник!B:C,2,FALSE),\"\")","v":""}]
[null,null,null,null,{"$f":"IFERROR(VLOOKUP($D776,Справочник!$B:$C,2,FALSE),\"\")","v":""},null,{"$f":"IFERROR(VLOOKUP(F776,Справочник!B:C,2,FALSE),\"\")","v":""}]
[null,null,null,null,{"$f":"IFERROR(VLOOKUP($D777,Справочник!$B:$C,2,FALSE),\"\")","v":""},null,{"$f":"IFERROR(VLOOKUP(F777,Справочник!B:C,2,FALSE),\"\")","v":""}]
[null,null,null,null,{"$f":"IFERROR(VLOOKUP($D778,Справочник!$B:$C,2,FALSE),\"\")","v":""},null,{"$f":"IFERROR(VLOOKUP(F778,Справочник!B:C,2,FALSE),\"\")","v":""}]
[null,null,null,null,{"$f":"IFERROR(VLOOKUP($D779,Справочник!$B:$C,2,FALSE),\"\")","v":""},null,{"$f":"IFERROR(VLOOKUP(F779,Справочник!B:C,2,FALSE),\"\")","v":""}]
[null,null,null,null,{"$f":"IFERROR(VLOOKUP($D780,Справочник!$B:$C,2,FALSE),\"\")","v":""},null,{"$f":"IFERROR(VLOOKUP(F780,Справочник!B:C,2,FALSE),\"\")","v":""}]
[null,null,null,null,{"$f":"IFERROR(VLOOKUP($D781,Справочник!$B:$C,2,FALSE),\"\")","v":""},null,{"$f":"IFERROR(VLOOKUP(F781,Справочник!B:C,2,FALSE),\"\")","v":""}]
[null,null,null,null,{"$f":"IFERROR(VLOOKUP($D782,Справочник!$B:$C,2,FALSE),\"\")","v":""},null,{"$f":"IFERROR(VLOOKUP(F782,Справочник!B:C,2,FALSE),\"\")","v":""}]
[null,null,null,null,{"$f":"IFERROR(VLOOKUP($D783,Справочник!$B:$C,2,FALSE),\"\")","v":""},null,{"$f":"IFERROR(VLOOKUP(F783,Справочник!B:C,2,FALSE),\"\")","v":""}]
[null,null,null,null,{"$f":"IFERROR(VLOOKUP($D784,Справочник!$B:$C,2,FALSE),\"\")","v":""},null,{"$f":"IFERROR(VLOOKUP(F784,Справочник!B:C,2,FALSE),\"\")","v":""}]
[null,null,null,null,{"$f":"IFERROR(VLOOKUP($D785,Справочник!$B:$C,2,FALSE),\"\")","v":""},null,{"$f":"IFERROR(VLOOKUP(F785,Справочник!B:C,2,FALSE),\"\")","v":""}]
[null,null,null,null,{"$f":"IFERROR(VLOOKUP($D786,Справочник!$B:$C,2,FALSE),\"\")","v":""},null,{"$f":"IFERROR(VLOOKUP(F786,Справочник!B:C,2,FALSE),\"\")","v":""}]
[null,null,null,null,{"$f":"IFERROR(VLOOKUP($D787,Справочник!$B:$C,2,FALSE),\"\")","v":""},null,{"$f":"IFERROR(VLOOKUP(F787,Справочник!B:C,2,FALSE),\"\")","v":""}]
[null,null,null,null,{"$f":"IFERROR(VLOOKUP($D788,Справочник!$B:$C,2,FALSE),\"\")","v":""},null,{"$f":"IFERROR(VLOOKUP(F788,Справочник!B:C,2,FALSE),\"\")","v":""}]
[null,null,null,null,{"$f":"IFERROR(VLOOKUP($D789,Справочник!$B:$C,2,FALSE),\"\")","v":""},null,{"$f":"IFERROR(VLOOKUP(F789,Справочник!B:C,2,FALSE),\"\")","v":""}]
[null,null,null,null,{"$f":"IFERROR(VLOOKUP($D790,Справочник!$B:$C,2,FALSE),\"\")","v":""},null,{"$f":"IFERROR(VLOOKUP(F790,Справочник!B:C,2,FALSE),\"\")","v":""}]
[null,null,null,null,{"$f":"IFERROR(VLOOKUP($D791,Справочник!$B:$C,2,FALSE),\"\")","v":""},null,{"$f":"IFERROR(VLOOKUP(F791,Справочник!B:C,2,FALSE),\"\")","v":""}]
[null,null,null,null,{"$f":"IFERROR(VLOOKUP($D792,Справочник!$B:$C,2,FALSE),\"\")","v":""},null,{"$f":"IFERROR(VLOOKUP(F792,Справочник!B:C,2,FALSE),\"\")","v":""}]
[null,null,null,null,{"$f":"IFERROR(VLOOKUP($D793,Справочник!$B:$C,2,FALSE),\"\")","v":""},null,{"$f":"IFERROR(VLOOKUP(F793,Справочник!B:C,2,FALSE),\"\")","v":""}]
[null,null,null,null,{"$f":"IFERROR(VLOOKUP($D794,Справочник!$B:$C,2,FALSE),\"\")","v":""},null,{"$f":"IFERROR(VLOOKUP(F794,Справочник!B:C,2,FALSE),\"\")","v":""}]
[null,null,null,null,{"$f":"IFERROR(VLOOKUP($D795,Справочник!$B:$C,2,FALSE),\"\")","v":""},null,{"$f":"IFERROR(VLOOKUP(F795,Справочник!B:C,2,FALSE),\"\")","v":""}]
[null,null,null,null,{"$f":"IFERROR(VLOOKUP($D796,Справочник!$B:$C,2,FALSE),\"\")","v":""},null,{"$f":"IFERROR(VLOOKUP(F796,Справочник!B:C,2,FALSE),\"\")","v":""}]
[null,null,null,null,{"$f":"IFERROR(VLOOKUP($D797,Справочник!$B:$C,2,FALSE),\"\")","v":""},null,{"$f":"IFERROR(VLOOKUP(F797,Справочник!B:C,2,FALSE),\"\")","v":""}]
[null,null,null,null,{"$f":"IFERROR(VLOOKUP($D798,Справочник!$B:$C,2,FALSE),\"\")","v":""},null,{"$f":"IFERROR(VLOOKUP(F798,Справочник!B:C,2,FALSE),\"\")","v":""}]
[null,null,null,null,{"$f":"IFERROR(VLOOKUP($D799,Справочник!$B:$C,2,FALSE),\"\")","v":""},null,{"$f":"IFERROR(VLOOKUP(F799,Справочник!B:C,2,FALSE),\"\")","v":""}]
[null,null,null,null,{"$f":"IFERROR(VLOOKUP($D800,Справочник!$B:$C,2,FALSE),\"\")","v":""},null,{"$f":"IFERROR(VLOOKUP(F800,Справочник!B:C,2,FALSE),\"\")","v":""}]
[null,null,null,null,{"$f":"IFERROR(VLOOKUP($D801,Справочник!$B:$C,2,FALSE),\"\")","v":""},null,{"$f":"IFERROR(VLOOKUP(F801,Справочник!B:C,2,FALSE),\"\")","v":""}]
[null,null,null,null,{"$f":"IFERROR(VLOOKUP($D802,Справочник!$B:$C,2,FALSE),\"\")","v":""},null,{"$f":"IFERROR(VLOOKUP(F802,Справочник!B:C,2,FALSE),\"\")","v":""}]
[null,null,null,null,{"$f":"IFERROR(VLOOKUP($D803,Справочник!$B:$C,2,FALSE),\"\")","v":""},null,{"$f":"IFERROR(VLOOKUP(F803,Справочник!B:C,2,FALSE),\"\")","v":""}]
[null,null,null,null,{"$f":"IFERROR(VLOOKUP($D804,Справочник!$B:$C,2,FALSE),\"\")","v":""},null,{"$f":"IFERROR(VLOOKUP(F804,Справочник!B:C,2,FALSE),\"\")","v":""}]
[null,null,null,null,{"$f":"IFERROR(VLOOKUP($D805,Справочник!$B:$C,2,FALSE),\"\")","v":""},null,{"$f":"IFERROR(VLOOKUP(F805,Справочник!B:C,2,FALSE),\"\")","v":""}]
[null,null,null,null,{"$f":"IFERROR(VLOOKUP($D806,Справочник!$B:$C,2,FALSE),\"\")","v":""},null,{"$f":"IFERROR(VLOOKUP(F806,Справочник!B:C,2,FALSE),\"\")","v":""}]
[null,null,null,null,{"$f":"IFERROR(VLOOKUP($D807,Справочник!$B:$C,2,FALSE),\"\")","v":""},null,{"$f":"IFERROR(VLOOKUP(F807,Справочник!B:C,2,FALSE),\"\")","v":""}]
[null,null,null,null,{"$f":"IFERROR(VLOOKUP($D808,Справочник!$B:$C,2,FALSE),\"\")","v":""},null,{"$f":"IFERROR(VLOOKUP(F808,Справочник!B:C,2,FALSE),\"\")","v":""}]
[null,null,null,null,{"$f":"IFERROR(VLOOKUP($D809,Справочник!$B:$C,2,FALSE),\"\")","v":""},null,{"$f":"IFERROR(VLOOKUP(F809,Справочник!B:C,2,FALSE),\"\")","v":""}]
[null,null,null,null,{"$f":"IFERROR(VLOOKUP($D810,Справочник!$B:$C,2,FALSE),\"\")","v":""},null,{"$f":"IFERROR(VLOOKUP(F810,Справочник!B:C,2,FALSE),\"\")","v":""}]
[null,null,null,null,{"$f":"IFERROR(VLOOKUP($D811,Справочник!$B:$C,2,FALSE),\"\")","v":""},null,{"$f":"IFERROR(VLOOKUP(F811,Справочник!B:C,2,FALSE),\"\")","v":""}]
[null,null,null,null,{"$f":"IFERROR(VLOOKUP($D812,Справочник!$B:$C,2,FALSE),\"\")","v":""},null,{"$f":"IFERROR(VLOOKUP(F812,Справочник!B:C,2,FALSE),\"\")","v":""}]
[null,null,null,null,{"$f":"IFERROR(VLOOKUP($D813,Справочник!$B:$C,2,FALSE),\"\")","v":""},null,{"$f":"IFERROR(VLOOKUP(F813,Справочник!B:C,2,FALSE),\"\")","v":""}]
[null,null,null,null,{"$f":"IFERROR(VLOOKUP($D814,Справочник!$B:$C,2,FALSE),\"\")","v":""},null,{"$f":"IFERROR(VLOOKUP(F814,Справочник!B:C,2,FALSE),\"\")","v":""}]
[null,null,null,null,{"$f":"IFERROR(VLOOKUP($D815,Справочник!$B:$C,2,FALSE),\"\")","v":""},null,{"$f":"IFERROR(VLOOKUP(F815,Справочник!B:C,2,FALSE),\"\")","v":""}]
[null,null,null,null,{"$f":"IFERROR(VLOOKUP($D816,Справочник!$B:$C,2,FALSE),\"\")","v":""},null,{"$f":"IFERROR(VLOOKUP(F816,Справочник!B:C,2,FALSE),\"\")","v":""}]
[null,null,null,null,{"$f":"IFERROR(VLOOKUP($D817,Справочник!$B:$C,2,FALSE),\"\")","v":""},null,{"$f":"IFERROR(VLOOKUP(F817,Справочник!B:C,2,FALSE),\"\")","v":""}]
[null,null,null,null,{"$f":"IFERROR(VLOOKUP($D818,Справочник!$B:$C,2,FALSE),\"\")","v":""},null,{"$f":"IFERROR(VLOOKUP(F818,Справочник!B:C,2,FALSE),\"\")","v":""}]
[null,null,null,null,{"$f":"IFERROR(VLOOKUP($D819,Справочник!$B:$C,2,FALSE),\"\")","v":""},null,{"$f":"IFERROR(VLOOKUP(F819,Справочник!B:C,2,FALSE),\"\")","v":""}]
[null,null,null,null,{"$f":"IFERROR(VLOOKUP($D820,Справочник!$B:$C,2,FALSE),\"\")","v":""},null,{"$f":"IFERROR(VLOOKUP(F820,Справочник!B:C,2,FALSE),\"\")","v":""}]
[null,null,null,null,{"$f":"IFERROR(VLOOKUP($D821,Справочник!$B:$C,2,FALSE),\"\")","v":""},null,{"$f":"IFERROR(VLOOKUP(F821,Справочник!B:C,2,FALSE),\"\")","v":""}]
[null,null,null,null,{"$f":"IFERROR(VLOOKUP($D822,Справочник!$B:$C,2,FALSE),\"\")","v":""},null,{"$f":"IFERROR(VLOOKUP(F822,Справочник!B:C,2,FALSE),\"\")","v":""}]
[null,null,null,null,{"$f":"IFERROR(VLOOKUP($D823,Справочник!$B:$C,2,FALSE),\"\")","v":""},null,{"$f":"IFERROR(VLOOKUP(F823,Справочник!B:C,2,FALSE),\"\")","v":""}]
[null,null,null,null,{"$f":"IFERROR(VLOOKUP($D824,Справочник!$B:$C,2,FALSE),\"\")","v":""},null,{"$f":"IFERROR(VLOOKUP(F824,Справочник!B:C,2,FALSE),\"\")","v":""}]
[null,null,null,null,{"$f":"IFERROR(VLOOKUP($D825,Справочник!$B:$C,2,FALSE),\"\")","v":""},null,{"$f":"IFERROR(VLOOKUP(F825,Справочник!B:C,2,FALSE),\"\")","v":""}]
[null,null,null,null,{"$f":"IFERROR(VLOOKUP($D826,Справочник!$B:$C,2,FALSE),\"\")","v":""},null,{"$f":"IFERROR(VLOOKUP(F826,Справочник!B:C,2,FALSE),\"\")","v":""}]
[null,null,null,null,{"$f":"IFERROR(VLOOKUP($D827,Справочник!$B:$C,2,FALSE),\"\")","v":""},null,{"$f":"IFERROR(VLOOKUP(F827,Справочник!B:C,2,FALSE),\"\")","v":""}]
[null,null,null,null,{"$f":"IFERROR(VLOOKUP($D828,Справочник!$B:$C,2,FALSE),\"\")","v":""},null,{"$f":"IFERROR(VLOOKUP(F828,Справочник!B:C,2,FALSE),\"\")","v":""}]
[null,null,null,null,{"$f":"IFERROR(VLOOKUP($D829,Справочник!$B:$C,2,FALSE),\"\")","v":""},null,{"$f":"IFERROR(VLOOKUP(F829,Справочник!B:C,2,FALSE),\"\")","v":""}]
[null,null,null,null,{"$f":"IFERROR(VLOOKUP($D830,Справочник!$B:$C,2,FALSE),\"\")","v":""},null,{"$f":"IFERROR(VLOOKUP(F830,Справочник!B:C,2,FALSE),\"\")","v":""}]
[null,null,null,null,{"$f":"IFERROR(VLOOKUP($D831,Справочник!$B:$C,2,FALSE),\"\")","v":""},null,{"$f":"IFERROR(VLOOKUP(F831,Справочник!B:C,2,FALSE),\"\")","v":""}]
[null,null,null,null,{"$f":"IFERROR(VLOOKUP($D832,Справочник!$B:$C,2,FALSE),\"\")","v":""},null,{"$f":"IFERROR(VLOOKUP(F832,Справочник!B:C,2,FALSE),\"\")","v":""}]
[null,null,null,null,{"$f":"IFERROR(VLOOKUP($D833,Справочник!$B:$C,2,FALSE),\"\")","v":""},null,{"$f":"IFERROR(VLOOKUP(F833,Справочник!B:C,2,FALSE),\"\")","v":""}]
[null,null,null,null,{"$f":"IFERROR(VLOOKUP($D834,Справочник!$B:$C,2,FALSE),\"\")","v":""},null,{"$f":"IFERROR(VLOOKUP(F834,Справочник!B:C,2,FALSE),\"\")","v":""}]
[null,null,null,null,{"$f":"IFERROR(VLOOKUP($D835,Справочник!$B:$C,2,FALSE),\"\")","v":""},null,{"$f":"IFERROR(VLOOKUP(F835,Справочник!B:C,2,FALSE),\"\")","v":""}]
[null,null,null,null,{"$f":"IFERROR(VLOOKUP($D836,Справочник!$B:$C,2,FALSE),\"\")","v":""},null,{"$f":"IFERROR(VLOOKUP(F836,Справочник!B:C,2,FALSE),\"\")","v":""}]
[null,null,null,null,{"$f":"IFERROR(VLOOKUP($D837,Справочник!$B:$C,2,FALSE),\"\")","v":""},null,{"$f":"IFERROR(VLOOKUP(F837,Справочник!B:C,2,FALSE),\"\")","v":""}]
[null,null,null,null,{"$f":"IFERROR(VLOOKUP($D838,Справочник!$B:$C,2,FALSE),\"\")","v":""},null,{"$f":"IFERROR(VLOOKUP(F838,Справочник!B:C,2,FALSE),\"\")","v":""}]
[null,null,null,null,{"$f":"IFERROR(VLOOKUP($D839,Справочник!$B:$C,2,FALSE),\"\")","v":""},null,{"$f":"IFERROR(VLOOKUP(F839,Справочник!B:C,2,FALSE),\"\")","v":""}]
[null,null,null,null,{"$f":"IFERROR(VLOOKUP($D840,Справочник!$B:$C,2,FALSE),\"\")","v":""},null,{"$f":"IFERROR(VLOOKUP(F840,Справочник!B:C,2,FALSE),\"\")","v":""}]
[null,null,null,null,{"$f":"IFERROR(VLOOKUP($D841,Справочник!$B:$C,2,FALSE),\"\")","v":""},null,{"$f":"IFERROR(VLOOKUP(F841,Справочник!B:C,2,FALSE),\"\")","v":""}]
[null,null,null,null,{"$f":"IFERROR(VLOOKUP($D842,Справочник!$B:$C,2,FALSE),\"\")","v":""},null,{"$f":"IFERROR(VLOOKUP(F842,Справочник!B:C,2,FALSE),\"\")","v":""}]
[null,null,null,null,{"$f":"IFERROR(VLOOKUP($D843,Справочник!$B:$C,2,FALSE),\"\")","v":""},null,{"$f":"IFERROR(VLOOKUP(F843,Справочник!B:C,2,FALSE),\"\")","v":""}]
[null,null,null,null,{"$f":"IFERROR(VLOOKUP($D844,Справочник!$B:$C,2,FALSE),\"\")","v":""},null,{"$f":"IFERROR(VLOOKUP(F844,Справочник!B:C,2,FALSE),\"\")","v":""}]
[null,null,null,null,{"$f":"IFERROR(VLOOKUP($D845,Справочник!$B:$C,2,FALSE),\"\")","v":""},null,{"$f":"IFERROR(VLOOKUP(F845,Справочник!B:C,2,FALSE),\"\")","v":""}]
[null,null,null,null,{"$f":"IFERROR(VLOOKUP($D846,Справочник!$B:$C,2,FALSE),\"\")","v":""},null,{"$f":"IFERROR(VLOOKUP(F846,Справочник!B:C,2,FALSE),\"\")","v":""}]
[null,null,null,null,{"$f":"IFERROR(VLOOKUP($D847,Справочник!$B:$C,2,FALSE),\"\")","v":""},null,{"$f":"IFERROR(VLOOKUP(F847,Справочник!B:C,2,FALSE),\"\")","v":""}]
[null,null,null,null,{"$f":"IFERROR(VLOOKUP($D848,Справочник!$B:$C,2,FALSE),\"\")","v":""},null,{"$f":"IFERROR(VLOOKUP(F848,Справочник!B:C,2,FALSE),\"\")","v":""}]
[null,null,null,null,{"$f":"IFERROR(VLOOKUP($D849,Справочник!$B:$C,2,FALSE),\"\")","v":""},null,{"$f":"IFERROR(VLOOKUP(F849,Справочник!B:C,2,FALSE),\"\")","v":""}]
[null,null,null,null,{"$f":"IFERROR(VLOOKUP($D850,Справочник!$B:$C,2,FALSE),\"\")","v":""},null,{"$f":"IFERROR(VLOOKUP(F850,Справочник!B:C,2,FALSE),\"\")","v":""}]
[null,null,null,null,{"$f":"IFERROR(VLOOKUP($D851,Справочник!$B:$C,2,FALSE),\"\")","v":""},null,{"$f":"IFERROR(VLOOKUP(F851,Справочник!B:C,2,FALSE),\"\")","v":""}]
[null,null,null,null,{"$f":"IFERROR(VLOOKUP($D852,Справочник!$B:$C,2,FALSE),\"\")","v":""},null,{"$f":"IFERROR(VLOOKUP(F852,Справочник!B:C,2,FALSE),\"\")","v":""}]
[null,null,null,null,{"$f":"IFERROR(VLOOKUP($D853,Справочник!$B:$C,2,FALSE),\"\")","v":""},null,{"$f":"IFERROR(VLOOKUP(F853,Справочник!B:C,2,FALSE),\"\")","v":""}]
[null,null,null,null,{"$f":"IFERROR(VLOOKUP($D854,Справочник!$B:$C,2,FALSE),\"\")","v":""},null,{"$f":"IFERROR(VLOOKUP(F854,Справочник!B:C,2,FALSE),\"\")","v":""}]
[null,null,null,null,{"$f":"IFERROR(VLOOKUP($D855,Справочник!$B:$C,2,FALSE),\"\")","v":""},null,{"$f":"IFERROR(VLOOKUP(F855,Справочник!B:C,2,FALSE),\"\")","v":""}]
[null,null,null,null,{"$f":"IFERROR(VLOOKUP($D856,Справочник!$B:$C,2,FALSE),\"\")","v":""},null,{"$f":"IFERROR(VLOOKUP(F856,Справочник!B:C,2,FALSE),\"\")","v":""}]
[null,null,null,null,{"$f":"IFERROR(VLOOKUP($D857,Справочник!$B:$C,2,FALSE),\"\")","v":""},null,{"$f":"IFERROR(VLOOKUP(F857,Справочник!B:C,2,FALSE),\"\")","v":""}]
[null,null,null,null,{"$f":"IFERROR(VLOOKUP($D858,Справочник!$B:$C,2,FALSE),\"\")","v":""},null,{"$f":"IFERROR(VLOOKUP(F858,Справочник!B:C,2,FALSE),\"\")","v":""}]
[null,null,null,null,{"$f":"IFERROR(VLOOKUP($D859,Справочник!$B:$C,2,FALSE),\"\")","v":""},null,{"$f":"IFERROR(VLOOKUP(F859,Справочник!B:C,2,FALSE),\"\")","v":""}]
[null,null,null,null,{"$f":"IFERROR(VLOOKUP($D860,Справочник!$B:$C,2,FALSE),\"\")","v":""},null,{"$f":"IFERROR(VLOOKUP(F860,Справочник!B:C,2,FALSE),\"\")","v":""}]
[null,null,null,null,{"$f":"IFERROR(VLOOKUP($D861,Справочник!$B:$C,2,FALSE),\"\")","v":""},null,{"$f":"IFERROR(VLOOKUP(F861,Справочник!B:C,2,FALSE),\"\")","v":""}]
[null,null,null,null,{"$f":"IFERROR(VLOOKUP($D862,Справочник!$B:$C,2,FALSE),\"\")","v":""},null,{"$f":"IFERROR(VLOOKUP(F862,Справочник!B:C,2,FALSE),\"\")","v":""}]
[null,null,null,null,{"$f":"IFERROR(VLOOKUP($D863,Справочник!$B:$C,2,FALSE),\"\")","v":""},null,{"$f":"IFERROR(VLOOKUP(F863,Справочник!B:C,2,FALSE),\"\")","v":""}]
[null,null,null,null,{"$f":"IFERROR(VLOOKUP($D864,Справочник!$B:$C,2,FALSE),\"\")","v":""},null,{"$f":"IFERROR(VLOOKUP(F864,Справочник!B:C,2,FALSE),\"\")","v":""}]
[null,null,null,null,{"$f":"IFERROR(VLOOKUP($D865,Справочник!$B:$C,2,FALSE),\"\")","v":""},null,{"$f":"IFERROR(VLOOKUP(F865,Справочник!B:C,2,FALSE),\"\")","v":""}]
[null,null,null,null,{"$f":"IFERROR(VLOOKUP($D866,Справочник!$B:$C,2,FALSE),\"\")","v":""},null,{"$f":"IFERROR(VLOOKUP(F866,Справочник!B:C,2,FALSE),\"\")","v":""}]
[null,null,null,null,{"$f":"IFERROR(VLOOKUP($D867,Справочник!$B:$C,2,FALSE),\"\")","v":""},null,{"$f":"IFERROR(VLOOKUP(F867,Справочник!B:C,2,FALSE),\"\")","v":""}]
[null,null,null,null,{"$f":"IFERROR(VLOOKUP($D868,Справочник!$B:$C,2,FALSE),\"\")","v":""},null,{"$f":"IFERROR(VLOOKUP(F868,Справочник!B:C,2,FALSE),\"\")","v":""}]
[null,null,null,null,{"$f":"IFERROR(VLOOKUP($D869,Справочник!$B:$C,2,FALSE),\"\")","v":""},null,{"$f":"IFERROR(VLOOKUP(F869,Справочник!B:C,2,FALSE),\"\")","v":""}]
[null,null,null,null,{"$f":"IFERROR(VLOOKUP($D870,Справочник!$B:$C,2,FALSE),\"\")","v":""},null,{"$f":"IFERROR(VLOOKUP(F870,Справочник!B:C,2,FALSE),\"\")","v":""}]
[null,null,null,null,{"$f":"IFERROR(VLOOKUP($D871,Справочник!$B:$C,2,FALSE),\"\")","v":""},null,{"$f":"IFERROR(VLOOKUP(F871,Справочник!B:C,2,FALSE),\"\")","v":""}]
[null,null,null,null,{"$f":"IFERROR(VLOOKUP($D872,Справочник!$B:$C,2,FALSE),\"\")","v":""},null,{"$f":"IFERROR(VLOOKUP(F872,Справочник!B:C,2,FALSE),\"\")","v":""}]
[null,null,null,null,{"$f":"IFERROR(VLOOKUP($D873,Справочник!$B:$C,2,FALSE),\"\")","v":""},null,{"$f":"IFERROR(VLOOKUP(F873,Справочник!B:C,2,FALSE),\"\")","v":""}]
[null,null,null,null,{"$f":"IFERROR(VLOOKUP($D874,Справочник!$B:$C,2,FALSE),\"\")","v":""},null,{"$f":"IFERROR(VLOOKUP(F874,Справочник!B:C,2,FALSE),\"\")","v":""}]
[null,null,null,null,{"$f":"IFERROR(VLOOKUP($D875,Справочник!$B:$C,2,FALSE),\"\")","v":""},null,{"$f":"IFERROR(VLOOKUP(F875,Справочник!B:C,2,FALSE),\"\")","v":""}]
[null,null,null,null,{"$f":"IFERROR(VLOOKUP($D876,Справочник!$B:$C,2,FALSE),\"\")","v":""},null,{"$f":"IFERROR(VLOOKUP(F876,Справочник!B:C,2,FALSE),\"\")","v":""}]
[null,null,null,null,{"$f":"IFERROR(VLOOKUP($D877,Справочник!$B:$C,2,FALSE),\"\")","v":""},null,{"$f":"IFERROR(VLOOKUP(F877,Справочник!B:C,2,FALSE),\"\")","v":""}]
[null,null,null,null,{"$f":"IFERROR(VLOOKUP($D878,Справочник!$B:$C,2,FALSE),\"\")","v":""},null,{"$f":"IFERROR(VLOOKUP(F878,Справочник!B:C,2,FALSE),\"\")","v":""}]
[null,null,null,null,{"$f":"IFERROR(VLOOKUP($D879,Справочник!$B:$C,2,FALSE),\"\")","v":""},null,{"$f":"IFERROR(VLOOKUP(F879,Справочник!B:C,2,FALSE),\"\")","v":""}]
[null,null,null,null,{"$f":"IFERROR(VLOOKUP($D880,Справочник!$B:$C,2,FALSE),\"\")","v":""},null,{"$f":"IFERROR(VLOOKUP(F880,Справочник!B:C,2,FALSE),\"\")","v":""}]
[null,null,null,null,{"$f":"IFERROR(VLOOKUP($D881,Справочник!$B:$C,2,FALSE),\"\")","v":""},null,{"$f":"IFERROR(VLOOKUP(F881,Справочник!B:C,2,FALSE),\"\")","v":""}]
[null,null,null,null,{"$f":"IFERROR(VLOOKUP($D882,Справочник!$B:$C,2,FALSE),\"\")","v":""},null,{"$f":"IFERROR(VLOOKUP(F882,Справочник!B:C,2,FALSE),\"\")","v":""}]
[null,null,null,null,{"$f":"IFERROR(VLOOKUP($D883,Справочник!$B:$C,2,FALSE),\"\")","v":""},null,{"$f":"IFERROR(VLOOKUP(F883,Справочник!B:C,2,FALSE),\"\")","v":""}]
[null,null,null,null,{"$f":"IFERROR(VLOOKUP($D884,Справочник!$B:$C,2,FALSE),\"\")","v":""},null,{"$f":"IFERROR(VLOOKUP(F884,Справочник!B:C,2,FALSE),\"\")","v":""}]
[null,null,null,null,{"$f":"IFERROR(VLOOKUP($D885,Справочник!$B:$C,2,FALSE),\"\")","v":""},null,{"$f":"IFERROR(VLOOKUP(F885,Справочник!B:C,2,FALSE),\"\")","v":""}]
[null,null,null,null,{"$f":"IFERROR(VLOOKUP($D886,Справочник!$B:$C,2,FALSE),\"\")","v":""},null,{"$f":"IFERROR(VLOOKUP(F886,Справочник!B:C,2,FALSE),\"\")","v":""}]
[null,null,null,null,{"$f":"IFERROR(VLOOKUP($D887,Справочник!$B:$C,2,FALSE),\"\")","v":""},null,{"$f":"IFERROR(VLOOKUP(F887,Справочник!B:C,2,FALSE),\"\")","v":""}]
[null,null,null,null,{"$f":"IFERROR(VLOOKUP($D888,Справочник!$B:$C,2,FALSE),\"\")","v":""},null,{"$f":"IFERROR(VLOOKUP(F888,Справочник!B:C,2,FALSE),\"\")","v":""}]
[null,null,null,null,{"$f":"IFERROR(VLOOKUP($D889,Справочник!$B:$C,2,FALSE),\"\")","v":""},null,{"$f":"IFERROR(VLOOKUP(F889,Справочник!B:C,2,FALSE),\"\")","v":""}]
[null,null,null,null,{"$f":"IFERROR(VLOOKUP($D890,Справочник!$B:$C,2,FALSE),\"\")","v":""},null,{"$f":"IFERROR(VLOOKUP(F890,Справочник!B:C,2,FALSE),\"\")","v":""}]
[null,null,null,null,{"$f":"IFERROR(VLOOKUP($D891,Справочник!$B:$C,2,FALSE),\"\")","v":""},null,{"$f":"IFERROR(VLOOKUP(F891,Справочник!B:C,2,FALSE),\"\")","v":""}]
[null,null,null,null,{"$f":"IFERROR(VLOOKUP($D892,Справочник!$B:$C,2,FALSE),\"\")","v":""},null,{"$f":"IFERROR(VLOOKUP(F892,Справочник!B:C,2,FALSE),\"\")","v":""}]
[null,null,null,null,{"$f":"IFERROR(VLOOKUP($D893,Справочник!$B:$C,2,FALSE),\"\")","v":""},null,{"$f":"IFERROR(VLOOKUP(F893,Справочник!B:C,2,FALSE),\"\")","v":""}]
[null,null,null,null,{"$f":"IFERROR(VLOOKUP($D894,Справочник!$B:$C,2,FALSE),\"\")","v":""},null,{"$f":"IFERROR(VLOOKUP(F894,Справочник!B:C,2,FALSE),\"\")","v":""}]
[null,null,null,null,{"$f":"IFERROR(VLOOKUP($D895,Справочник!$B:$C,2,FALSE),\"\")","v":""},null,{"$f":"IFERROR(VLOOKUP(F895,Справочник!B:C,2,FALSE),\"\")","v":""}]
[null,null,null,null,{"$f":"IFERROR(VLOOKUP($D896,Справочник!$B:$C,2,FALSE),\"\")","v":""},null,{"$f":"IFERROR(VLOOKUP(F896,Справочник!B:C,2,FALSE),\"\")","v":""}]
[null,null,null,null,{"$f":"IFERROR(VLOOKUP($D897,Справочник!$B:$C,2,FALSE),\"\")","v":""},null,{"$f":"IFERROR(VLOOKUP(F897,Справочник!B:C,2,FALSE),\"\")","v":""}]
[null,null,null,null,{"$f":"IFERROR(VLOOKUP($D898,Справочник!$B:$C,2,FALSE),\"\")","v":""},null,{"$f":"IFERROR(VLOOKUP(F898,Справочник!B:C,2,FALSE),\"\")","v":""}]
[null,null,null,null,{"$f":"IFERROR(VLOOKUP($D899,Справочник!$B:$C,2,FALSE),\"\")","v":""},null,{"$f":"IFERROR(VLOOKUP(F899,Справочник!B:C,2,FALSE),\"\")","v":""}]
[null,null,null,null,{"$f":"IFERROR(VLOOKUP($D900,Справочник!$B:$C,2,FALSE),\"\")","v":""},null,{"$f":"IFERROR(VLOOKUP(F900,Справочник!B:C,2,FALSE),\"\")","v":""}]
[null,null,null,null,{"$f":"IFERROR(VLOOKUP($D901,Справочник!$B:$C,2,FALSE),\"\")","v":""},null,{"$f":"IFERROR(VLOOKUP(F901,Справочник!B:C,2,FALSE),\"\")","v":""}]
[null,null,null,null,{"$f":"IFERROR(VLOOKUP($D902,Справочник!$B:$C,2,FALSE),\"\")","v":""},null,{"$f":"IFERROR(VLOOKUP(F902,Справочник!B:C,2,FALSE),\"\")","v":""}]
[null,null,null,null,{"$f":"IFERROR(VLOOKUP($D903,Справочник!$B:$C,2,FALSE),\"\")","v":""},null,{"$f":"IFERROR(VLOOKUP(F903,Справочник!B:C,2,FALSE),\"\")","v":""}]
[null,null,null,null,{"$f":"IFERROR(VLOOKUP($D904,Справочник!$B:$C,2,FALSE),\"\")","v":""},null,{"$f":"IFERROR(VLOOKUP(F904,Справочник!B:C,2,FALSE),\"\")","v":""}]
[null,null,null,null,{"$f":"IFERROR(VLOOKUP($D905,Справочник!$B:$C,2,FALSE),\"\")","v":""},null,{"$f":"IFERROR(VLOOKUP(F905,Справочник!B:C,2,FALSE),\"\")","v":""}]
[null,null,null,null,{"$f":"IFERROR(VLOOKUP($D906,Справочник!$B:$C,2,FALSE),\"\")","v":""},null,{"$f":"IFERROR(VLOOKUP(F906,Справочник!B:C,2,FALSE),\"\")","v":""}]
[null,null,null,null,{"$f":"IFERROR(VLOOKUP($D907,Справочник!$B:$C,2,FALSE),\"\")","v":""},null,{"$f":"IFERROR(VLOOKUP(F907,Справочник!B:C,2,FALSE),\"\")","v":""}]
[null,null,null,null,{"$f":"IFERROR(VLOOKUP($D908,Справочник!$B:$C,2,FALSE),\"\")","v":""},null,{"$f":"IFERROR(VLOOKUP(F908,Справочник!B:C,2,FALSE),\"\")","v":""}]
[null,null,null,null,{"$f":"IFERROR(VLOOKUP($D909,Справочник!$B:$C,2,FALSE),\"\")","v":""},null,{"$f":"IFERROR(VLOOKUP(F909,Справочник!B:C,2,FALSE),\"\")","v":""}]
[null,null,null,null,{"$f":"IFERROR(VLOOKUP($D910,Справочник!$B:$C,2,FALSE),\"\")","v":""},null,{"$f":"IFERROR(VLOOKUP(F910,Справочник!B:C,2,FALSE),\"\")","v":""}]
[null,null,null,null,{"$f":"IFERROR(VLOOKUP($D911,Справочник!$B:$C,2,FALSE),\"\")","v":""},null,{"$f":"IFERROR(VLOOKUP(F911,Справочник!B:C,2,FALSE),\"\")","v":""}]
[null,null,null,null,{"$f":"IFERROR(VLOOKUP($D912,Справочник!$B:$C,2,FALSE),\"\")","v":""},null,{"$f":"IFERROR(VLOOKUP(F912,Справочник!B:C,2,FALSE),\"\")","v":""}]
[null,null,null,null,{"$f":"IFERROR(VLOOKUP($D913,Справочник!$B:$C,2,FALSE),\"\")","v":""},null,{"$f":"IFERROR(VLOOKUP(F913,Справочник!B:C,2,FALSE),\"\")","v":""}]
[null,null,null,null,{"$f":"IFERROR(VLOOKUP($D914,Справочник!$B:$C,2,FALSE),\"\")","v":""},null,{"$f":"IFERROR(VLOOKUP(F914,Справочник!B:C,2,FALSE),\"\")","v":""}]
[null,null,null,null,{"$f":"IFERROR(VLOOKUP($D915,Справочник!$B:$C,2,FALSE),\"\")","v":""},null,{"$f":"IFERROR(VLOOKUP(F915,Справочник!B:C,2,FALSE),\"\")","v":""}]
[null,null,null,null,{"$f":"IFERROR(VLOOKUP($D916,Справочник!$B:$C,2,FALSE),\"\")","v":""},null,{"$f":"IFERROR(VLOOKUP(F916,Справочник!B:C,2,FALSE),\"\")","v":""}]
[null,null,null,null,{"$f":"IFERROR(VLOOKUP($D917,Справочник!$B:$C,2,FALSE),\"\")","v":""},null,{"$f":"IFERROR(VLOOKUP(F917,Справочник!B:C,2,FALSE),\"\")","v":""}]
[null,null,null,null,{"$f":"IFERROR(VLOOKUP($D918,Справочник!$B:$C,2,FALSE),\"\")","v":""},null,{"$f":"IFERROR(VLOOKUP(F918,Справочник!B:C,2,FALSE),\"\")","v":""}]
[null,null,null,null,{"$f":"IFERROR(VLOOKUP($D919,Справочник!$B:$C,2,FALSE),\"\")","v":""},null,{"$f":"IFERROR(VLOOKUP(F919,Справочник!B:C,2,FALSE),\"\")","v":""}]
[null,null,null,null,{"$f":"IFERROR(VLOOKUP($D920,Справочник!$B:$C,2,FALSE),\"\")","v":""},null,{"$f":"IFERROR(VLOOKUP(F920,Справочник!B:C,2,FALSE),\"\")","v":""}]
[null,null,null,null,{"$f":"IFERROR(VLOOKUP($D921,Справочник!$B:$C,2,FALSE),\"\")","v":""},null,{"$f":"IFERROR(VLOOKUP(F921,Справочник!B:C,2,FALSE),\"\")","v":""}]
[null,null,null,null,{"$f":"IFERROR(VLOOKUP($D922,Справочник!$B:$C,2,FALSE),\"\")","v":""},null,{"$f":"IFERROR(VLOOKUP(F922,Справочник!B:C,2,FALSE),\"\")","v":""}]
[null,null,null,null,{"$f":"IFERROR(VLOOKUP($D923,Справочник!$B:$C,2,FALSE),\"\")","v":""},null,{"$f":"IFERROR(VLOOKUP(F923,Справочник!B:C,2,FALSE),\"\")","v":""}]
[null,null,null,null,{"$f":"IFERROR(VLOOKUP($D924,Справочник!$B:$C,2,FALSE),\"\")","v":""},null,{"$f":"IFERROR(VLOOKUP(F924,Справочник!B:C,2,FALSE),\"\")","v":""}]
[null,null,null,null,{"$f":"IFERROR(VLOOKUP($D925,Справочник!$B:$C,2,FALSE),\"\")","v":""},null,{"$f":"IFERROR(VLOOKUP(F925,Справочник!B:C,2,FALSE),\"\")","v":""}]
[null,null,null,null,{"$f":"IFERROR(VLOOKUP($D926,Справочник!$B:$C,2,FALSE),\"\")","v":""},null,{"$f":"IFERROR(VLOOKUP(F926,Справочник!B:C,2,FALSE),\"\")","v":""}]
[null,null,null,null,{"$f":"IFERROR(VLOOKUP($D927,Справочник!$B:$C,2,FALSE),\"\")","v":""},null,{"$f":"IFERROR(VLOOKUP(F927,Справочник!B:C,2,FALSE),\"\")","v":""}]
[null,null,null,null,{"$f":"IFERROR(VLOOKUP($D928,Справочник!$B:$C,2,FALSE),\"\")","v":""},null,{"$f":"IFERROR(VLOOKUP(F928,Справочник!B:C,2,FALSE),\"\")","v":""}]
[null,null,null,null,{"$f":"IFERROR(VLOOKUP($D929,Справочник!$B:$C,2,FALSE),\"\")","v":""},null,{"$f":"IFERROR(VLOOKUP(F929,Справочник!B:C,2,FALSE),\"\")","v":""}]
[null,null,null,null,{"$f":"IFERROR(VLOOKUP($D930,Справочник!$B:$C,2,FALSE),\"\")","v":""},null,{"$f":"IFERROR(VLOOKUP(F930,Справочник!B:C,2,FALSE),\"\")","v":""}]
[null,null,null,null,{"$f":"IFERROR(VLOOKUP($D931,Справочник!$B:$C,2,FALSE),\"\")","v":""},null,{"$f":"IFERROR(VLOOKUP(F931,Справочник!B:C,2,FALSE),\"\")","v":""}]
[null,null,null,null,{"$f":"IFERROR(VLOOKUP($D932,Справочник!$B:$C,2,FALSE),\"\")","v":""},null,{"$f":"IFERROR(VLOOKUP(F932,Справочник!B:C,2,FALSE),\"\")","v":""}]
[null,null,null,null,{"$f":"IFERROR(VLOOKUP($D933,Справочник!$B:$C,2,FALSE),\"\")","v":""},null,{"$f":"IFERROR(VLOOKUP(F933,Справочник!B:C,2,FALSE),\"\")","v":""}]
[null,null,null,null,{"$f":"IFERROR(VLOOKUP($D934,Справочник!$B:$C,2,FALSE),\"\")","v":""},null,{"$f":"IFERROR(VLOOKUP(F934,Справочник!B:C,2,FALSE),\"\")","v":""}]
[null,null,null,null,{"$f":"IFERROR(VLOOKUP($D935,Справочник!$B:$C,2,FALSE),\"\")","v":""},null,{"$f":"IFERROR(VLOOKUP(F935,Справочник!B:C,2,FALSE),\"\")","v":""}]
[null,null,null,null,{"$f":"IFERROR(VLOOKUP($D936,Справочник!$B:$C,2,FALSE),\"\")","v":""},null,{"$f":"IFERROR(VLOOKUP(F936,Справочник!B:C,2,FALSE),\"\")","v":""}]
[null,null,null,null,{"$f":"IFERROR(VLOOKUP($D937,Справочник!$B:$C,2,FALSE),\"\")","v":""},null,{"$f":"IFERROR(VLOOKUP(F937,Справочник!B:C,2,FALSE),\"\")","v":""}]
[null,null,null,null,{"$f":"IFERROR(VLOOKUP($D938,Справочник!$B:$C,2,FALSE),\"\")","v":""},null,{"$f":"IFERROR(VLOOKUP(F938,Справочник!B:C,2,FALSE),\"\")","v":""}]
[null,null,null,null,{"$f":"IFERROR(VLOOKUP($D939,Справочник!$B:$C,2,FALSE),\"\")","v":""},null,{"$f":"IFERROR(VLOOKUP(F939,Справочник!B:C,2,FALSE),\"\")","v":""}]
[null,null,null,null,{"$f":"IFERROR(VLOOKUP($D940,Справочник!$B:$C,2,FALSE),\"\")","v":""},null,{"$f":"IFERROR(VLOOKUP(F940,Справочник!B:C,2,FALSE),\"\")","v":""}]
[null,null,null,null,{"$f":"IFERROR(VLOOKUP($D941,Справочник!$B:$C,2,FALSE),\"\")","v":""},null,{"$f":"IFERROR(VLOOKUP(F941,Справочник!B:C,2,FALSE),\"\")","v":""}]
[null,null,null,null,{"$f":"IFERROR(VLOOKUP($D942,Справочник!$B:$C,2,FALSE),\"\")","v":""},null,{"$f":"IFERROR(VLOOKUP(F942,Справочник!B:C,2,FALSE),\"\")","v":""}]
[null,null,null,null,{"$f":"IFERROR(VLOOKUP($D943,Справочник!$B:$C,2,FALSE),\"\")","v":""},null,{"$f":"IFERROR(VLOOKUP(F943,Справочник!B:C,2,FALSE),\"\")","v":""}]
[null,null,null,null,{"$f":"IFERROR(VLOOKUP($D944,Справочник!$B:$C,2,FALSE),\"\")","v":""},null,{"$f":"IFERROR(VLOOKUP(F944,Справочник!B:C,2,FALSE),\"\")","v":""}]
[null,null,null,null,{"$f":"IFERROR(VLOOKUP($D945,Справочник!$B:$C,2,FALSE),\"\")","v":""},null,{"$f":"IFERROR(VLOOKUP(F945,Справочник!B:C,2,FALSE),\"\")","v":""}]
[null,null,null,null,{"$f":"IFERROR(VLOOKUP($D946,Справочник!$B:$C,2,FALSE),\"\")","v":""},null,{"$f":"IFERROR(VLOOKUP(F946,Справочник!B:C,2,FALSE),\"\")","v":""}]
[null,null,null,null,{"$f":"IFERROR(VLOOKUP($D947,Справочник!$B:$C,2,FALSE),\"\")","v":""},null,{"$f":"IFERROR(VLOOKUP(F947,Справочник!B:C,2,FALSE),\"\")","v":""}]
[null,null,null,null,{"$f":"IFERROR(VLOOKUP($D948,Справочник!$B:$C,2,FALSE),\"\")","v":""},null,{"$f":"IFERROR(VLOOKUP(F948,Справочник!B:C,2,FALSE),\"\")","v":""}]
[null,null,null,null,{"$f":"IFERROR(VLOOKUP($D949,Справочник!$B:$C,2,FALSE),\"\")","v":""},null,{"$f":"IFERROR(VLOOKUP(F949,Справочник!B:C,2,FALSE),\"\")","v":""}]
[null,null,null,null,{"$f":"IFERROR(VLOOKUP($D950,Справочник!$B:$C,2,FALSE),\"\")","v":""},null,{"$f":"IFERROR(VLOOKUP(F950,Справочник!B:C,2,FALSE),\"\")","v":""}]
[null,null,null,null,{"$f":"IFERROR(VLOOKUP($D951,Справочник!$B:$C,2,FALSE),\"\")","v":""},null,{"$f":"IFERROR(VLOOKUP(F951,Справочник!B:C,2,FALSE),\"\")","v":""}]
[null,null,null,null,{"$f":"IFERROR(VLOOKUP($D952,Справочник!$B:$C,2,FALSE),\"\")","v":""},null,{"$f":"IFERROR(VLOOKUP(F952,Справочник!B:C,2,FALSE),\"\")","v":""}]
[null,null,null,null,{"$f":"IFERROR(VLOOKUP($D953,Справочник!$B:$C,2,FALSE),\"\")","v":""},null,{"$f":"IFERROR(VLOOKUP(F953,Справочник!B:C,2,FALSE),\"\")","v":""}]
[null,null,null,null,{"$f":"IFERROR(VLOOKUP($D954,Справочник!$B:$C,2,FALSE),\"\")","v":""},null,{"$f":"IFERROR(VLOOKUP(F954,Справочник!B:C,2,FALSE),\"\")","v":""}]
[null,null,null,null,{"$f":"IFERROR(VLOOKUP($D955,Справочник!$B:$C,2,FALSE),\"\")","v":""},null,{"$f":"IFERROR(VLOOKUP(F955,Справочник!B:C,2,FALSE),\"\")","v":""}]
[null,null,null,null,{"$f":"IFERROR(VLOOKUP($D956,Справочник!$B:$C,2,FALSE),\"\")","v":""},null,{"$f":"IFERROR(VLOOKUP(F956,Справочник!B:C,2,FALSE),\"\")","v":""}]
[null,null,null,null,{"$f":"IFERROR(VLOOKUP($D957,Справочник!$B:$C,2,FALSE),\"\")","v":""},null,{"$f":"IFERROR(VLOOKUP(F957,Справочник!B:C,2,FALSE),\"\")","v":""}]
[null,null,null,null,{"$f":"IFERROR(VLOOKUP($D958,Справочник!$B:$C,2,FALSE),\"\")","v":""},null,{"$f":"IFERROR(VLOOKUP(F958,Справочник!B:C,2,FALSE),\"\")","v":""}]
[null,null,null,null,{"$f":"IFERROR(VLOOKUP($D959,Справочник!$B:$C,2,FALSE),\"\")","v":""},null,{"$f":"IFERROR(VLOOKUP(F959,Справочник!B:C,2,FALSE),\"\")","v":""}]
[null,null,null,null,{"$f":"IFERROR(VLOOKUP($D960,Справочник!$B:$C,2,FALSE),\"\")","v":""},null,{"$f":"IFERROR(VLOOKUP(F960,Справочник!B:C,2,FALSE),\"\")","v":""}]
[null,null,null,null,{"$f":"IFERROR(VLOOKUP($D961,Справочник!$B:$C,2,FALSE),\"\")","v":""},null,{"$f":"IFERROR(VLOOKUP(F961,Справочник!B:C,2,FALSE),\"\")","v":""}]
[null,null,null,null,{"$f":"IFERROR(VLOOKUP($D962,Справочник!$B:$C,2,FALSE),\"\")","v":""},null,{"$f":"IFERROR(VLOOKUP(F962,Справочник!B:C,2,FALSE),\"\")","v":""}]
[null,null,null,null,{"$f":"IFERROR(VLOOKUP($D963,Справочник!$B:$C,2,FALSE),\"\")","v":""},null,{"$f":"IFERROR(VLOOKUP(F963,Справочник!B:C,2,FALSE),\"\")","v":""}]
[null,null,null,null,{"$f":"IFERROR(VLOOKUP($D964,Справочник!$B:$C,2,FALSE),\"\")","v":""},null,{"$f":"IFERROR(VLOOKUP(F964,Справочник!B:C,2,FALSE),\"\")","v":""}]
[null,null,null,null,{"$f":"IFERROR(VLOOKUP($D965,Справочник!$B:$C,2,FALSE),\"\")","v":""},null,{"$f":"IFERROR(VLOOKUP(F965,Справочник!B:C,2,FALSE),\"\")","v":""}]
[null,null,null,null,{"$f":"IFERROR(VLOOKUP($D966,Справочник!$B:$C,2,FALSE),\"\")","v":""},null,{"$f":"IFERROR(VLOOKUP(F966,Справочник!B:C,2,FALSE),\"\")","v":""}]
[null,null,null,null,{"$f":"IFERROR(VLOOKUP($D967,Справочник!$B:$C,2,FALSE),\"\")","v":""},null,{"$f":"IFERROR(VLOOKUP(F967,Справочник!B:C,2,FALSE),\"\")","v":""}]
[null,null,null,null,{"$f":"IFERROR(VLOOKUP($D968,Справочник!$B:$C,2,FALSE),\"\")","v":""},null,{"$f":"IFERROR(VLOOKUP(F968,Справочник!B:C,2,FALSE),\"\")","v":""}]
[null,null,null,null,{"$f":"IFERROR(VLOOKUP($D969,Справочник!$B:$C,2,FALSE),\"\")","v":""},null,{"$f":"IFERROR(VLOOKUP(F969,Справочник!B:C,2,FALSE),\"\")","v":""}]
[null,null,null,null,{"$f":"IFERROR(VLOOKUP($D970,Справочник!$B:$C,2,FALSE),\"\")","v":""},null,{"$f":"IFERROR(VLOOKUP(F970,Справочник!B:C,2,FALSE),\"\")","v":""}]
[null,null,null,null,{"$f":"IFERROR(VLOOKUP($D971,Справочник!$B:$C,2,FALSE),\"\")","v":""},null,{"$f":"IFERROR(VLOOKUP(F971,Справочник!B:C,2,FALSE),\"\")","v":""}]
[null,null,null,null,{"$f":"IFERROR(VLOOKUP($D972,Справочник!$B:$C,2,FALSE),\"\")","v":""},null,{"$f":"IFERROR(VLOOKUP(F972,Справочник!B:C,2,FALSE),\"\")","v":""}]
[null,null,null,null,{"$f":"IFERROR(VLOOKUP($D973,Справочник!$B:$C,2,FALSE),\"\")","v":""},null,{"$f":"IFERROR(VLOOKUP(F973,Справочник!B:C,2,FALSE),\"\")","v":""}]
[null,null,null,null,{"$f":"IFERROR(VLOOKUP($D974,Справочник!$B:$C,2,FALSE),\"\")","v":""},null,{"$f":"IFERROR(VLOOKUP(F974,Справочник!B:C,2,FALSE),\"\")","v":""}]
[null,null,null,null,{"$f":"IFERROR(VLOOKUP($D975,Справочник!$B:$C,2,FALSE),\"\")","v":""},null,{"$f":"IFERROR(VLOOKUP(F975,Справочник!B:C,2,FALSE),\"\")","v":""}]
[null,null,null,null,{"$f":"IFERROR(VLOOKUP($D976,Справочник!$B:$C,2,FALSE),\"\")","v":""},null,{"$f":"IFERROR(VLOOKUP(F976,Справочник!B:C,2,FALSE),\"\")","v":""}]
[null,null,null,null,{"$f":"IFERROR(VLOOKUP($D977,Справочник!$B:$C,2,FALSE),\"\")","v":""},null,{"$f":"IFERROR(VLOOKUP(F977,Справочник!B:C,2,FALSE),\"\")","v":""}]
[null,null,null,null,{"$f":"IFERROR(VLOOKUP($D978,Справочник!$B:$C,2,FALSE),\"\")","v":""},null,{"$f":"IFERROR(VLOOKUP(F978,Справочник!B:C,2,FALSE),\"\")","v":""}]
[null,null,null,null,{"$f":"IFERROR(VLOOKUP($D979,Справочник!$B:$C,2,FALSE),\"\")","v":""},null,{"$f":"IFERROR(VLOOKUP(F979,Справочник!B:C,2,FALSE),\"\")","v":""}]
[null,null,null,null,{"$f":"IFERROR(VLOOKUP($D980,Справочник!$B:$C,2,FALSE),\"\")","v":""},null,{"$f":"IFERROR(VLOOKUP(F980,Справочник!B:C,2,FALSE),\"\")","v":""}]
[null,null,null,null,{"$f":"IFERROR(VLOOKUP($D981,Справочник!$B:$C,2,FALSE),\"\")","v":""},null,{"$f":"IFERROR(VLOOKUP(F981,Справочник!B:C,2,FALSE),\"\")","v":""}]
[null,null,null,null,{"$f":"IFERROR(VLOOKUP($D982,Справочник!$B:$C,2,FALSE),\"\")","v":""},null,{"$f":"IFERROR(VLOOKUP(F982,Справочник!B:C,2,FALSE),\"\")","v":""}]
[null,null,null,null,{"$f":"IFERROR(VLOOKUP($D983,Справочник!$B:$C,2,FALSE),\"\")","v":""},null,{"$f":"IFERROR(VLOOKUP(F983,Справочник!B:C,2,FALSE),\"\")","v":""}]
[null,null,null,null,{"$f":"IFERROR(VLOOKUP($D984,Справочник!$B:$C,2,FALSE),\"\")","v":""},null,{"$f":"IFERROR(VLOOKUP(F984,Справочник!B:C,2,FALSE),\"\")","v":""}]
[null,null,null,null,{"$f":"IFERROR(VLOOKUP($D985,Справочник!$B:$C,2,FALSE),\"\")","v":""},null,{"$f":"IFERROR(VLOOKUP(F985,Справочник!B:C,2,FALSE),\"\")","v":""}]
[null,null,null,null,{"$f":"IFERROR(VLOOKUP($D986,Справочник!$B:$C,2,FALSE),\"\")","v":""},null,{"$f":"IFERROR(VLOOKUP(F986,Справочник!B:C,2,FALSE),\"\")","v":""}]
[null,null,null,null,{"$f":"IFERROR(VLOOKUP($D987,Справочник!$B:$C,2,FALSE),\"\")","v":""},null,{"$f":"IFERROR(VLOOKUP(F987,Справочник!B:C,2,FALSE),\"\")","v":""}]
[null,null,null,null,{"$f":"IFERROR(VLOOKUP($D988,Справочник!$B:$C,2,FALSE),\"\")","v":""},null,{"$f":"IFERROR(VLOOKUP(F988,Справочник!B:C,2,FALSE),\"\")","v":""}]
[null,null,null,null,{"$f":"IFERROR(VLOOKUP($D989,Справочник!$B:$C,2,FALSE),\"\")","v":""},null,{"$f":"IFERROR(VLOOKUP(F989,Справочник!B:C,2,FALSE),\"\")","v":""}]
[null,null,null,null,{"$f":"IFERROR(VLOOKUP($D990,Справочник!$B:$C,2,FALSE),\"\")","v":""},null,{"$f":"IFERROR(VLOOKUP(F990,Справочник!B:C,2,FALSE),\"\")","v":""}]
[null,null,null,null,{"$f":"IFERROR(VLOOKUP($D991,Справочник!$B:$C,2,FALSE),\"\")","v":""},null,{"$f":"IFERROR(VLOOKUP(F991,Справочник!B:C,2,FALSE),\"\")","v":""}]
[null,null,null,null,{"$f":"IFERROR(VLOOKUP($D992,Справочник!$B:$C,2,FALSE),\"\")","v":""},null,{"$f":"IFERROR(VLOOKUP(F992,Справочник!B:C,2,FALSE),\"\")","v":""}]
[null,null,null,null,{"$f":"IFERROR(VLOOKUP($D993,Справочник!$B:$C,2,FALSE),\"\")","v":""},null,{"$f":"IFERROR(VLOOKUP(F993,Справочник!B:C,2,FALSE),\"\")","v":""}]
[null,null,null,null,{"$f":"IFERROR(VLOOKUP($D994,Справочник!$B:$C,2,FALSE),\"\")","v":""},null,{"$f":"IFERROR(VLOOKUP(F994,Справочник!B:C,2,FALSE),\"\")","v":""}]
[null,null,null,null,{"$f":"IFERROR(VLOOKUP($D995,Справочник!$B:$C,2,FALSE),\"\")","v":""},null,{"$f":"IFERROR(VLOOKUP(F995,Справочник!B:C,2,FALSE),\"\")","v":""}]
[null,null,null,null,{"$f":"IFERROR(VLOOKUP($D996,Справочник!$B:$C,2,FALSE),\"\")","v":""},null,{"$f":"IFERROR(VLOOKUP(F996,Справочник!B:C,2,FALSE),\"\")","v":""}]
[null,null,null,null,{"$f":"IFERROR(VLOOKUP($D997,Справочник!$B:$C,2,FALSE),\"\")","v":""},null,{"$f":"IFERROR(VLOOKUP(F997,Справочник!B:C,2,FALSE),\"\")","v":""}]
[null,null,null,null,{"$f":"IFERROR(VLOOKUP($D998,Справочник!$B:$C,2,FALSE),\"\")","v":""},null,{"$f":"IFERROR(VLOOKUP(F998,Справочник!B:C,2,FALSE),\"\")","v":""}]
[null,null,null,null,{"$f":"IFERROR(VLOOKUP($D999,Справочник!$B:$C,2,FALSE),\"\")","v":""},null,{"$f":"IFERROR(VLOOKUP(F999,Справочник!B:C,2,FALSE),\"\")","v":""}]
[null,null,null,null,{"$f":"IFERROR(VLOOKUP($D1000,Справочник!$B:$C,2,FALSE),\"\")","v":""},null,{"$f":"IFERROR(VLOOKUP(F1000,Справочник!B:C,2,FALSE),\"\")","v":""}]
[null,null,null,null,{"$f":"IFERROR(VLOOKUP($D1001,Справочник!$B:$C,2,FALSE),\"\")","v":""},null,{"$f":"IFERROR(VLOOKUP(F1001,Справочник!B:C,2,FALSE),\"\")","v":""}]
[null,null,null,null,{"$f":"IFERROR(VLOOKUP($D1002,Справочник!$B:$C,2,FALSE),\"\")","v":""},null,{"$f":"IFERROR(VLOOKUP(F1002,Справочник!B:C,2,FALSE),\"\")","v":""}]
[null,null,null,null,{"$f":"IFERROR(VLOOKUP($D1003,Справочник!$B:$C,2,FALSE),\"\")","v":""},null,{"$f":"IFERROR(VLOOKUP(F1003,Справочник!B:C,2,FALSE),\"\")","v":""}]
[null,null,null,null,{"$f":"IFERROR(VLOOKUP($D1004,Справочник!$B:$C,2,FALSE),\"\")","v":""},null,{"$f":"IFERROR(VLOOKUP(F1004,Справочник!B:C,2,FALSE),\"\")","v":""}]
[null,null,null,null,{"$f":"IFERROR(VLOOKUP($D1005,Справочник!$B:$C,2,FALSE),\"\")","v":""},null,{"$f":"IFERROR(VLOOKUP(F1005,Справочник!B:C,2,FALSE),\"\")","v":""}]
[null,null,null,null,{"$f":"IFERROR(VLOOKUP($D1006,Справочник!$B:$C,2,FALSE),\"\")","v":""},null,{"$f":"IFERROR(VLOOKUP(F1006,Справочник!B:C,2,FALSE),\"\")","v":""}]
[null,null,null,null,{"$f":"IFERROR(VLOOKUP($D1007,Справочник!$B:$C,2,FALSE),\"\")","v":""},null,{"$f":"IFERROR(VLOOKUP(F1007,Справочник!B:C,2,FALSE),\"\")","v":""}]
[null,null,null,null,{"$f":"IFERROR(VLOOKUP($D1008,Справочник!$B:$C,2,FALSE),\"\")","v":""},null,{"$f":"IFERROR(VLOOKUP(F1008,Справочник!B:C,2,FALSE),\"\")","v":""}]
[null,null,null,null,{"$f":"IFERROR(VLOOKUP($D1009,Справочник!$B:$C,2,FALSE),\"\")","v":""},null,{"$f":"IFERROR(VLOOKUP(F1009,Справочник!B:C,2,FALSE),\"\")","v":""}]
[null,null,null,null,{"$f":"IFERROR(VLOOKUP($D1010,Справочник!$B:$C,2,FALSE),\"\")","v":""},null,{"$f":"IFERROR(VLOOKUP(F1010,Справочник!B:C,2,FALSE),\"\")","v":""}]
[null,null,null,null,{"$f":"IFERROR(VLOOKUP($D1011,Справочник!$B:$C,2,FALSE),\"\")","v":""},null,{"$f":"IFERROR(VLOOKUP(F1011,Справочник!B:C,2,FALSE),\"\")","v":""}]
[null,null,null,null,{"$f":"IFERROR(VLOOKUP($D1012,Справочник!$B:$C,2,FALSE),\"\")","v":""},null,{"$f":"IFERROR(VLOOKUP(F1012,Справочник!B:C,2,FALSE),\"\")","v":""}]
[null,null,null,null,{"$f":"IFERROR(VLOOKUP($D1013,Справочник!$B:$C,2,FALSE),\"\")","v":""},null,{"$f":"IFERROR(VLOOKUP(F1013,Справочник!B:C,2,FALSE),\"\")","v":""}]
[null,null,null,null,{"$f":"IFERROR(VLOOKUP($D1014,Справочник!$B:$C,2,FALSE),\"\")","v":""},null,{"$f":"IFERROR(VLOOKUP(F1014,Справочник!B:C,2,FALSE),\"\")","v":""}]
[null,null,null,null,{"$f":"IFERROR(VLOOKUP($D1015,Справочник!$B:$C,2,FALSE),\"\")","v":""},null,{"$f":"IFERROR(VLOOKUP(F1015,Справочник!B:C,2,FALSE),\"\")","v":""}]
[null,null,null,null,{"$f":"IFERROR(VLOOKUP($D1016,Справочник!$B:$C,2,FALSE),\"\")","v":""},null,{"$f":"IFERROR(VLOOKUP(F1016,Справочник!B:C,2,FALSE),\"\")","v":""}]
[null,null,null,null,{"$f":"IFERROR(VLOOKUP($D1017,Справочник!$B:$C,2,FALSE),\"\")","v":""},null,{"$f":"IFERROR(VLOOKUP(F1017,Справочник!B:C,2,FALSE),\"\")","v":""}]
[null,null,null,null,{"$f":"IFERROR(VLOOKUP($D1018,Справочник!$B:$C,2,FALSE),\"\")","v":""},null,{"$f":"IFERROR(VLOOKUP(F1018,Справочник!B:C,2,FALSE),\"\")","v":""}]
[null,null,null,null,{"$f":"IFERROR(VLOOKUP($D1019,Справочник!$B:$C,2,FALSE),\"\")","v":""},null,{"$f":"IFERROR(VLOOKUP(F1019,Справочник!B:C,2,FALSE),\"\")","v":""}]
[null,null,null,null,{"$f":"IFERROR(VLOOKUP($D1020,Справочник!$B:$C,2,FALSE),\"\")","v":""},null,{"$f":"IFERROR(VLOOKUP(F1020,Справочник!B:C,2,FALSE),\"\")","v":""}]
[null,null,null,null,{"$f":"IFERROR(VLOOKUP($D1021,Справочник!$B:$C,2,FALSE),\"\")","v":""},null,{"$f":"IFERROR(VLOOKUP(F1021,Справочник!B:C,2,FALSE),\"\")","v":""}]
[null,null,null,null,{"$f":"IFERROR(VLOOKUP($D1022,Справочник!$B:$C,2,FALSE),\"\")","v":""},null,{"$f":"IFERROR(VLOOKUP(F1022,Справочник!B:C,2,FALSE),\"\")","v":""}]
[null,null,null,null,{"$f":"IFERROR(VLOOKUP($D1023,Справочник!$B:$C,2,FALSE),\"\")","v":""},null,{"$f":"IFERROR(VLOOKUP(F1023,Справочник!B:C,2,FALSE),\"\")","v":""}]
[null,null,null,null,{"$f":"IFERROR(VLOOKUP($D1024,Справочник!$B:$C,2,FALSE),\"\")","v":""},null,{"$f":"IFERROR(VLOOKUP(F1024,Справочник!B:C,2,FALSE),\"\")","v":""}]
[null,null,null,null,{"$f":"IFERROR(VLOOKUP($D1025,Справочник!$B:$C,2,FALSE),\"\")","v":""},null,{"$f":"IFERROR(VLOOKUP(F1025,Справочник!B:C,2,FALSE),\"\")","v":""}]
[null,null,null,null,{"$f":"IFERROR(VLOOKUP($D1026,Справочник!$B:$C,2,FALSE),\"\")","v":""},null,{"$f":"IFERROR(VLOOKUP(F1026,Справочник!B:C,2,FALSE),\"\")","v":""}]
[null,null,null,null,{"$f":"IFERROR(VLOOKUP($D1027,Справочник!$B:$C,2,FALSE),\"\")","v":""},null,{"$f":"IFERROR(VLOOKUP(F1027,Справочник!B:C,2,FALSE),\"\")","v":""}]
[null,null,null,null,{"$f":"IFERROR(VLOOKUP($D1028,Справочник!$B:$C,2,FALSE),\"\")","v":""},null,{"$f":"IFERROR(VLOOKUP(F1028,Справочник!B:C,2,FALSE),\"\")","v":""}]
[null,null,null,null,{"$f":"IFERROR(VLOOKUP($D1029,Справочник!$B:$C,2,FALSE),\"\")","v":""},null,{"$f":"IFERROR(VLOOKUP(F1029,Справочник!B:C,2,FALSE),\"\")","v":""}]
[null,null,null,null,{"$f":"IFERROR(VLOOKUP($D1030,Справочник!$B:$C,2,FALSE),\"\")","v":""},null,{"$f":"IFERROR(VLOOKUP(F1030,Справочник!B:C,2,FALSE),\"\")","v":""}]
[null,null,null,null,{"$f":"IFERROR(VLOOKUP($D1031,Справочник!$B:$C,2,FALSE),\"\")","v":""},null,{"$f":"IFERROR(VLOOKUP(F1031,Справочник!B:C,2,FALSE),\"\")","v":""}]
[null,null,null,null,{"$f":"IFERROR(VLOOKUP($D1032,Справочник!$B:$C,2,FALSE),\"\")","v":""},null,{"$f":"IFERROR(VLOOKUP(F1032,Справочник!B:C,2,FALSE),\"\")","v":""}]
[null,null,null,null,{"$f":"IFERROR(VLOOKUP($D1033,Справочник!$B:$C,2,FALSE),\"\")","v":""},null,{"$f":"IFERROR(VLOOKUP(F1033,Справочник!B:C,2,FALSE),\"\")","v":""}]
[null,null,null,null,{"$f":"IFERROR(VLOOKUP($D1034,Справочник!$B:$C,2,FALSE),\"\")","v":""},null,{"$f":"IFERROR(VLOOKUP(F1034,Справочник!B:C,2,FALSE),\"\")","v":""}]
[null,null,null,null,{"$f":"IFERROR(VLOOKUP($D1035,Справочник!$B:$C,2,FALSE),\"\")","v":""},null,{"$f":"IFERROR(VLOOKUP(F1035,Справочник!B:C,2,FALSE),\"\")","v":""}]
[null,null,null,null,{"$f":"IFERROR(VLOOKUP($D1036,Справочник!$B:$C,2,FALSE),\"\")","v":""},null,{"$f":"IFERROR(VLOOKUP(F1036,Справочник!B:C,2,FALSE),\"\")","v":""}]
[null,null,null,null,{"$f":"IFERROR(VLOOKUP($D1037,Справочник!$B:$C,2,FALSE),\"\")","v":""},null,{"$f":"IFERROR(VLOOKUP(F1037,Справочник!B:C,2,FALSE),\"\")","v":""}]
[null,null,null,null,{"$f":"IFERROR(VLOOKUP($D1038,Справочник!$B:$C,2,FALSE),\"\")","v":""},null,{"$f":"IFERROR(VLOOKUP(F1038,Справочник!B:C,2,FALSE),\"\")","v":""}]
[null,null,null,null,{"$f":"IFERROR(VLOOKUP($D1039,Справочник!$B:$C,2,FALSE),\"\")","v":""},null,{"$f":"IFERROR(VLOOKUP(F1039,Справочник!B:C,2,FALSE),\"\")","v":""}]
[null,null,null,null,{"$f":"IFERROR(VLOOKUP($D1040,Справочник!$B:$C,2,FALSE),\"\")","v":""},null,{"$f":"IFERROR(VLOOKUP(F1040,Справочник!B:C,2,FALSE),\"\")","v":""}]
[null,null,null,null,{"$f":"IFERROR(VLOOKUP($D1041,Справочник!$B:$C,2,FALSE),\"\")","v":""},null,{"$f":"IFERROR(VLOOKUP(F1041,Справочник!B:C,2,FALSE),\"\")","v":""}]
[null,null,null,null,{"$f":"IFERROR(VLOOKUP($D1042,Справочник!$B:$C,2,FALSE),\"\")","v":""},null,{"$f":"IFERROR(VLOOKUP(F1042,Справочник!B:C,2,FALSE),\"\")","v":""}]
[null,null,null,null,{"$f":"IFERROR(VLOOKUP($D1043,Справочник!$B:$C,2,FALSE),\"\")","v":""},null,{"$f":"IFERROR(VLOOKUP(F1043,Справочник!B:C,2,FALSE),\"\")","v":""}]
[null,null,null,null,{"$f":"IFERROR(VLOOKUP($D1044,Справочник!$B:$C,2,FALSE),\"\")","v":""},null,{"$f":"IFERROR(VLOOKUP(F1044,Справочник!B:C,2,FALSE),\"\")","v":""}]
[null,null,null,null,{"$f":"IFERROR(VLOOKUP($D1045,Справочник!$B:$C,2,FALSE),\"\")","v":""},null,{"$f":"IFERROR(VLOOKUP(F1045,Справочник!B:C,2,FALSE),\"\")","v":""}]
[null,null,null,null,{"$f":"IFERROR(VLOOKUP($D1046,Справочник!$B:$C,2,FALSE),\"\")","v":""},null,{"$f":"IFERROR(VLOOKUP(F1046,Справочник!B:C,2,FALSE),\"\")","v":""}]
[null,null,null,null,{"$f":"IFERROR(VLOOKUP($D1047,Справочник!$B:$C,2,FALSE),\"\")","v":""},null,{"$f":"IFERROR(VLOOKUP(F1047,Справочник!B:C,2,FALSE),\"\")","v":""}]
[null,null,null,null,{"$f":"IFERROR(VLOOKUP($D1048,Справочник!$B:$C,2,FALSE),\"\")","v":""},null,{"$f":"IFERROR(VLOOKUP(F1048,Справочник!B:C,2,FALSE),\"\")","v":""}]
[null,null,null,null,{"$f":"IFERROR(VLOOKUP($D1049,Справочник!$B:$C,2,FALSE),\"\")","v":""},null,{"$f":"IFERROR(VLOOKUP(F1049,Справочник!B:C,2,FALSE),\"\")","v":""}]
[null,null,null,null,{"$f":"IFERROR(VLOOKUP($D1050,Справочник!$B:$C,2,FALSE),\"\")","v":""},null,{"$f":"IFERROR(VLOOKUP(F1050,Справочник!B:C,2,FALSE),\"\")","v":""}]
[null,null,null,null,{"$f":"IFERROR(VLOOKUP($D1051,Справочник!$B:$C,2,FALSE),\"\")","v":""},null,{"$f":"IFERROR(VLOOKUP(F1051,Справочник!B:C,2,FALSE),\"\")","v":""}]
[null,null,null,null,{"$f":"IFERROR(VLOOKUP($D1052,Справочник!$B:$C,2,FALSE),\"\")","v":""},null,{"$f":"IFERROR(VLOOKUP(F1052,Справочник!B:C,2,FALSE),\"\")","v":""}]
[null,null,null,null,{"$f":"IFERROR(VLOOKUP($D1053,Справочник!$B:$C,2,FALSE),\"\")","v":""},null,{"$f":"IFERROR(VLOOKUP(F1053,Справочник!B:C,2,FALSE),\"\")","v":""}]
[null,null,null,null,{"$f":"IFERROR(VLOOKUP($D1054,Справочник!$B:$C,2,FALSE),\"\")","v":""},null,{"$f":"IFERROR(VLOOKUP(F1054,Справочник!B:C,2,FALSE),\"\")","v":""}]
[null,null,null,null,{"$f":"IFERROR(VLOOKUP($D1055,Справочник!$B:$C,2,FALSE),\"\")","v":""},null,{"$f":"IFERROR(VLOOKUP(F1055,Справочник!B:C,2,FALSE),\"\")","v":""}]
[null,null,null,null,{"$f":"IFERROR(VLOOKUP($D1056,Справочник!$B:$C,2,FALSE),\"\")","v":""},null,{"$f":"IFERROR(VLOOKUP(F1056,Справочник!B:C,2,FALSE),\"\")","v":""}]
[null,null,null,null,{"$f":"IFERROR(VLOOKUP($D1057,Справочник!$B:$C,2,FALSE),\"\")","v":""},null,{"$f":"IFERROR(VLOOKUP(F1057,Справочник!B:C,2,FALSE),\"\")","v":""}]
[null,null,null,null,{"$f":"IFERROR(VLOOKUP($D1058,Справочник!$B:$C,2,FALSE),\"\")","v":""},null,{"$f":"IFERROR(VLOOKUP(F1058,Справочник!B:C,2,FALSE),\"\")","v":""}]
[null,null,null,null,{"$f":"IFERROR(VLOOKUP($D1059,Справочник!$B:$C,2,FALSE),\"\")","v":""},null,{"$f":"IFERROR(VLOOKUP(F1059,Справочник!B:C,2,FALSE),\"\")","v":""}]
[null,null,null,null,{"$f":"IFERROR(VLOOKUP($D1060,Справочник!$B:$C,2,FALSE),\"\")","v":""},null,{"$f":"IFERROR(VLOOKUP(F1060,Справочник!B:C,2,FALSE),\"\")","v":""}]
[null,null,null,null,{"$f":"IFERROR(VLOOKUP($D1061,Справочник!$B:$C,2,FALSE),\"\")","v":""},null,{"$f":"IFERROR(VLOOKUP(F1061,Справочник!B:C,2,FALSE),\"\")","v":""}]
[null,null,null,null,{"$f":"IFERROR(VLOOKUP($D1062,Справочник!$B:$C,2,FALSE),\"\")","v":""},null,{"$f":"IFERROR(VLOOKUP(F1062,Справочник!B:C,2,FALSE),\"\")","v":""}]
[null,null,null,null,{"$f":"IFERROR(VLOOKUP($D1063,Справочник!$B:$C,2,FALSE),\"\")","v":""},null,{"$f":"IFERROR(VLOOKUP(F1063,Справочник!B:C,2,FALSE),\"\")","v":""}]
[null,null,null,null,{"$f":"IFERROR(VLOOKUP($D1064,Справочник!$B:$C,2,FALSE),\"\")","v":""},null,{"$f":"IFERROR(VLOOKUP(F1064,Справочник!B:C,2,FALSE),\"\")","v":""}]
[null,null,null,null,{"$f":"IFERROR(VLOOKUP($D1065,Справочник!$B:$C,2,FALSE),\"\")","v":""},null,{"$f":"IFERROR(VLOOKUP(F1065,Справочник!B:C,2,FALSE),\"\")","v":""}]
[null,null,null,null,{"$f":"IFERROR(VLOOKUP($D1066,Справочник!$B:$C,2,FALSE),\"\")","v":""},null,{"$f":"IFERROR(VLOOKUP(F1066,Справочник!B:C,2,FALSE),\"\")","v":""}]
[null,null,null,null,{"$f":"IFERROR(VLOOKUP($D1067,Справочник!$B:$C,2,FALSE),\"\")","v":""},null,{"$f":"IFERROR(VLOOKUP(F1067,Справочник!B:C,2,FALSE),\"\")","v":""}]
[null,null,null,null,{"$f":"IFERROR(VLOOKUP($D1068,Справочник!$B:$C,2,FALSE),\"\")","v":""},null,{"$f":"IFERROR(VLOOKUP(F1068,Справочник!B:C,2,FALSE),\"\")","v":""}]
[null,null,null,null,{"$f":"IFERROR(VLOOKUP($D1069,Справочник!$B:$C,2,FALSE),\"\")","v":""},null,{"$f":"IFERROR(VLOOKUP(F1069,Справочник!B:C,2,FALSE),\"\")","v":""}]
[null,null,null,null,{"$f":"IFERROR(VLOOKUP($D1070,Справочник!$B:$C,2,FALSE),\"\")","v":""},null,{"$f":"IFERROR(VLOOKUP(F1070,Справочник!B:C,2,FALSE),\"\")","v":""}]
[null,null,null,null,{"$f":"IFERROR(VLOOKUP($D1071,Справочник!$B:$C,2,FALSE),\"\")","v":""},null,{"$f":"IFERROR(VLOOKUP(F1071,Справочник!B:C,2,FALSE),\"\")","v":""}]
[null,null,null,null,{"$f":"IFERROR(VLOOKUP($D1072,Справочник!$B:$C,2,FALSE),\"\")","v":""},null,{"$f":"IFERROR(VLOOKUP(F1072,Справочник!B:C,2,FALSE),\"\")","v":""}]
[null,null,null,null,{"$f":"IFERROR(VLOOKUP($D1073,Справочник!$B:$C,2,FALSE),\"\")","v":""},null,{"$f":"IFERROR(VLOOKUP(F1073,Справочник!B:C,2,FALSE),\"\")","v":""}]
[null,null,null,null,{"$f":"IFERROR(VLOOKUP($D1074,Справочник!$B:$C,2,FALSE),\"\")","v":""},null,{"$f":"IFERROR(VLOOKUP(F1074,Справочник!B:C,2,FALSE),\"\")","v":""}]
[null,null,null,null,{"$f":"IFERROR(VLOOKUP($D1075,Справочник!$B:$C,2,FALSE),\"\")","v":""},null,{"$f":"IFERROR(VLOOKUP(F1075,Справочник!B:C,2,FALSE),\"\")","v":""}]
[null,null,null,null,{"$f":"IFERROR(VLOOKUP($D1076,Справочник!$B:$C,2,FALSE),\"\")","v":""},null,{"$f":"IFERROR(VLOOKUP(F1076,Справочник!B:C,2,FALSE),\"\")","v":""}]
[null,null,null,null,{"$f":"IFERROR(VLOOKUP($D1077,Справочник!$B:$C,2,FALSE),\"\")","v":""},null,{"$f":"IFERROR(VLOOKUP(F1077,Справочник!B:C,2,FALSE),\"\")","v":""}]
[null,null,null,null,{"$f":"IFERROR(VLOOKUP($D1078,Справочник!$B:$C,2,FALSE),\"\")","v":""},null,{"$f":"IFERROR(VLOOKUP(F1078,Справочник!B:C,2,FALSE),\"\")","v":""}]
[null,null,null,null,{"$f":"IFERROR(VLOOKUP($D1079,Справочник!$B:$C,2,FALSE),\"\")","v":""},null,{"$f":"IFERROR(VLOOKUP(F1079,Справочник!B:C,2,FALSE),\"\")","v":""}]
[null,null,null,null,{"$f":"IFERROR(VLOOKUP($D1080,Справочник!$B:$C,2,FALSE),\"\")","v":""},null,{"$f":"IFERROR(VLOOKUP(F1080,Справочник!B:C,2,FALSE),\"\")","v":""}]
[null,null,null,null,{"$f":"IFERROR(VLOOKUP($D1081,Справочник!$B:$C,2,FALSE),\"\")","v":""},null,{"$f":"IFERROR(VLOOKUP(F1081,Справочник!B:C,2,FALSE),\"\")","v":""}]
[null,null,null,null,{"$f":"IFERROR(VLOOKUP($D1082,Справочник!$B:$C,2,FALSE),\"\")","v":""},null,{"$f":"IFERROR(VLOOKUP(F1082,Справочник!B:C,2,FALSE),\"\")","v":""}]
[null,null,null,null,{"$f":"IFERROR(VLOOKUP($D1083,Справочник!$B:$C,2,FALSE),\"\")","v":""},null,{"$f":"IFERROR(VLOOKUP(F1083,Справочник!B:C,2,FALSE),\"\")","v":""}]
[null,null,null,null,{"$f":"IFERROR(VLOOKUP($D1084,Справочник!$B:$C,2,FALSE),\"\")","v":""},null,{"$f":"IFERROR(VLOOKUP(F1084,Справочник!B:C,2,FALSE),\"\")","v":""}]
[null,null,null,null,{"$f":"IFERROR(VLOOKUP($D1085,Справочник!$B:$C,2,FALSE),\"\")","v":""},null,{"$f":"IFERROR(VLOOKUP(F1085,Справочник!B:C,2,FALSE),\"\")","v":""}]
[null,null,null,null,{"$f":"IFERROR(VLOOKUP($D1086,Справочник!$B:$C,2,FALSE),\"\")","v":""},null,{"$f":"IFERROR(VLOOKUP(F1086,Справочник!B:C,2,FALSE),\"\")","v":""}]
[null,null,null,null,{"$f":"IFERROR(VLOOKUP($D1087,Справочник!$B:$C,2,FALSE),\"\")","v":""},null,{"$f":"IFERROR(VLOOKUP(F1087,Справочник!B:C,2,FALSE),\"\")","v":""}]
[null,null,null,null,{"$f":"IFERROR(VLOOKUP($D1088,Справочник!$B:$C,2,FALSE),\"\")","v":""},null,{"$f":"IFERROR(VLOOKUP(F1088,Справочник!B:C,2,FALSE),\"\")","v":""}]
[null,null,null,null,{"$f":"IFERROR(VLOOKUP($D1089,Справочник!$B:$C,2,FALSE),\"\")","v":""},null,{"$f":"IFERROR(VLOOKUP(F1089,Справочник!B:C,2,FALSE),\"\")","v":""}]
[null,null,null,null,{"$f":"IFERROR(VLOOKUP($D1090,Справочник!$B:$C,2,FALSE),\"\")","v":""},null,{"$f":"IFERROR(VLOOKUP(F1090,Справочник!B:C,2,FALSE),\"\")","v":""}]
[null,null,null,null,{"$f":"IFERROR(VLOOKUP($D1091,Справочник!$B:$C,2,FALSE),\"\")","v":""},null,{"$f":"IFERROR(VLOOKUP(F1091,Справочник!B:C,2,FALSE),\"\")","v":""}]
[null,null,null,null,{"$f":"IFERROR(VLOOKUP($D1092,Справочник!$B:$C,2,FALSE),\"\")","v":""},null,{"$f":"IFERROR(VLOOKUP(F1092,Справочник!B:C,2,FALSE),\"\")","v":""}]
[null,null,null,null,{"$f":"IFERROR(VLOOKUP($D1093,Справочник!$B:$C,2,FALSE),\"\")","v":""},null,{"$f":"IFERROR(VLOOKUP(F1093,Справочник!B:C,2,FALSE),\"\")","v":""}]
[null,null,null,null,{"$f":"IFERROR(VLOOKUP($D1094,Справочник!$B:$C,2,FALSE),\"\")","v":""},null,{"$f":"IFERROR(VLOOKUP(F1094,Справочник!B:C,2,FALSE),\"\")","v":""}]
[null,null,null,null,{"$f":"IFERROR(VLOOKUP($D1095,Справочник!$B:$C,2,FALSE),\"\")","v":""},null,{"$f":"IFERROR(VLOOKUP(F1095,Справочник!B:C,2,FALSE),\"\")","v":""}]
[null,null,null,null,{"$f":"IFERROR(VLOOKUP($D1096,Справочник!$B:$C,2,FALSE),\"\")","v":""},null,{"$f":"IFERROR(VLOOKUP(F1096,Справочник!B:C,2,FALSE),\"\")","v":""}]
[null,null,null,null,{"$f":"IFERROR(VLOOKUP($D1097,Справочник!$B:$C,2,FALSE),\"\")","v":""},null,{"$f":"IFERROR(VLOOKUP(F1097,Справочник!B:C,2,FALSE),\"\")","v":""}]
[null,null,null,null,{"$f":"IFERROR(VLOOKUP($D1098,Справочник!$B:$C,2,FALSE),\"\")","v":""},null,{"$f":"IFERROR(VLOOKUP(F1098,Справочник!B:C,2,FALSE),\"\")","v":""}]
[null,null,null,null,{"$f":"IFERROR(VLOOKUP($D1099,Справочник!$B:$C,2,FALSE),\"\")","v":""},null,{"$f":"IFERROR(VLOOKUP(F1099,Справочник!B:C,2,FALSE),\"\")","v":""}]
[null,null,null,null,{"$f":"IFERROR(VLOOKUP($D1100,Справочник!$B:$C,2,FALSE),\"\")","v":""},null,{"$f":"IFERROR(VLOOKUP(F1100,Справочник!B:C,2,FALSE),\"\")","v":""}]
[null,null,null,null,{"$f":"IFERROR(VLOOKUP($D1101,Справочник!$B:$C,2,FALSE),\"\")","v":""},null,{"$f":"IFERROR(VLOOKUP(F1101,Справочник!B:C,2,FALSE),\"\")","v":""}]
[null,null,null,null,{"$f":"IFERROR(VLOOKUP($D1102,Справочник!$B:$C,2,FALSE),\"\")","v":""},null,{"$f":"IFERROR(VLOOKUP(F1102,Справочник!B:C,2,FALSE),\"\")","v":""}]
[null,null,null,null,{"$f":"IFERROR(VLOOKUP($D1103,Справочник!$B:$C,2,FALSE),\"\")","v":""},null,{"$f":"IFERROR(VLOOKUP(F1103,Справочник!B:C,2,FALSE),\"\")","v":""}]
[null,null,null,null,{"$f":"IFERROR(VLOOKUP($D1104,Справочник!$B:$C,2,FALSE),\"\")","v":""},null,{"$f":"IFERROR(VLOOKUP(F1104,Справочник!B:C,2,FALSE),\"\")","v":""}]
[null,null,null,null,{"$f":"IFERROR(VLOOKUP($D1105,Справочник!$B:$C,2,FALSE),\"\")","v":""},null,{"$f":"IFERROR(VLOOKUP(F1105,Справочник!B:C,2,FALSE),\"\")","v":""}]
[null,null,null,null,{"$f":"IFERROR(VLOOKUP($D1106,Справочник!$B:$C,2,FALSE),\"\")","v":""},null,{"$f":"IFERROR(VLOOKUP(F1106,Справочник!B:C,2,FALSE),\"\")","v":""}]
[null,null,null,null,{"$f":"IFERROR(VLOOKUP($D1107,Справочник!$B:$C,2,FALSE),\"\")","v":""},null,{"$f":"IFERROR(VLOOKUP(F1107,Справочник!B:C,2,FALSE),\"\")","v":""}]
[null,null,null,null,{"$f":"IFERROR(VLOOKUP($D1108,Справочник!$B:$C,2,FALSE),\"\")","v":""},null,{"$f":"IFERROR(VLOOKUP(F1108,Справочник!B:C,2,FALSE),\"\")","v":""}]
[null,null,null,null,{"$f":"IFERROR(VLOOKUP($D1109,Справочник!$B:$C,2,FALSE),\"\")","v":""},null,{"$f":"IFERROR(VLOOKUP(F1109,Справочник!B:C,2,FALSE),\"\")","v":""}]
[null,null,null,null,{"$f":"IFERROR(VLOOKUP($D1110,Справочник!$B:$C,2,FALSE),\"\")","v":""},null,{"$f":"IFERROR(VLOOKUP(F1110,Справочник!B:C,2,FALSE),\"\")","v":""}]
[null,null,null,null,{"$f":"IFERROR(VLOOKUP($D1111,Справочник!$B:$C,2,FALSE),\"\")","v":""},null,{"$f":"IFERROR(VLOOKUP(F1111,Справочник!B:C,2,FALSE),\"\")","v":""}]
[null,null,null,null,{"$f":"IFERROR(VLOOKUP($D1112,Справочник!$B:$C,2,FALSE),\"\")","v":""},null,{"$f":"IFERROR(VLOOKUP(F1112,Справочник!B:C,2,FALSE),\"\")","v":""}]
[null,null,null,null,{"$f":"IFERROR(VLOOKUP($D1113,Справочник!$B:$C,2,FALSE),\"\")","v":""},null,{"$f":"IFERROR(VLOOKUP(F1113,Справочник!B:C,2,FALSE),\"\")","v":""}]
[null,null,null,null,{"$f":"IFERROR(VLOOKUP($D1114,Справочник!$B:$C,2,FALSE),\"\")","v":""},null,{"$f":"IFERROR(VLOOKUP(F1114,Справочник!B:C,2,FALSE),\"\")","v":""}]
[null,null,null,null,{"$f":"IFERROR(VLOOKUP($D1115,Справочник!$B:$C,2,FALSE),\"\")","v":""},null,{"$f":"IFERROR(VLOOKUP(F1115,Справочник!B:C,2,FALSE),\"\")","v":""}]
[null,null,null,null,{"$f":"IFERROR(VLOOKUP($D1116,Справочник!$B:$C,2,FALSE),\"\")","v":""},null,{"$f":"IFERROR(VLOOKUP(F1116,Справочник!B:C,2,FALSE),\"\")","v":""}]
[null,null,null,null,{"$f":"IFERROR(VLOOKUP($D1117,Справочник!$B:$C,2,FALSE),\"\")","v":""},null,{"$f":"IFERROR(VLOOKUP(F1117,Справочник!B:C,2,FALSE),\"\")","v":""}]
[null,null,null,null,{"$f":"IFERROR(VLOOKUP($D1118,Справочник!$B:$C,2,FALSE),\"\")","v":""},null,{"$f":"IFERROR(VLOOKUP(F1118,Справочник!B:C,2,FALSE),\"\")","v":""}]
[null,null,null,null,{"$f":"IFERROR(VLOOKUP($D1119,Справочник!$B:$C,2,FALSE),\"\")","v":""},null,{"$f":"IFERROR(VLOOKUP(F1119,Справочник!B:C,2,FALSE),\"\")","v":""}]
[null,null,null,null,{"$f":"IFERROR(VLOOKUP($D1120,Справочник!$B:$C,2,FALSE),\"\")","v":""},null,{"$f":"IFERROR(VLOOKUP(F1120,Справочник!B:C,2,FALSE),\"\")","v":""}]
[null,null,null,null,{"$f":"IFERROR(VLOOKUP($D1121,Справочник!$B:$C,2,FALSE),\"\")","v":""},null,{"$f":"IFERROR(VLOOKUP(F1121,Справочник!B:C,2,FALSE),\"\")","v":""}]
[null,null,null,null,{"$f":"IFERROR(VLOOKUP($D1122,Справочник!$B:$C,2,FALSE),\"\")","v":""},null,{"$f":"IFERROR(VLOOKUP(F1122,Справочник!B:C,2,FALSE),\"\")","v":""}]
[null,null,null,null,{"$f":"IFERROR(VLOOKUP($D1123,Справочник!$B:$C,2,FALSE),\"\")","v":""},null,{"$f":"IFERROR(VLOOKUP(F1123,Справочник!B:C,2,FALSE),\"\")","v":""}]
[null,null,null,null,{"$f":"IFERROR(VLOOKUP($D1124,Справочник!$B:$C,2,FALSE),\"\")","v":""},null,{"$f":"IFERROR(VLOOKUP(F1124,Справочник!B:C,2,FALSE),\"\")","v":""}]
[null,null,null,null,{"$f":"IFERROR(VLOOKUP($D1125,Справочник!$B:$C,2,FALSE),\"\")","v":""},null,{"$f":"IFERROR(VLOOKUP(F1125,Справочник!B:C,2,FALSE),\"\")","v":""}]
[null,null,null,null,{"$f":"IFERROR(VLOOKUP($D1126,Справочник!$B:$C,2,FALSE),\"\")","v":""},null,{"$f":"IFERROR(VLOOKUP(F1126,Справочник!B:C,2,FALSE),\"\")","v":""}]
[null,null,null,null,{"$f":"IFERROR(VLOOKUP($D1127,Справочник!$B:$C,2,FALSE),\"\")","v":""},null,{"$f":"IFERROR(VLOOKUP(F1127,Справочник!B:C,2,FALSE),\"\")","v":""}]
[null,null,null,null,{"$f":"IFERROR(VLOOKUP($D1128,Справочник!$B:$C,2,FALSE),\"\")","v":""},null,{"$f":"IFERROR(VLOOKUP(F1128,Справочник!B:C,2,FALSE),\"\")","v":""}]
[null,null,null,null,{"$f":"IFERROR(VLOOKUP($D1129,Справочник!$B:$C,2,FALSE),\"\")","v":""},null,{"$f":"IFERROR(VLOOKUP(F1129,Справочник!B:C,2,FALSE),\"\")","v":""}]
[null,null,null,null,{"$f":"IFERROR(VLOOKUP($D1130,Справочник!$B:$C,2,FALSE),\"\")","v":""},null,{"$f":"IFERROR(VLOOKUP(F1130,Справочник!B:C,2,FALSE),\"\")","v":""}]
[null,null,null,null,{"$f":"IFERROR(VLOOKUP($D1131,Справочник!$B:$C,2,FALSE),\"\")","v":""},null,{"$f":"IFERROR(VLOOKUP(F1131,Справочник!B:C,2,FALSE),\"\")","v":""}]
[null,null,null,null,{"$f":"IFERROR(VLOOKUP($D1132,Справочник!$B:$C,2,FALSE),\"\")","v":""},null,{"$f":"IFERROR(VLOOKUP(F1132,Справочник!B:C,2,FALSE),\"\")","v":""}]
[null,null,null,null,{"$f":"IFERROR(VLOOKUP($D1133,Справочник!$B:$C,2,FALSE),\"\")","v":""},null,{"$f":"IFERROR(VLOOKUP(F1133,Справочник!B:C,2,FALSE),\"\")","v":""}]
[null,null,null,null,{"$f":"IFERROR(VLOOKUP($D1134,Справочник!$B:$C,2,FALSE),\"\")","v":""},null,{"$f":"IFERROR(VLOOKUP(F1134,Справочник!B:C,2,FALSE),\"\")","v":""}]
[null,null,null,null,{"$f":"IFERROR(VLOOKUP($D1135,Справочник!$B:$C,2,FALSE),\"\")","v":""},null,{"$f":"IFERROR(VLOOKUP(F1135,Справочник!B:C,2,FALSE),\"\")","v":""}]
[null,null,null,null,{"$f":"IFERROR(VLOOKUP($D1136,Справочник!$B:$C,2,FALSE),\"\")","v":""},null,{"$f":"IFERROR(VLOOKUP(F1136,Справочник!B:C,2,FALSE),\"\")","v":""}]
[null,null,null,null,{"$f":"IFERROR(VLOOKUP($D1137,Справочник!$B:$C,2,FALSE),\"\")","v":""},null,{"$f":"IFERROR(VLOOKUP(F1137,Справочник!B:C,2,FALSE),\"\")","v":""}]
[null,null,null,null,{"$f":"IFERROR(VLOOKUP($D1138,Справочник!$B:$C,2,FALSE),\"\")","v":""},null,{"$f":"IFERROR(VLOOKUP(F1138,Справочник!B:C,2,FALSE),\"\")","v":""}]
[null,null,null,null,{"$f":"IFERROR(VLOOKUP($D1139,Справочник!$B:$C,2,FALSE),\"\")","v":""},null,{"$f":"IFERROR(VLOOKUP(F1139,Справочник!B:C,2,FALSE),\"\")","v":""}]
[null,null,null,null,{"$f":"IFERROR(VLOOKUP($D1140,Справочник!$B:$C,2,FALSE),\"\")","v":""},null,{"$f":"IFERROR(VLOOKUP(F1140,Справочник!B:C,2,FALSE),\"\")","v":""}]
[null,null,null,null,{"$f":"IFERROR(VLOOKUP($D1141,Справочник!$B:$C,2,FALSE),\"\")","v":""},null,{"$f":"IFERROR(VLOOKUP(F1141,Справочник!B:C,2,FALSE),\"\")","v":""}]
[null,null,null,null,{"$f":"IFERROR(VLOOKUP($D1142,Справочник!$B:$C,2,FALSE),\"\")","v":""},null,{"$f":"IFERROR(VLOOKUP(F1142,Справочник!B:C,2,FALSE),\"\")","v":""}]
[null,null,null,null,{"$f":"IFERROR(VLOOKUP($D1143,Справочник!$B:$C,2,FALSE),\"\")","v":""},null,{"$f":"IFERROR(VLOOKUP(F1143,Справочник!B:C,2,FALSE),\"\")","v":""}]
[null,null,null,null,{"$f":"IFERROR(VLOOKUP($D1144,Справочник!$B:$C,2,FALSE),\"\")","v":""},null,{"$f":"IFERROR(VLOOKUP(F1144,Справочник!B:C,2,FALSE),\"\")","v":""}]
[null,null,null,null,{"$f":"IFERROR(VLOOKUP($D1145,Справочник!$B:$C,2,FALSE),\"\")","v":""},null,{"$f":"IFERROR(VLOOKUP(F1145,Справочник!B:C,2,FALSE),\"\")","v":""}]
[null,null,null,null,{"$f":"IFERROR(VLOOKUP($D1146,Справочник!$B:$C,2,FALSE),\"\")","v":""},null,{"$f":"IFERROR(VLOOKUP(F1146,Справочник!B:C,2,FALSE),\"\")","v":""}]
[null,null,null,null,{"$f":"IFERROR(VLOOKUP($D1147,Справочник!$B:$C,2,FALSE),\"\")","v":""},null,{"$f":"IFERROR(VLOOKUP(F1147,Справочник!B:C,2,FALSE),\"\")","v":""}]
[null,null,null,null,{"$f":"IFERROR(VLOOKUP($D1148,Справочник!$B:$C,2,FALSE),\"\")","v":""},null,{"$f":"IFERROR(VLOOKUP(F1148,Справочник!B:C,2,FALSE),\"\")","v":""}]
[null,null,null,null,{"$f":"IFERROR(VLOOKUP($D1149,Справочник!$B:$C,2,FALSE),\"\")","v":""},null,{"$f":"IFERROR(VLOOKUP(F1149,Справочник!B:C,2,FALSE),\"\")","v":""}]
[null,null,null,null,{"$f":"IFERROR(VLOOKUP($D1150,Справочник!$B:$C,2,FALSE),\"\")","v":""},null,{"$f":"IFERROR(VLOOKUP(F1150,Справочник!B:C,2,FALSE),\"\")","v":""}]
[null,null,null,null,{"$f":"IFERROR(VLOOKUP($D1151,Справочник!$B:$C,2,FALSE),\"\")","v":""},null,{"$f":"IFERROR(VLOOKUP(F1151,Справочник!B:C,2,FALSE),\"\")","v":""}]
[null,null,null,null,{"$f":"IFERROR(VLOOKUP($D1152,Справочник!$B:$C,2,FALSE),\"\")","v":""},null,{"$f":"IFERROR(VLOOKUP(F1152,Справочник!B:C,2,FALSE),\"\")","v":""}]
[null,null,null,null,{"$f":"IFERROR(VLOOKUP($D1153,Справочник!$B:$C,2,FALSE),\"\")","v":""},null,{"$f":"IFERROR(VLOOKUP(F1153,Справочник!B:C,2,FALSE),\"\")","v":""}]
[null,null,null,null,{"$f":"IFERROR(VLOOKUP($D1154,Справочник!$B:$C,2,FALSE),\"\")","v":""},null,{"$f":"IFERROR(VLOOKUP(F1154,Справочник!B:C,2,FALSE),\"\")","v":""}]
[null,null,null,null,{"$f":"IFERROR(VLOOKUP($D1155,Справочник!$B:$C,2,FALSE),\"\")","v":""},null,{"$f":"IFERROR(VLOOKUP(F1155,Справочник!B:C,2,FALSE),\"\")","v":""}]
[null,null,null,null,{"$f":"IFERROR(VLOOKUP($D1156,Справочник!$B:$C,2,FALSE),\"\")","v":""},null,{"$f":"IFERROR(VLOOKUP(F1156,Справочник!B:C,2,FALSE),\"\")","v":""}]
[null,null,null,null,{"$f":"IFERROR(VLOOKUP($D1157,Справочник!$B:$C,2,FALSE),\"\")","v":""},null,{"$f":"IFERROR(VLOOKUP(F1157,Справочник!B:C,2,FALSE),\"\")","v":""}]
[null,null,null,null,{"$f":"IFERROR(VLOOKUP($D1158,Справочник!$B:$C,2,FALSE),\"\")","v":""},null,{"$f":"IFERROR(VLOOKUP(F1158,Справочник!B:C,2,FALSE),\"\")","v":""}]
[null,null,null,null,{"$f":"IFERROR(VLOOKUP($D1159,Справочник!$B:$C,2,FALSE),\"\")","v":""},null,{"$f":"IFERROR(VLOOKUP(F1159,Справочник!B:C,2,FALSE),\"\")","v":""}]
[null,null,null,null,{"$f":"IFERROR(VLOOKUP($D1160,Справочник!$B:$C,2,FALSE),\"\")","v":""},null,{"$f":"IFERROR(VLOOKUP(F1160,Справочник!B:C,2,FALSE),\"\")","v":""}]
[null,null,null,null,{"$f":"IFERROR(VLOOKUP($D1161,Справочник!$B:$C,2,FALSE),\"\")","v":""},null,{"$f":"IFERROR(VLOOKUP(F1161,Справочник!B:C,2,FALSE),\"\")","v":""}]
[null,null,null,null,{"$f":"IFERROR(VLOOKUP($D1162,Справочник!$B:$C,2,FALSE),\"\")","v":""},null,{"$f":"IFERROR(VLOOKUP(F1162,Справочник!B:C,2,FALSE),\"\")","v":""}]
[null,null,null,null,{"$f":"IFERROR(VLOOKUP($D1163,Справочник!$B:$C,2,FALSE),\"\")","v":""},null,{"$f":"IFERROR(VLOOKUP(F1163,Справочник!B:C,2,FALSE),\"\")","v":""}]
[null,null,null,null,{"$f":"IFERROR(VLOOKUP($D1164,Справочник!$B:$C,2,FALSE),\"\")","v":""},null,{"$f":"IFERROR(VLOOKUP(F1164,Справочник!B:C,2,FALSE),\"\")","v":""}]
[null,null,null,null,{"$f":"IFERROR(VLOOKUP($D1165,Справочник!$B:$C,2,FALSE),\"\")","v":""},null,{"$f":"IFERROR(VLOOKUP(F1165,Справочник!B:C,2,FALSE),\"\")","v":""}]
[null,null,null,null,{"$f":"IFERROR(VLOOKUP($D1166,Справочник!$B:$C,2,FALSE),\"\")","v":""},null,{"$f":"IFERROR(VLOOKUP(F1166,Справочник!B:C,2,FALSE),\"\")","v":""}]
[null,null,null,null,{"$f":"IFERROR(VLOOKUP($D1167,Справочник!$B:$C,2,FALSE),\"\")","v":""},null,{"$f":"IFERROR(VLOOKUP(F1167,Справочник!B:C,2,FALSE),\"\")","v":""}]
[null,null,null,null,{"$f":"IFERROR(VLOOKUP($D1168,Справочник!$B:$C,2,FALSE),\"\")","v":""},null,{"$f":"IFERROR(VLOOKUP(F1168,Справочник!B:C,2,FALSE),\"\")","v":""}]
[null,null,null,null,{"$f":"IFERROR(VLOOKUP($D1169,Справочник!$B:$C,2,FALSE),\"\")","v":""},null,{"$f":"IFERROR(VLOOKUP(F1169,Справочник!B:C,2,FALSE),\"\")","v":""}]
[null,null,null,null,{"$f":"IFERROR(VLOOKUP($D1170,Справочник!$B:$C,2,FALSE),\"\")","v":""},null,{"$f":"IFERROR(VLOOKUP(F1170,Справочник!B:C,2,FALSE),\"\")","v":""}]
[null,null,null,null,{"$f":"IFERROR(VLOOKUP($D1171,Справочник!$B:$C,2,FALSE),\"\")","v":""},null,{"$f":"IFERROR(VLOOKUP(F1171,Справочник!B:C,2,FALSE),\"\")","v":""}]
[null,null,null,null,{"$f":"IFERROR(VLOOKUP($D1172,Справочник!$B:$C,2,FALSE),\"\")","v":""},null,{"$f":"IFERROR(VLOOKUP(F1172,Справочник!B:C,2,FALSE),\"\")","v":""}]
[null,null,null,null,{"$f":"IFERROR(VLOOKUP($D1173,Справочник!$B:$C,2,FALSE),\"\")","v":""},null,{"$f":"IFERROR(VLOOKUP(F1173,Справочник!B:C,2,FALSE),\"\")","v":""}]
[null,null,null,null,{"$f":"IFERROR(VLOOKUP($D1174,Справочник!$B:$C,2,FALSE),\"\")","v":""},null,{"$f":"IFERROR(VLOOKUP(F1174,Справочник!B:C,2,FALSE),\"\")","v":""}]
[null,null,null,null,{"$f":"IFERROR(VLOOKUP($D1175,Справочник!$B:$C,2,FALSE),\"\")","v":""},null,{"$f":"IFERROR(VLOOKUP(F1175,Справочник!B:C,2,FALSE),\"\")","v":""}]
[null,null,null,null,{"$f":"IFERROR(VLOOKUP($D1176,Справочник!$B:$C,2,FALSE),\"\")","v":""},null,{"$f":"IFERROR(VLOOKUP(F1176,Справочник!B:C,2,FALSE),\"\")","v":""}]
[null,null,null,null,{"$f":"IFERROR(VLOOKUP($D1177,Справочник!$B:$C,2,FALSE),\"\")","v":""},null,{"$f":"IFERROR(VLOOKUP(F1177,Справочник!B:C,2,FALSE),\"\")","v":""}]
[null,null,null,null,{"$f":"IFERROR(VLOOKUP($D1178,Справочник!$B:$C,2,FALSE),\"\")","v":""},null,{"$f":"IFERROR(VLOOKUP(F1178,Справочник!B:C,2,FALSE),\"\")","v":""}]
[null,null,null,null,{"$f":"IFERROR(VLOOKUP($D1179,Справочник!$B:$C,2,FALSE),\"\")","v":""},null,{"$f":"IFERROR(VLOOKUP(F1179,Справочник!B:C,2,FALSE),\"\")","v":""}]
[null,null,null,null,{"$f":"IFERROR(VLOOKUP($D1180,Справочник!$B:$C,2,FALSE),\"\")","v":""},null,{"$f":"IFERROR(VLOOKUP(F1180,Справочник!B:C,2,FALSE),\"\")","v":""}]
[null,null,null,null,{"$f":"IFERROR(VLOOKUP($D1181,Справочник!$B:$C,2,FALSE),\"\")","v":""},null,{"$f":"IFERROR(VLOOKUP(F1181,Справочник!B:C,2,FALSE),\"\")","v":""}]
[null,null,null,null,{"$f":"IFERROR(VLOOKUP($D1182,Справочник!$B:$C,2,FALSE),\"\")","v":""},null,{"$f":"IFERROR(VLOOKUP(F1182,Справочник!B:C,2,FALSE),\"\")","v":""}]
[null,null,null,null,{"$f":"IFERROR(VLOOKUP($D1183,Справочник!$B:$C,2,FALSE),\"\")","v":""},null,{"$f":"IFERROR(VLOOKUP(F1183,Справочник!B:C,2,FALSE),\"\")","v":""}]
[null,null,null,null,{"$f":"IFERROR(VLOOKUP($D1184,Справочник!$B:$C,2,FALSE),\"\")","v":""},null,{"$f":"IFERROR(VLOOKUP(F1184,Справочник!B:C,2,FALSE),\"\")","v":""}]
[null,null,null,null,{"$f":"IFERROR(VLOOKUP($D1185,Справочник!$B:$C,2,FALSE),\"\")","v":""},null,{"$f":"IFERROR(VLOOKUP(F1185,Справочник!B:C,2,FALSE),\"\")","v":""}]
[null,null,null,null,{"$f":"IFERROR(VLOOKUP($D1186,Справочник!$B:$C,2,FALSE),\"\")","v":""},null,{"$f":"IFERROR(VLOOKUP(F1186,Справочник!B:C,2,FALSE),\"\")","v":""}]
[null,null,null,null,{"$f":"IFERROR(VLOOKUP($D1187,Справочник!$B:$C,2,FALSE),\"\")","v":""},null,{"$f":"IFERROR(VLOOKUP(F1187,Справочник!B:C,2,FALSE),\"\")","v":""}]
[null,null,null,null,{"$f":"IFERROR(VLOOKUP($D1188,Справочник!$B:$C,2,FALSE),\"\")","v":""},null,{"$f":"IFERROR(VLOOKUP(F1188,Справочник!B:C,2,FALSE),\"\")","v":""}]
[null,null,null,null,{"$f":"IFERROR(VLOOKUP($D1189,Справочник!$B:$C,2,FALSE),\"\")","v":""},null,{"$f":"IFERROR(VLOOKUP(F1189,Справочник!B:C,2,FALSE),\"\")","v":""}]
[null,null,null,null,{"$f":"IFERROR(VLOOKUP($D1190,Справочник!$B:$C,2,FALSE),\"\")","v":""},null,{"$f":"IFERROR(VLOOKUP(F1190,Справочник!B:C,2,FALSE),\"\")","v":""}]
[null,null,null,null,{"$f":"IFERROR(VLOOKUP($D1191,Справочник!$B:$C,2,FALSE),\"\")","v":""},null,{"$f":"IFERROR(VLOOKUP(F1191,Справочник!B:C,2,FALSE),\"\")","v":""}]
[null,null,null,null,{"$f":"IFERROR(VLOOKUP($D1192,Справочник!$B:$C,2,FALSE),\"\")","v":""},null,{"$f":"IFERROR(VLOOKUP(F1192,Справочник!B:C,2,FALSE),\"\")","v":""}]
[null,null,null,null,{"$f":"IFERROR(VLOOKUP($D1193,Справочник!$B:$C,2,FALSE),\"\")","v":""},null,{"$f":"IFERROR(VLOOKUP(F1193,Справочник!B:C,2,FALSE),\"\")","v":""}]
[null,null,null,null,{"$f":"IFERROR(VLOOKUP($D1194,Справочник!$B:$C,2,FALSE),\"\")","v":""},null,{"$f":"IFERROR(VLOOKUP(F1194,Справочник!B:C,2,FALSE),\"\")","v":""}]
[null,null,null,null,{"$f":"IFERROR(VLOOKUP($D1195,Справочник!$B:$C,2,FALSE),\"\")","v":""},null,{"$f":"IFERROR(VLOOKUP(F1195,Справочник!B:C,2,FALSE),\"\")","v":""}]
[null,null,null,null,{"$f":"IFERROR(VLOOKUP($D1196,Справочник!$B:$C,2,FALSE),\"\")","v":""},null,{"$f":"IFERROR(VLOOKUP(F1196,Справочник!B:C,2,FALSE),\"\")","v":""}]
[null,null,null,null,{"$f":"IFERROR(VLOOKUP($D1197,Справочник!$B:$C,2,FALSE),\"\")","v":""},null,{"$f":"IFERROR(VLOOKUP(F1197,Справочник!B:C,2,FALSE),\"\")","v":""}]
[null,null,null,null,{"$f":"IFERROR(VLOOKUP($D1198,Справочник!$B:$C,2,FALSE),\"\")","v":""},null,{"$f":"IFERROR(VLOOKUP(F1198,Справочник!B:C,2,FALSE),\"\")","v":""}]
[null,null,null,null,{"$f":"IFERROR(VLOOKUP($D1199,Справочник!$B:$C,2,FALSE),\"\")","v":""},null,{"$f":"IFERROR(VLOOKUP(F1199,Справочник!B:C,2,FALSE),\"\")","v":""}]
[null,null,null,null,{"$f":"IFERROR(VLOOKUP($D1200,Справочник!$B:$C,2,FALSE),\"\")","v":""},null,{"$f":"IFERROR(VLOOKUP(F1200,Справочник!B:C,2,FALSE),\"\")","v":""}]
[null,null,null,null,{"$f":"IFERROR(VLOOKUP($D1201,Справочник!$B:$C,2,FALSE),\"\")","v":""},null,{"$f":"IFERROR(VLOOKUP(F1201,Справочник!B:C,2,FALSE),\"\")","v":""}]
[null,null,null,null,{"$f":"IFERROR(VLOOKUP($D1202,Справочник!$B:$C,2,FALSE),\"\")","v":""},null,{"$f":"IFERROR(VLOOKUP(F1202,Справочник!B:C,2,FALSE),\"\")","v":""}]
[null,null,null,null,{"$f":"IFERROR(VLOOKUP($D1203,Справочник!$B:$C,2,FALSE),\"\")","v":""},null,{"$f":"IFERROR(VLOOKUP(F1203,Справочник!B:C,2,FALSE),\"\")","v":""}]
[null,null,null,null,{"$f":"IFERROR(VLOOKUP($D1204,Справочник!$B:$C,2,FALSE),\"\")","v":""},null,{"$f":"IFERROR(VLOOKUP(F1204,Справочник!B:C,2,FALSE),\"\")","v":""}]
[null,null,null,null,{"$f":"IFERROR(VLOOKUP($D1205,Справочник!$B:$C,2,FALSE),\"\")","v":""},null,{"$f":"IFERROR(VLOOKUP(F1205,Справочник!B:C,2,FALSE),\"\")","v":""}]
[null,null,null,null,{"$f":"IFERROR(VLOOKUP($D1206,Справочник!$B:$C,2,FALSE),\"\")","v":""},null,{"$f":"IFERROR(VLOOKUP(F1206,Справочник!B:C,2,FALSE),\"\")","v":""}]
[null,null,null,null,{"$f":"IFERROR(VLOOKUP($D1207,Справочник!$B:$C,2,FALSE),\"\")","v":""},null,{"$f":"IFERROR(VLOOKUP(F1207,Справочник!B:C,2,FALSE),\"\")","v":""}]
[null,null,null,null,{"$f":"IFERROR(VLOOKUP($D1208,Справочник!$B:$C,2,FALSE),\"\")","v":""},null,{"$f":"IFERROR(VLOOKUP(F1208,Справочник!B:C,2,FALSE),\"\")","v":""}]
[null,null,null,null,{"$f":"IFERROR(VLOOKUP($D1209,Справочник!$B:$C,2,FALSE),\"\")","v":""},null,{"$f":"IFERROR(VLOOKUP(F1209,Справочник!B:C,2,FALSE),\"\")","v":""}]
[null,null,null,null,{"$f":"IFERROR(VLOOKUP($D1210,Справочник!$B:$C,2,FALSE),\"\")","v":""},null,{"$f":"IFERROR(VLOOKUP(F1210,Справочник!B:C,2,FALSE),\"\")","v":""}]
[null,null,null,null,{"$f":"IFERROR(VLOOKUP($D1211,Справочник!$B:$C,2,FALSE),\"\")","v":""},null,{"$f":"IFERROR(VLOOKUP(F1211,Справочник!B:C,2,FALSE),\"\")","v":""}]
[null,null,null,null,{"$f":"IFERROR(VLOOKUP($D1212,Справочник!$B:$C,2,FALSE),\"\")","v":""},null,{"$f":"IFERROR(VLOOKUP(F1212,Справочник!B:C,2,FALSE),\"\")","v":""}]
[null,null,null,null,{"$f":"IFERROR(VLOOKUP($D1213,Справочник!$B:$C,2,FALSE),\"\")","v":""},null,{"$f":"IFERROR(VLOOKUP(F1213,Справочник!B:C,2,FALSE),\"\")","v":""}]
[null,null,null,null,{"$f":"IFERROR(VLOOKUP($D1214,Справочник!$B:$C,2,FALSE),\"\")","v":""},null,{"$f":"IFERROR(VLOOKUP(F1214,Справочник!B:C,2,FALSE),\"\")","v":""}]
[null,null,null,null,{"$f":"IFERROR(VLOOKUP($D1215,Справочник!$B:$C,2,FALSE),\"\")","v":""},null,{"$f":"IFERROR(VLOOKUP(F1215,Справочник!B:C,2,FALSE),\"\")","v":""}]
[null,null,null,null,{"$f":"IFERROR(VLOOKUP($D1216,Справочник!$B:$C,2,FALSE),\"\")","v":""},null,{"$f":"IFERROR(VLOOKUP(F1216,Справочник!B:C,2,FALSE),\"\")","v":""}]
[null,null,null,null,{"$f":"IFERROR(VLOOKUP($D1217,Справочник!$B:$C,2,FALSE),\"\")","v":""},null,{"$f":"IFERROR(VLOOKUP(F1217,Справочник!B:C,2,FALSE),\"\")","v":""}]
[null,null,null,null,{"$f":"IFERROR(VLOOKUP($D1218,Справочник!$B:$C,2,FALSE),\"\")","v":""},null,{"$f":"IFERROR(VLOOKUP(F1218,Справочник!B:C,2,FALSE),\"\")","v":""}]
[null,null,null,null,{"$f":"IFERROR(VLOOKUP($D1219,Справочник!$B:$C,2,FALSE),\"\")","v":""},null,{"$f":"IFERROR(VLOOKUP(F1219,Справочник!B:C,2,FALSE),\"\")","v":""}]
[null,null,null,null,{"$f":"IFERROR(VLOOKUP($D1220,Справочник!$B:$C,2,FALSE),\"\")","v":""},null,{"$f":"IFERROR(VLOOKUP(F1220,Справочник!B:C,2,FALSE),\"\")","v":""}]
[null,null,null,null,{"$f":"IFERROR(VLOOKUP($D1221,Справочник!$B:$C,2,FALSE),\"\")","v":""},null,{"$f":"IFERROR(VLOOKUP(F1221,Справочник!B:C,2,FALSE),\"\")","v":""}]
[null,null,null,null,{"$f":"IFERROR(VLOOKUP($D1222,Справочник!$B:$C,2,FALSE),\"\")","v":""},null,{"$f":"IFERROR(VLOOKUP(F1222,Справочник!B:C,2,FALSE),\"\")","v":""}]
[null,null,null,null,{"$f":"IFERROR(VLOOKUP($D1223,Справочник!$B:$C,2,FALSE),\"\")","v":""},null,{"$f":"IFERROR(VLOOKUP(F1223,Справочник!B:C,2,FALSE),\"\")","v":""}]
[null,null,null,null,{"$f":"IFERROR(VLOOKUP($D1224,Справочник!$B:$C,2,FALSE),\"\")","v":""},null,{"$f":"IFERROR(VLOOKUP(F1224,Справочник!B:C,2,FALSE),\"\")","v":""}]
[null,null,null,null,{"$f":"IFERROR(VLOOKUP($D1225,Справочник!$B:$C,2,FALSE),\"\")","v":""},null,{"$f":"IFERROR(VLOOKUP(F1225,Справочник!B:C,2,FALSE),\"\")","v":""}]
[null,null,null,null,{"$f":"IFERROR(VLOOKUP($D1226,Справочник!$B:$C,2,FALSE),\"\")","v":""},null,{"$f":"IFERROR(VLOOKUP(F1226,Справочник!B:C,2,FALSE),\"\")","v":""}]
[null,null,null,null,{"$f":"IFERROR(VLOOKUP($D1227,Справочник!$B:$C,2,FALSE),\"\")","v":""},null,{"$f":"IFERROR(VLOOKUP(F1227,Справочник!B:C,2,FALSE),\"\")","v":""}]
[null,null,null,null,{"$f":"IFERROR(VLOOKUP($D1228,Справочник!$B:$C,2,FALSE),\"\")","v":""},null,{"$f":"IFERROR(VLOOKUP(F1228,Справочник!B:C,2,FALSE),\"\")","v":""}]
[null,null,null,null,{"$f":"IFERROR(VLOOKUP($D1229,Справочник!$B:$C,2,FALSE),\"\")","v":""},null,{"$f":"IFERROR(VLOOKUP(F1229,Справочник!B:C,2,FALSE),\"\")","v":""}]
[null,null,null,null,{"$f":"IFERROR(VLOOKUP($D1230,Справочник!$B:$C,2,FALSE),\"\")","v":""},null,{"$f":"IFERROR(VLOOKUP(F1230,Справочник!B:C,2,FALSE),\"\")","v":""}]
[null,null,null,null,{"$f":"IFERROR(VLOOKUP($D1231,Справочник!$B:$C,2,FALSE),\"\")","v":""},null,{"$f":"IFERROR(VLOOKUP(F1231,Справочник!B:C,2,FALSE),\"\")","v":""}]
[null,null,null,null,{"$f":"IFERROR(VLOOKUP($D1232,Справочник!$B:$C,2,FALSE),\"\")","v":""},null,{"$f":"IFERROR(VLOOKUP(F1232,Справочник!B:C,2,FALSE),\"\")","v":""}]
[null,null,null,null,{"$f":"IFERROR(VLOOKUP($D1233,Справочник!$B:$C,2,FALSE),\"\")","v":""},null,{"$f":"IFERROR(VLOOKUP(F1233,Справочник!B:C,2,FALSE),\"\")","v":""}]
[null,null,null,null,{"$f":"IFERROR(VLOOKUP($D1234,Справочник!$B:$C,2,FALSE),\"\")","v":""},null,{"$f":"IFERROR(VLOOKUP(F1234,Справочник!B:C,2,FALSE),\"\")","v":""}]
[null,null,null,null,{"$f":"IFERROR(VLOOKUP($D1235,Справочник!$B:$C,2,FALSE),\"\")","v":""},null,{"$f":"IFERROR(VLOOKUP(F1235,Справочник!B:C,2,FALSE),\"\")","v":""}]
[null,null,null,null,{"$f":"IFERROR(VLOOKUP($D1236,Справочник!$B:$C,2,FALSE),\"\")","v":""},null,{"$f":"IFERROR(VLOOKUP(F1236,Справочник!B:C,2,FALSE),\"\")","v":""}]
[null,null,null,null,{"$f":"IFERROR(VLOOKUP($D1237,Справочник!$B:$C,2,FALSE),\"\")","v":""},null,{"$f":"IFERROR(VLOOKUP(F1237,Справочник!B:C,2,FALSE),\"\")","v":""}]
[null,null,null,null,{"$f":"IFERROR(VLOOKUP($D1238,Справочник!$B:$C,2,FALSE),\"\")","v":""},null,{"$f":"IFERROR(VLOOKUP(F1238,Справочник!B:C,2,FALSE),\"\")","v":""}]
[null,null,null,null,{"$f":"IFERROR(VLOOKUP($D1239,Справочник!$B:$C,2,FALSE),\"\")","v":""},null,{"$f":"IFERROR(VLOOKUP(F1239,Справочник!B:C,2,FALSE),\"\")","v":""}]
[null,null,null,null,{"$f":"IFERROR(VLOOKUP($D1240,Справочник!$B:$C,2,FALSE),\"\")","v":""},null,{"$f":"IFERROR(VLOOKUP(F1240,Справочник!B:C,2,FALSE),\"\")","v":""}]
[null,null,null,null,{"$f":"IFERROR(VLOOKUP($D1241,Справочник!$B:$C,2,FALSE),\"\")","v":""},null,{"$f":"IFERROR(VLOOKUP(F1241,Справочник!B:C,2,FALSE),\"\")","v":""}]
[null,null,null,null,{"$f":"IFERROR(VLOOKUP($D1242,Справочник!$B:$C,2,FALSE),\"\")","v":""},null,{"$f":"IFERROR(VLOOKUP(F1242,Справочник!B:C,2,FALSE),\"\")","v":""}]
[null,null,null,null,{"$f":"IFERROR(VLOOKUP($D1243,Справочник!$B:$C,2,FALSE),\"\")","v":""},null,{"$f":"IFERROR(VLOOKUP(F1243,Справочник!B:C,2,FALSE),\"\")","v":""}]
[null,null,null,null,{"$f":"IFERROR(VLOOKUP($D1244,Справочник!$B:$C,2,FALSE),\"\")","v":""},null,{"$f":"IFERROR(VLOOKUP(F1244,Справочник!B:C,2,FALSE),\"\")","v":""}]
[null,null,null,null,{"$f":"IFERROR(VLOOKUP($D1245,Справочник!$B:$C,2,FALSE),\"\")","v":""},null,{"$f":"IFERROR(VLOOKUP(F1245,Справочник!B:C,2,FALSE),\"\")","v":""}]
[null,null,null,null,{"$f":"IFERROR(VLOOKUP($D1246,Справочник!$B:$C,2,FALSE),\"\")","v":""},null,{"$f":"IFERROR(VLOOKUP(F1246,Справочник!B:C,2,FALSE),\"\")","v":""}]
[null,null,null,null,{"$f":"IFERROR(VLOOKUP($D1247,Справочник!$B:$C,2,FALSE),\"\")","v":""},null,{"$f":"IFERROR(VLOOKUP(F1247,Справочник!B:C,2,FALSE),\"\")","v":""}]
[null,null,null,null,{"$f":"IFERROR(VLOOKUP($D1248,Справочник!$B:$C,2,FALSE),\"\")","v":""},null,{"$f":"IFERROR(VLOOKUP(F1248,Справочник!B:C,2,FALSE),\"\")","v":""}]
[null,null,null,null,{"$f":"IFERROR(VLOOKUP($D1249,Справочник!$B:$C,2,FALSE),\"\")","v":""},null,{"$f":"IFERROR(VLOOKUP(F1249,Справочник!B:C,2,FALSE),\"\")","v":""}]
[null,null,null,null,{"$f":"IFERROR(VLOOKUP($D1250,Справочник!$B:$C,2,FALSE),\"\")","v":""},null,{"$f":"IFERROR(VLOOKUP(F1250,Справочник!B:C,2,FALSE),\"\")","v":""}]
[null,null,null,null,{"$f":"IFERROR(VLOOKUP($D1251,Справочник!$B:$C,2,FALSE),\"\")","v":""},null,{"$f":"IFERROR(VLOOKUP(F1251,Справочник!B:C,2,FALSE),\"\")","v":""}]
[null,null,null,null,{"$f":"IFERROR(VLOOKUP($D1252,Справочник!$B:$C,2,FALSE),\"\")","v":""},null,{"$f":"IFERROR(VLOOKUP(F1252,Справочник!B:C,2,FALSE),\"\")","v":""}]
[null,null,null,null,{"$f":"IFERROR(VLOOKUP($D1253,Справочник!$B:$C,2,FALSE),\"\")","v":""},null,{"$f":"IFERROR(VLOOKUP(F1253,Справочник!B:C,2,FALSE),\"\")","v":""}]
[null,null,null,null,{"$f":"IFERROR(VLOOKUP($D1254,Справочник!$B:$C,2,FALSE),\"\")","v":""},null,{"$f":"IFERROR(VLOOKUP(F1254,Справочник!B:C,2,FALSE),\"\")","v":""}]
[null,null,null,null,{"$f":"IFERROR(VLOOKUP($D1255,Справочник!$B:$C,2,FALSE),\"\")","v":""},null,{"$f":"IFERROR(VLOOKUP(F1255,Справочник!B:C,2,FALSE),\"\")","v":""}]
[null,null,null,null,{"$f":"IFERROR(VLOOKUP($D1256,Справочник!$B:$C,2,FALSE),\"\")","v":""},null,{"$f":"IFERROR(VLOOKUP(F1256,Справочник!B:C,2,FALSE),\"\")","v":""}]
[null,null,null,null,{"$f":"IFERROR(VLOOKUP($D1257,Справочник!$B:$C,2,FALSE),\"\")","v":""},null,{"$f":"IFERROR(VLOOKUP(F1257,Справочник!B:C,2,FALSE),\"\")","v":""}]
[null,null,null,null,{"$f":"IFERROR(VLOOKUP($D1258,Справочник!$B:$C,2,FALSE),\"\")","v":""},null,{"$f":"IFERROR(VLOOKUP(F1258,Справочник!B:C,2,FALSE),\"\")","v":""}]
[null,null,null,null,{"$f":"IFERROR(VLOOKUP($D1259,Справочник!$B:$C,2,FALSE),\"\")","v":""},null,{"$f":"IFERROR(VLOOKUP(F1259,Справочник!B:C,2,FALSE),\"\")","v":""}]
[null,null,null,null,{"$f":"IFERROR(VLOOKUP($D1260,Справочник!$B:$C,2,FALSE),\"\")","v":""},null,{"$f":"IFERROR(VLOOKUP(F1260,Справочник!B:C,2,FALSE),\"\")","v":""}]
[null,null,null,null,{"$f":"IFERROR(VLOOKUP($D1261,Справочник!$B:$C,2,FALSE),\"\")","v":""},null,{"$f":"IFERROR(VLOOKUP(F1261,Справочник!B:C,2,FALSE),\"\")","v":""}]
[null,null,null,null,{"$f":"IFERROR(VLOOKUP($D1262,Справочник!$B:$C,2,FALSE),\"\")","v":""},null,{"$f":"IFERROR(VLOOKUP(F1262,Справочник!B:C,2,FALSE),\"\")","v":""}]
[null,null,null,null,{"$f":"IFERROR(VLOOKUP($D1263,Справочник!$B:$C,2,FALSE),\"\")","v":""},null,{"$f":"IFERROR(VLOOKUP(F1263,Справочник!B:C,2,FALSE),\"\")","v":""}]
[null,null,null,null,{"$f":"IFERROR(VLOOKUP($D1264,Справочник!$B:$C,2,FALSE),\"\")","v":""},null,{"$f":"IFERROR(VLOOKUP(F1264,Справочник!B:C,2,FALSE),\"\")","v":""}]
[null,null,null,null,{"$f":"IFERROR(VLOOKUP($D1265,Справочник!$B:$C,2,FALSE),\"\")","v":""},null,{"$f":"IFERROR(VLOOKUP(F1265,Справочник!B:C,2,FALSE),\"\")","v":""}]
[null,null,null,null,{"$f":"IFERROR(VLOOKUP($D1266,Справочник!$B:$C,2,FALSE),\"\")","v":""},null,{"$f":"IFERROR(VLOOKUP(F1266,Справочник!B:C,2,FALSE),\"\")","v":""}]
[null,null,null,null,{"$f":"IFERROR(VLOOKUP($D1267,Справочник!$B:$C,2,FALSE),\"\")","v":""},null,{"$f":"IFERROR(VLOOKUP(F1267,Справочник!B:C,2,FALSE),\"\")","v":""}]
[null,null,null,null,{"$f":"IFERROR(VLOOKUP($D1268,Справочник!$B:$C,2,FALSE),\"\")","v":""},null,{"$f":"IFERROR(VLOOKUP(F1268,Справочник!B:C,2,FALSE),\"\")","v":""}]
[null,null,null,null,{"$f":"IFERROR(VLOOKUP($D1269,Справочник!$B:$C,2,FALSE),\"\")","v":""},null,{"$f":"IFERROR(VLOOKUP(F1269,Справочник!B:C,2,FALSE),\"\")","v":""}]
[null,null,null,null,{"$f":"IFERROR(VLOOKUP($D1270,Справочник!$B:$C,2,FALSE),\"\")","v":""},null,{"$f":"IFERROR(VLOOKUP(F1270,Справочник!B:C,2,FALSE),\"\")","v":""}]
[null,null,null,null,{"$f":"IFERROR(VLOOKUP($D1271,Справочник!$B:$C,2,FALSE),\"\")","v":""},null,{"$f":"IFERROR(VLOOKUP(F1271,Справочник!B:C,2,FALSE),\"\")","v":""}]
[null,null,null,null,{"$f":"IFERROR(VLOOKUP($D1272,Справочник!$B:$C,2,FALSE),\"\")","v":""},null,{"$f":"IFERROR(VLOOKUP(F1272,Справочник!B:C,2,FALSE),\"\")","v":""}]
[null,null,null,null,{"$f":"IFERROR(VLOOKUP($D1273,Справочник!$B:$C,2,FALSE),\"\")","v":""},null,{"$f":"IFERROR(VLOOKUP(F1273,Справочник!B:C,2,FALSE),\"\")","v":""}]
[null,null,null,null,{"$f":"IFERROR(VLOOKUP($D1274,Справочник!$B:$C,2,FALSE),\"\")","v":""},null,{"$f":"IFERROR(VLOOKUP(F1274,Справочник!B:C,2,FALSE),\"\")","v":""}]
[null,null,null,null,{"$f":"IFERROR(VLOOKUP($D1275,Справочник!$B:$C,2,FALSE),\"\")","v":""},null,{"$f":"IFERROR(VLOOKUP(F1275,Справочник!B:C,2,FALSE),\"\")","v":""}]
[null,null,null,null,{"$f":"IFERROR(VLOOKUP($D1276,Справочник!$B:$C,2,FALSE),\"\")","v":""},null,{"$f":"IFERROR(VLOOKUP(F1276,Справочник!B:C,2,FALSE),\"\")","v":""}]
[null,null,null,null,{"$f":"IFERROR(VLOOKUP($D1277,Справочник!$B:$C,2,FALSE),\"\")","v":""},null,{"$f":"IFERROR(VLOOKUP(F1277,Справочник!B:C,2,FALSE),\"\")","v":""}]
[null,null,null,null,{"$f":"IFERROR(VLOOKUP($D1278,Справочник!$B:$C,2,FALSE),\"\")","v":""},null,{"$f":"IFERROR(VLOOKUP(F1278,Справочник!B:C,2,FALSE),\"\")","v":""}]
[null,null,null,null,{"$f":"IFERROR(VLOOKUP($D1279,Справочник!$B:$C,2,FALSE),\"\")","v":""},null,{"$f":"IFERROR(VLOOKUP(F1279,Справочник!B:C,2,FALSE),\"\")","v":""}]
[null,null,null,null,{"$f":"IFERROR(VLOOKUP($D1280,Справочник!$B:$C,2,FALSE),\"\")","v":""},null,{"$f":"IFERROR(VLOOKUP(F1280,Справочник!B:C,2,FALSE),\"\")","v":""}]
[null,null,null,null,{"$f":"IFERROR(VLOOKUP($D1281,Справочник!$B:$C,2,FALSE),\"\")","v":""},null,{"$f":"IFERROR(VLOOKUP(F1281,Справочник!B:C,2,FALSE),\"\")","v":""}]
[null,null,null,null,{"$f":"IFERROR(VLOOKUP($D1282,Справочник!$B:$C,2,FALSE),\"\")","v":""},null,{"$f":"IFERROR(VLOOKUP(F1282,Справочник!B:C,2,FALSE),\"\")","v":""}]
[null,null,null,null,{"$f":"IFERROR(VLOOKUP($D1283,Справочник!$B:$C,2,FALSE),\"\")","v":""},null,{"$f":"IFERROR(VLOOKUP(F1283,Справочник!B:C,2,FALSE),\"\")","v":""}]
[null,null,null,null,{"$f":"IFERROR(VLOOKUP($D1284,Справочник!$B:$C,2,FALSE),\"\")","v":""},null,{"$f":"IFERROR(VLOOKUP(F1284,Справочник!B:C,2,FALSE),\"\")","v":""}]
[null,null,null,null,{"$f":"IFERROR(VLOOKUP($D1285,Справочник!$B:$C,2,FALSE),\"\")","v":""},null,{"$f":"IFERROR(VLOOKUP(F1285,Справочник!B:C,2,FALSE),\"\")","v":""}]
[null,null,null,null,{"$f":"IFERROR(VLOOKUP($D1286,Справочник!$B:$C,2,FALSE),\"\")","v":""},null,{"$f":"IFERROR(VLOOKUP(F1286,Справочник!B:C,2,FALSE),\"\")","v":""}]
[null,null,null,null,{"$f":"IFERROR(VLOOKUP($D1287,Справочник!$B:$C,2,FALSE),\"\")","v":""},null,{"$f":"IFERROR(VLOOKUP(F1287,Справочник!B:C,2,FALSE),\"\")","v":""}]
[null,null,null,null,{"$f":"IFERROR(VLOOKUP($D1288,Справочник!$B:$C,2,FALSE),\"\")","v":""},null,{"$f":"IFERROR(VLOOKUP(F1288,Справочник!B:C,2,FALSE),\"\")","v":""}]
[null,null,null,null,{"$f":"IFERROR(VLOOKUP($D1289,Справочник!$B:$C,2,FALSE),\"\")","v":""},null,{"$f":"IFERROR(VLOOKUP(F1289,Справочник!B:C,2,FALSE),\"\")","v":""}]
[null,null,null,null,{"$f":"IFERROR(VLOOKUP($D1290,Справочник!$B:$C,2,FALSE),\"\")","v":""},null,{"$f":"IFERROR(VLOOKUP(F1290,Справочник!B:C,2,FALSE),\"\")","v":""}]
[null,null,null,null,{"$f":"IFERROR(VLOOKUP($D1291,Справочник!$B:$C,2,FALSE),\"\")","v":""},null,{"$f":"IFERROR(VLOOKUP(F1291,Справочник!B:C,2,FALSE),\"\")","v":""}]
[null,null,null,null,{"$f":"IFERROR(VLOOKUP($D1292,Справочник!$B:$C,2,FALSE),\"\")","v":""},null,{"$f":"IFERROR(VLOOKUP(F1292,Справочник!B:C,2,FALSE),\"\")","v":""}]
[null,null,null,null,{"$f":"IFERROR(VLOOKUP($D1293,Справочник!$B:$C,2,FALSE),\"\")","v":""},null,{"$f":"IFERROR(VLOOKUP(F1293,Справочник!B:C,2,FALSE),\"\")","v":""}]
[null,null,null,null,{"$f":"IFERROR(VLOOKUP($D1294,Справочник!$B:$C,2,FALSE),\"\")","v":""},null,{"$f":"IFERROR(VLOOKUP(F1294,Справочник!B:C,2,FALSE),\"\")","v":""}]
[null,null,null,null,{"$f":"IFERROR(VLOOKUP($D1295,Справочник!$B:$C,2,FALSE),\"\")","v":""},null,{"$f":"IFERROR(VLOOKUP(F1295,Справочник!B:C,2,FALSE),\"\")","v":""}]
[null,null,null,null,{"$f":"IFERROR(VLOOKUP($D1296,Справочник!$B:$C,2,FALSE),\"\")","v":""},null,{"$f":"IFERROR(VLOOKUP(F1296,Справочник!B:C,2,FALSE),\"\")","v":""}]
[null,null,null,null,{"$f":"IFERROR(VLOOKUP($D1297,Справочник!$B:$C,2,FALSE),\"\")","v":""},null,{"$f":"IFERROR(VLOOKUP(F1297,Справочник!B:C,2,FALSE),\"\")","v":""}]
[null,null,null,null,{"$f":"IFERROR(VLOOKUP($D1298,Справочник!$B:$C,2,FALSE),\"\")","v":""},null,{"$f":"IFERROR(VLOOKUP(F1298,Справочник!B:C,2,FALSE),\"\")","v":""}]
[null,null,null,null,{"$f":"IFERROR(VLOOKUP($D1299,Справочник!$B:$C,2,FALSE),\"\")","v":""},null,{"$f":"IFERROR(VLOOKUP(F1299,Справочник!B:C,2,FALSE),\"\")","v":""}]
[null,null,null,null,{"$f":"IFERROR(VLOOKUP($D1300,Справочник!$B:$C,2,FALSE),\"\")","v":""},null,{"$f":"IFERROR(VLOOKUP(F1300,Справочник!B:C,2,FALSE),\"\")","v":""}]
[null,null,null,null,{"$f":"IFERROR(VLOOKUP($D1301,Справочник!$B:$C,2,FALSE),\"\")","v":""},null,{"$f":"IFERROR(VLOOKUP(F1301,Справочник!B:C,2,FALSE),\"\")","v":""}]

{"sheet":"ЮТ","index":2,"n_rows":35,"n_cols":12,"rows_kept":35,"cut":false,"hidden":false,"merged":[]}
[null,"Дата ","Сумма","Ставка","Должно быть выдано","Плательщик","БНФ/П","Получатель ",null,"Дата ","Сумма","Получатель "]
[null,{"$f":"IFERROR(INDEX(Основной!$B:$B,SMALL(IF(Основной!$G$2:$G$2225=\"ЮТ\",ROW(Основной!$2:$2225)),ROW(A1))),\"\")","v":"2019-08-08"},{"$f":"IFERROR(INDEX(Основной!$C:$C,SMALL(IF(Основной!#REF!=\"ЮТ\",ROW(Основной!$2:$2225)),ROW(A1))),\"\")","v":""}]
[null,{"$f":"IFERROR(INDEX(Основной!$B:$B,SMALL(IF(Основной!#REF!=\"ЮТ\",ROW(Основной!$2:$2225)),ROW(A2))),\"\")","v":""}]
[null,{"$f":"IFERROR(INDEX(Основной!$B:$B,SMALL(IF(Основной!#REF!=\"ЮТ\",ROW(Основной!$2:$2225)),ROW(A3))),\"\")","v":""}]
[null,{"$f":"IFERROR(INDEX(Основной!$B:$B,SMALL(IF(Основной!#REF!=\"ЮТ\",ROW(Основной!$2:$2225)),ROW(A4))),\"\")","v":""}]
[null,{"$f":"IFERROR(INDEX(Основной!$B:$B,SMALL(IF(Основной!#REF!=\"ЮТ\",ROW(Основной!$2:$2225)),ROW(A5))),\"\")","v":""}]
[null,{"$f":"IFERROR(INDEX(Основной!$B:$B,SMALL(IF(Основной!#REF!=\"ЮТ\",ROW(Основной!$2:$2225)),ROW(A6))),\"\")","v":""}]
[null,{"$f":"IFERROR(INDEX(Основной!$B:$B,SMALL(IF(Основной!#REF!=\"ЮТ\",ROW(Основной!$2:$2225)),ROW(A7))),\"\")","v":""}]
[null,{"$f":"IFERROR(INDEX(Основной!$B:$B,SMALL(IF(Основной!#REF!=\"ЮТ\",ROW(Основной!$2:$2225)),ROW(A8))),\"\")","v":""}]
[null,{"$f":"IFERROR(INDEX(Основной!$B:$B,SMALL(IF(Основной!#REF!=\"ЮТ\",ROW(Основной!$2:$2225)),ROW(A9))),\"\")","v":""}]
[null,{"$f":"IFERROR(INDEX(Основной!$B:$B,SMALL(IF(Основной!#REF!=\"ЮТ\",ROW(Основной!$2:$2225)),ROW(A10))),\"\")","v":""}]
[null,{"$f":"IFERROR(INDEX(Основной!$B:$B,SMALL(IF(Основной!#REF!=\"ЮТ\",ROW(Основной!$2:$2225)),ROW(A11))),\"\")","v":""}]
[null,{"$f":"IFERROR(INDEX(Основной!$B:$B,SMALL(IF(Основной!#REF!=\"ЮТ\",ROW(Основной!$2:$2225)),ROW(A12))),\"\")","v":""}]
[null,{"$f":"IFERROR(INDEX(Основной!$B:$B,SMALL(IF(Основной!#REF!=\"ЮТ\",ROW(Основной!$2:$2225)),ROW(A13))),\"\")","v":""}]
[null,{"$f":"IFERROR(INDEX(Основной!$B:$B,SMALL(IF(Основной!#REF!=\"ЮТ\",ROW(Основной!$2:$2225)),ROW(A14))),\"\")","v":""}]
[null,{"$f":"IFERROR(INDEX(Основной!$B:$B,SMALL(IF(Основной!#REF!=\"ЮТ\",ROW(Основной!$2:$2225)),ROW(A15))),\"\")","v":""}]
[null,{"$f":"IFERROR(INDEX(Основной!$B:$B,SMALL(IF(Основной!#REF!=\"ЮТ\",ROW(Основной!$2:$2225)),ROW(A16))),\"\")","v":""}]
[null,{"$f":"IFERROR(INDEX(Основной!$B:$B,SMALL(IF(Основной!#REF!=\"ЮТ\",ROW(Основной!$2:$2225)),ROW(A17))),\"\")","v":""}]
[null,{"$f":"IFERROR(INDEX(Основной!$B:$B,SMALL(IF(Основной!#REF!=\"ЮТ\",ROW(Основной!$2:$2225)),ROW(A18))),\"\")","v":""}]
[null,{"$f":"IFERROR(INDEX(Основной!$B:$B,SMALL(IF(Основной!#REF!=\"ЮТ\",ROW(Основной!$2:$2225)),ROW(A19))),\"\")","v":""}]
[null,{"$f":"IFERROR(INDEX(Основной!$B:$B,SMALL(IF(Основной!#REF!=\"ЮТ\",ROW(Основной!$2:$2225)),ROW(A20))),\"\")","v":""}]
[null,{"$f":"IFERROR(INDEX(Основной!$B:$B,SMALL(IF(Основной!#REF!=\"ЮТ\",ROW(Основной!$2:$2225)),ROW(A21))),\"\")","v":""}]
[null,{"$f":"IFERROR(INDEX(Основной!$B:$B,SMALL(IF(Основной!#REF!=\"ЮТ\",ROW(Основной!$2:$2225)),ROW(A22))),\"\")","v":""}]
[null,{"$f":"IFERROR(INDEX(Основной!$B:$B,SMALL(IF(Основной!#REF!=\"ЮТ\",ROW(Основной!$2:$2225)),ROW(A23))),\"\")","v":""}]
[null,{"$f":"IFERROR(INDEX(Основной!$B:$B,SMALL(IF(Основной!#REF!=\"ЮТ\",ROW(Основной!$2:$2225)),ROW(A24))),\"\")","v":""}]
[null,{"$f":"IFERROR(INDEX(Основной!$B:$B,SMALL(IF(Основной!#REF!=\"ЮТ\",ROW(Основной!$2:$2225)),ROW(A25))),\"\")","v":""}]
[null,{"$f":"IFERROR(INDEX(Основной!$B:$B,SMALL(IF(Основной!#REF!=\"ЮТ\",ROW(Основной!$2:$2225)),ROW(A26))),\"\")","v":""}]
[null,{"$f":"IFERROR(INDEX(Основной!$B:$B,SMALL(IF(Основной!#REF!=\"ЮТ\",ROW(Основной!$2:$2225)),ROW(A27))),\"\")","v":""}]
[null,{"$f":"IFERROR(INDEX(Основной!$B:$B,SMALL(IF(Основной!#REF!=\"ЮТ\",ROW(Основной!$2:$2225)),ROW(A28))),\"\")","v":""}]
[null,{"$f":"IFERROR(INDEX(Основной!$B:$B,SMALL(IF(Основной!#REF!=\"ЮТ\",ROW(Основной!$2:$2225)),ROW(A29))),\"\")","v":""}]
[null,{"$f":"IFERROR(INDEX(Основной!$B:$B,SMALL(IF(Основной!#REF!=\"ЮТ\",ROW(Основной!$2:$2225)),ROW(A30))),\"\")","v":""}]
[null,{"$f":"IFERROR(INDEX(Основной!$B:$B,SMALL(IF(Основной!#REF!=\"ЮТ\",ROW(Основной!$2:$2225)),ROW(A31))),\"\")","v":""}]
[null,{"$f":"IFERROR(INDEX(Основной!$B:$B,SMALL(IF(Основной!#REF!=\"ЮТ\",ROW(Основной!$2:$2225)),ROW(A32))),\"\")","v":""}]
[null,{"$f":"IFERROR(INDEX(Основной!$B:$B,SMALL(IF(Основной!#REF!=\"ЮТ\",ROW(Основной!$2:$2225)),ROW(A33))),\"\")","v":""}]
[null,{"$f":"IFERROR(INDEX(Основной!$B:$B,SMALL(IF(Основной!#REF!=\"ЮТ\",ROW(Основной!$2:$2225)),ROW(A34))),\"\")","v":""}]